Workbook

Sheet MOD2015-contrakt
H1: 1 | I1: 1 | J1: 1 | K1: 1 | L1: 1 | M1: 1 | N1: 1 | O1: 1 | P1: 1
H2: 1
E3: Минимален осигурителен доход по основни икономически дейности и квалификационни групи професии - 2011 г.
A5: РЕЗУЛТАТИ ОТ БРАНШОВИТЕ СПОРАЗУМEНИЯ МЕЖДУ НАЦИОНАЛНО ПРЕДСТАВЕНИТЕ СТРУКТУРИ НА СИНДИКАТИТЕ И РАБОТОДАТЕЛИТЕ ПО ОПРЕДЕЛЯНЕ НА МОД 2015 г.
A6: КЪМ 25.08.2014 г.
A8: Пор. номер | B8: Тип договаряне | C8: Нарастване на средния Мин. Осиг. Доход 2015 спрямо 2014 | D8: Икономи-чески дейности ( ном. А31) | E8: Икономически дейности (код по НКИД ) | F8: Наименование на икономическа дейност | G8: Брой осигурени лица споразумения | H8: Ръководители | I8: Специалисти | J8: Техници и приложни специалисти | K8: Помощен административен персонал | L8: Персонал, зает с услуга за населението, търговията и охраната | M8: Квалифицирани работници в селското, горското, ловното и рибното стопанство | N8: Квалифицирани работници и сродни на тях занаятчии | O8: Машинни оператори и монтажници | P8: Професии, неизискващи специална квалификация | R8: среден min. осигурителен доход - 2014 | S8: среден min. осигурителен доход - 2015 | T8: Нарастване % | U8: Ръководители | V8: Специалисти | W8: Техници и приложни специалисти | X8: Помощен административен персонал | Y8: Персонал, зает с услуга за населението, търговията и охраната | Z8: Квалифицирани работници в селското, горското, ловното и рибното стопанство | AA8: Квалифицирани работници и сродни на тях занаятчии | AB8: Машинни оператори и монтажници | AC8: Професии, неизискващи специална квалификация
H9: 1 | I9: 2 | J9: 3 | K9: 4 | L9: 5 | M9: 6 | N9: 7 | O9: 8 | P9: 9 | U9: 1 | V9: 2 | W9: 3 | X9: 4 | Y9: 5 | Z9: 6 | AA9: 7 | AB9: 8 | AC9: 9
A10: 1 | B10: споразумение | C10: =T10 -> 0.08286165741 | D10: А | E10: 01, 03 без 1.49 | F10: Растениевъдство, животновъдство и лов, спомагателни дейности;Рибно стопанство | G10: =IF(B10<>0,'[2]INSIncome1-4_2014'!E93,0) -> 55952 | H10: 929 | I10: 682 | J10: 613 | K10: 580 | L10: 436 | M10: 485 | N10: 556 | O10: 662 | P10: 383 | R10: =IF(B10<>0,([2]MOD2014!E7*'[2]INSIncome1-4_2014'!D3+'[2]INSIncome1-4_2014'!F3*[2]MOD2014!F7+[2]MOD2014!G7*'[2]INSIncome1-4_2014'!H3+'[2]INSIncome1-4_2014'!J3*[2]MOD2014!H7+[2]MOD2014!I7*'[2]INSIncome1-4_2014'!L3+'[2]INSIncome1-4_2014'!N3*[2]MOD2014!J7+[2]MOD2014!K7*'[2]INSIncome1-4_2014'!P3+'[2]INSIncome1-4_2014'!R3*[2]MOD2014!L7+[2]MOD2014!M7*'[2]INSIncome1-4_2014'!T3)/G10,0) -> 503.7472476 | S10: =IF(B10<>0,(H10*'[2]INSIncome1-4_2014'!D3+'[2]INSIncome1-4_2014'!F3*'[2]MOD2015-contrakt'!I10+'[2]MOD2015-contrakt'!J10*'[2]INSIncome1-4_2014'!H3+'[2]INSIncome1-4_2014'!J3*'[2]MOD2015-contrakt'!K10+'[2]MOD2015-contrakt'!L10*'[2]INSIncome1-4_2014'!L3+'[2]INSIncome1-4_2014'!N3*'[2]MOD2015-contrakt'!M10+'[2]MOD2015-contrakt'!N10*'[2]INSIncome1-4_2014'!P3+'[2]INSIncome1-4_2014'!R3*'[2]MOD2015-contrakt'!O10+'[2]MOD2015-contrakt'!P10*'[2]INSIncome1-4_2014'!T3)/G10,0) -> 545.4885795 | T10: =IF(B10<>0,'[2]MOD15-contrIncr'!G6/'[2]MOD15-contrIncr'!F6-1,0) -> 0.08286165741 | U10: =H10/[2]MOD2014!E7-1 -> 0.04971751412 | V10: =I10/[2]MOD2014!F7-1 -> 0.08082408875 | W10: =J10/[2]MOD2014!G7-1 -> 0.09856630824 | X10: =K10/[2]MOD2014!H7-1 -> 0.07011070111 | Y10: =L10/[2]MOD2014!I7-1 -> 0.05060240964 | Z10: =M10/[2]MOD2014!J7-1 -> 0.08017817372 | AA10: =N10/[2]MOD2014!K7-1 -> 0.07961165049 | AB10: =O10/[2]MOD2014!L7-1 -> 0.07993474715 | AC10: =P10/[2]MOD2014!M7-1 -> 0.1101449275
A11: 2 | C11: =T11 -> 0 | D11: А | E11: 02 | F11: Горско стопанство | G11: =IF(B11<>0,'[2]INSIncome1-4_2014'!E94,0) -> 0 | R11: =IF(B11<>0,([2]MOD2014!E8*'[2]INSIncome1-4_2014'!D4+'[2]INSIncome1-4_2014'!F4*[2]MOD2014!F8+[2]MOD2014!G8*'[2]INSIncome1-4_2014'!H4+'[2]INSIncome1-4_2014'!J4*[2]MOD2014!H8+[2]MOD2014!I8*'[2]INSIncome1-4_2014'!L4+'[2]INSIncome1-4_2014'!N4*[2]MOD2014!J8+[2]MOD2014!K8*'[2]INSIncome1-4_2014'!P4+'[2]INSIncome1-4_2014'!R4*[2]MOD2014!L8+[2]MOD2014!M8*'[2]INSIncome1-4_2014'!T4)/G11,0) -> 0 | S11: =IF(B11<>0,(H11*'[2]INSIncome1-4_2014'!D4+'[2]INSIncome1-4_2014'!F4*'[2]MOD2015-contrakt'!I11+'[2]MOD2015-contrakt'!J11*'[2]INSIncome1-4_2014'!H4+'[2]INSIncome1-4_2014'!J4*'[2]MOD2015-contrakt'!K11+'[2]MOD2015-contrakt'!L11*'[2]INSIncome1-4_2014'!L4+'[2]INSIncome1-4_2014'!N4*'[2]MOD2015-contrakt'!M11+'[2]MOD2015-contrakt'!N11*'[2]INSIncome1-4_2014'!P4+'[2]INSIncome1-4_2014'!R4*'[2]MOD2015-contrakt'!O11+'[2]MOD2015-contrakt'!P11*'[2]INSIncome1-4_2014'!T4)/G11,0) -> 0 | T11: =IF(B11<>0,S11/R11-1,0) -> 0 | U11: =H11/[2]MOD2014!E8-1 -> -1 | V11: =I11/[2]MOD2014!F8-1 -> -1 | W11: =J11/[2]MOD2014!G8-1 -> -1 | X11: =K11/[2]MOD2014!H8-1 -> -1 | Y11: =L11/[2]MOD2014!I8-1 -> -1 | Z11: =M11/[2]MOD2014!J8-1 -> -1 | AA11: =N11/[2]MOD2014!K8-1 -> -1 | AB11: =O11/[2]MOD2014!L8-1 -> -1 | AC11: =P11/[2]MOD2014!M8-1 -> -1
A12: 3 | C12: 0 | D12: А | E12: 1.49 | F12: Отглеждане на други животни /пчеларство/ | G12: =IF(B12<>0,'[2]INSIncome1-4_2014'!E95,0) -> 0 | R12: =IF(B12<>0,([2]MOD2014!E9*'[2]INSIncome1-4_2014'!D5+'[2]INSIncome1-4_2014'!F5*[2]MOD2014!F9+[2]MOD2014!G9*'[2]INSIncome1-4_2014'!H5+'[2]INSIncome1-4_2014'!J5*[2]MOD2014!H9+[2]MOD2014!I9*'[2]INSIncome1-4_2014'!L5+'[2]INSIncome1-4_2014'!N5*[2]MOD2014!J9+[2]MOD2014!K9*'[2]INSIncome1-4_2014'!P5+'[2]INSIncome1-4_2014'!R5*[2]MOD2014!L9+[2]MOD2014!M9*'[2]INSIncome1-4_2014'!T5)/G12,0) -> 0 | S12: =IF(B12<>0,(H12*'[2]INSIncome1-4_2014'!D5+'[2]INSIncome1-4_2014'!F5*'[2]MOD2015-contrakt'!I12+'[2]MOD2015-contrakt'!J12*'[2]INSIncome1-4_2014'!H5+'[2]INSIncome1-4_2014'!J5*'[2]MOD2015-contrakt'!K12+'[2]MOD2015-contrakt'!L12*'[2]INSIncome1-4_2014'!L5+'[2]INSIncome1-4_2014'!N5*'[2]MOD2015-contrakt'!M12+'[2]MOD2015-contrakt'!N12*'[2]INSIncome1-4_2014'!P5+'[2]INSIncome1-4_2014'!R5*'[2]MOD2015-contrakt'!O12+'[2]MOD2015-contrakt'!P12*'[2]INSIncome1-4_2014'!T5)/G12,0) -> 0 | T12: 0 | U12: =H12/[2]MOD2014!E9-1 -> -1 | V12: =I12/[2]MOD2014!F9-1 -> -1 | W12: =J12/[2]MOD2014!G9-1 -> -1 | X12: =K12/[2]MOD2014!H9-1 -> -1 | Y12: =L12/[2]MOD2014!I9-1 -> -1 | Z12: =M12/[2]MOD2014!J9-1 -> -1 | AA12: =N12/[2]MOD2014!K9-1 -> -1 | AB12: =O12/[2]MOD2014!L9-1 -> -1 | AC12: =P12/[2]MOD2014!M9-1 -> -1
A13: 4 | B13: споразумение | C13: 0.02959848669 | D13: В | E13: 05 | F13: Добив на въглища | G13: =IF(B13<>0,'[2]INSIncome1-4_2014'!E96,0) -> 12304 | H13: 850 | I13: 696 | J13: 660 | K13: 475 | L13: 411 | M13: 350 | N13: 660 | O13: 599 | P13: 441 | R13: =IF(B13<>0,([2]MOD2014!E10*'[2]INSIncome1-4_2014'!D6+'[2]INSIncome1-4_2014'!F6*[2]MOD2014!F10+[2]MOD2014!G10*'[2]INSIncome1-4_2014'!H6+'[2]INSIncome1-4_2014'!J6*[2]MOD2014!H10+[2]MOD2014!I10*'[2]INSIncome1-4_2014'!L6+'[2]INSIncome1-4_2014'!N6*[2]MOD2014!J10+[2]MOD2014!K10*'[2]INSIncome1-4_2014'!P6+'[2]INSIncome1-4_2014'!R6*[2]MOD2014!L10+[2]MOD2014!M10*'[2]INSIncome1-4_2014'!T6)/G13,0) -> 586.8585013 | S13: =IF(B13<>0,(H13*'[2]INSIncome1-4_2014'!D6+'[2]INSIncome1-4_2014'!F6*'[2]MOD2015-contrakt'!I13+'[2]MOD2015-contrakt'!J13*'[2]INSIncome1-4_2014'!H6+'[2]INSIncome1-4_2014'!J6*'[2]MOD2015-contrakt'!K13+'[2]MOD2015-contrakt'!L13*'[2]INSIncome1-4_2014'!L6+'[2]INSIncome1-4_2014'!N6*'[2]MOD2015-contrakt'!M13+'[2]MOD2015-contrakt'!N13*'[2]INSIncome1-4_2014'!P6+'[2]INSIncome1-4_2014'!R6*'[2]MOD2015-contrakt'!O13+'[2]MOD2015-contrakt'!P13*'[2]INSIncome1-4_2014'!T6)/G13,0) -> 604.2286248 | T13: 0.02959848669 | U13: =H13/[2]MOD2014!E10-1 -> 0.0303030303 | V13: =I13/[2]MOD2014!F10-1 -> 0.02958579882 | W13: =J13/[2]MOD2014!G10-1 -> 0.02964118565 | X13: =K13/[2]MOD2014!H10-1 -> 0.03036876356 | Y13: =L13/[2]MOD2014!I10-1 -> 0.03007518797 | Z13: =M13/[2]MOD2014!J10-1 -> 0.02941176471 | AA13: =N13/[2]MOD2014!K10-1 -> 0.02964118565 | AB13: =O13/[2]MOD2014!L10-1 -> 0.02920962199 | AC13: =P13/[2]MOD2014!M10-1 -> 0.03037383178
A14: 5 | B14: споразумение | C14: 0.03003225733 | D14: В | E14: 06 | F14: Добив на нефт и природен газ | G14: =IF(B14<>0,'[2]INSIncome1-4_2014'!E97,0) -> 739 | H14: 809 | I14: 649 | J14: 631 | K14: 422 | L14: 422 | M14: 350 | N14: 583 | O14: 536 | P14: 422 | R14: =IF(B14<>0,([2]MOD2014!E11*'[2]INSIncome1-4_2014'!D7+'[2]INSIncome1-4_2014'!F7*[2]MOD2014!F11+[2]MOD2014!G11*'[2]INSIncome1-4_2014'!H7+'[2]INSIncome1-4_2014'!J7*[2]MOD2014!H11+[2]MOD2014!I11*'[2]INSIncome1-4_2014'!L7+'[2]INSIncome1-4_2014'!N7*[2]MOD2014!J11+[2]MOD2014!K11*'[2]INSIncome1-4_2014'!P7+'[2]INSIncome1-4_2014'!R7*[2]MOD2014!L11+[2]MOD2014!M11*'[2]INSIncome1-4_2014'!T7)/G14,0) -> 538.2124493 | S14: =IF(B14<>0,(H14*'[2]INSIncome1-4_2014'!D7+'[2]INSIncome1-4_2014'!F7*'[2]MOD2015-contrakt'!I14+'[2]MOD2015-contrakt'!J14*'[2]INSIncome1-4_2014'!H7+'[2]INSIncome1-4_2014'!J7*'[2]MOD2015-contrakt'!K14+'[2]MOD2015-contrakt'!L14*'[2]INSIncome1-4_2014'!L7+'[2]INSIncome1-4_2014'!N7*'[2]MOD2015-contrakt'!M14+'[2]MOD2015-contrakt'!N14*'[2]INSIncome1-4_2014'!P7+'[2]INSIncome1-4_2014'!R7*'[2]MOD2015-contrakt'!O14+'[2]MOD2015-contrakt'!P14*'[2]INSIncome1-4_2014'!T7)/G14,0) -> 554.376184 | T14: 0.03003225733 | U14: =H14/[2]MOD2014!E11-1 -> 0.03057324841 | V14: =I14/[2]MOD2014!F11-1 -> 0.03015873016 | W14: =J14/[2]MOD2014!G11-1 -> 0.02936378467 | X14: =K14/[2]MOD2014!H11-1 -> 0.02926829268 | Y14: =L14/[2]MOD2014!I11-1 -> 0.02926829268 | Z14: =M14/[2]MOD2014!J11-1 -> 0.02941176471 | AA14: =N14/[2]MOD2014!K11-1 -> 0.03003533569 | AB14: =O14/[2]MOD2014!L11-1 -> 0.03076923077 | AC14: =P14/[2]MOD2014!M11-1 -> 0.02926829268
A15: 6 | B15: споразумение | C15: 0.02997865752 | D15: В | E15: 07 | F15: Добив на метални руди | G15: =IF(B15<>0,'[2]INSIncome1-4_2014'!E98,0) -> 5792 | H15: 865 | I15: 719 | J15: 637 | K15: 457 | L15: 394 | M15: 350 | N15: 630 | O15: 544 | P15: 408 | R15: =IF(B15<>0,([2]MOD2014!E12*'[2]INSIncome1-4_2014'!D8+'[2]INSIncome1-4_2014'!F8*[2]MOD2014!F12+[2]MOD2014!G12*'[2]INSIncome1-4_2014'!H8+'[2]INSIncome1-4_2014'!J8*[2]MOD2014!H12+[2]MOD2014!I12*'[2]INSIncome1-4_2014'!L8+'[2]INSIncome1-4_2014'!N8*[2]MOD2014!J12+[2]MOD2014!K12*'[2]INSIncome1-4_2014'!P8+'[2]INSIncome1-4_2014'!R8*[2]MOD2014!L12+[2]MOD2014!M12*'[2]INSIncome1-4_2014'!T8)/G15,0) -> 558.7481008 | S15: =IF(B15<>0,(H15*'[2]INSIncome1-4_2014'!D8+'[2]INSIncome1-4_2014'!F8*'[2]MOD2015-contrakt'!I15+'[2]MOD2015-contrakt'!J15*'[2]INSIncome1-4_2014'!H8+'[2]INSIncome1-4_2014'!J8*'[2]MOD2015-contrakt'!K15+'[2]MOD2015-contrakt'!L15*'[2]INSIncome1-4_2014'!L8+'[2]INSIncome1-4_2014'!N8*'[2]MOD2015-contrakt'!M15+'[2]MOD2015-contrakt'!N15*'[2]INSIncome1-4_2014'!P8+'[2]INSIncome1-4_2014'!R8*'[2]MOD2015-contrakt'!O15+'[2]MOD2015-contrakt'!P15*'[2]INSIncome1-4_2014'!T8)/G15,0) -> 575.4986188 | T15: 0.02997865752 | U15: =H15/[2]MOD2014!E12-1 -> 0.02976190476 | V15: =I15/[2]MOD2014!F12-1 -> 0.03008595989 | W15: =J15/[2]MOD2014!G12-1 -> 0.03074433657 | X15: =K15/[2]MOD2014!H12-1 -> 0.02927927928 | Y15: =L15/[2]MOD2014!I12-1 -> 0.02872062663 | Z15: =M15/[2]MOD2014!J12-1 -> 0.02941176471 | AA15: =N15/[2]MOD2014!K12-1 -> 0.02941176471 | AB15: =O15/[2]MOD2014!L12-1 -> 0.0303030303 | AC15: =P15/[2]MOD2014!M12-1 -> 0.0303030303
A16: 7 | B16: споразумение | C16: 0.02973307225 | D16: В | E16: 08.11 | F16: Добив на строителни материали | G16: =IF(B16<>0,'[2]INSIncome1-4_2014'!E99,0) -> 112 | H16: 659 | I16: 519 | J16: 471 | K16: 485 | L16: 485 | M16: 350 | N16: 563 | O16: 519 | P16: 485 | R16: =IF(B16<>0,([2]MOD2014!E13*'[2]INSIncome1-4_2014'!D9+'[2]INSIncome1-4_2014'!F9*[2]MOD2014!F13+[2]MOD2014!G13*'[2]INSIncome1-4_2014'!H9+'[2]INSIncome1-4_2014'!J9*[2]MOD2014!H13+[2]MOD2014!I13*'[2]INSIncome1-4_2014'!L9+'[2]INSIncome1-4_2014'!N9*[2]MOD2014!J13+[2]MOD2014!K13*'[2]INSIncome1-4_2014'!P9+'[2]INSIncome1-4_2014'!R9*[2]MOD2014!L13+[2]MOD2014!M13*'[2]INSIncome1-4_2014'!T9)/G16,0) -> 519.8035714 | S16: =IF(B16<>0,(H16*'[2]INSIncome1-4_2014'!D9+'[2]INSIncome1-4_2014'!F9*'[2]MOD2015-contrakt'!I16+'[2]MOD2015-contrakt'!J16*'[2]INSIncome1-4_2014'!H9+'[2]INSIncome1-4_2014'!J9*'[2]MOD2015-contrakt'!K16+'[2]MOD2015-contrakt'!L16*'[2]INSIncome1-4_2014'!L9+'[2]INSIncome1-4_2014'!N9*'[2]MOD2015-contrakt'!M16+'[2]MOD2015-contrakt'!N16*'[2]INSIncome1-4_2014'!P9+'[2]INSIncome1-4_2014'!R9*'[2]MOD2015-contrakt'!O16+'[2]MOD2015-contrakt'!P16*'[2]INSIncome1-4_2014'!T9)/G16,0) -> 535.2589286 | T16: 0.02973307225 | U16: =H16/[2]MOD2014!E13-1 -> 0.0296875 | V16: =I16/[2]MOD2014!F13-1 -> 0.02976190476 | W16: =J16/[2]MOD2014!G13-1 -> 0.0306345733 | X16: =K16/[2]MOD2014!H13-1 -> 0.02972399151 | Y16: =L16/[2]MOD2014!I13-1 -> 0.02972399151 | Z16: =M16/[2]MOD2014!J13-1 -> 0.02941176471 | AA16: =N16/[2]MOD2014!K13-1 -> 0.02925045704 | AB16: =O16/[2]MOD2014!L13-1 -> 0.02976190476 | AC16: =P16/[2]MOD2014!M13-1 -> 0.02972399151
A17: 8 | B17: споразумение | C17: 0.02040090588 | D17: В | E17: 08.11 | F17: Добив на декоративни скални материали | G17: =IF(B17<>0,'[2]INSIncome1-4_2014'!E100,0) -> 449 | H17: 633 | I17: 499 | J17: 453 | K17: 393 | L17: 393 | M17: 347 | N17: 542 | O17: 499 | P17: 393 | R17: =IF(B17<>0,([2]MOD2014!E14*'[2]INSIncome1-4_2014'!D10+'[2]INSIncome1-4_2014'!F10*[2]MOD2014!F14+[2]MOD2014!G14*'[2]INSIncome1-4_2014'!H10+'[2]INSIncome1-4_2014'!J10*[2]MOD2014!H14+[2]MOD2014!I14*'[2]INSIncome1-4_2014'!L10+'[2]INSIncome1-4_2014'!N10*[2]MOD2014!J14+[2]MOD2014!K14*'[2]INSIncome1-4_2014'!P10+'[2]INSIncome1-4_2014'!R10*[2]MOD2014!L14+[2]MOD2014!M14*'[2]INSIncome1-4_2014'!T10)/G17,0) -> 475.9821826 | S17: =IF(B17<>0,(H17*'[2]INSIncome1-4_2014'!D10+'[2]INSIncome1-4_2014'!F10*'[2]MOD2015-contrakt'!I17+'[2]MOD2015-contrakt'!J17*'[2]INSIncome1-4_2014'!H10+'[2]INSIncome1-4_2014'!J10*'[2]MOD2015-contrakt'!K17+'[2]MOD2015-contrakt'!L17*'[2]INSIncome1-4_2014'!L10+'[2]INSIncome1-4_2014'!N10*'[2]MOD2015-contrakt'!M17+'[2]MOD2015-contrakt'!N17*'[2]INSIncome1-4_2014'!P10+'[2]INSIncome1-4_2014'!R10*'[2]MOD2015-contrakt'!O17+'[2]MOD2015-contrakt'!P17*'[2]INSIncome1-4_2014'!T10)/G17,0) -> 485.6926503 | T17: 0.02040090588 | U17: =H17/[2]MOD2014!E14-1 -> 0.0193236715 | V17: =I17/[2]MOD2014!F14-1 -> 0.02044989775 | W17: =J17/[2]MOD2014!G14-1 -> 0.02027027027 | X17: =K17/[2]MOD2014!H14-1 -> 0.02077922078 | Y17: =L17/[2]MOD2014!I14-1 -> 0.02077922078 | Z17: =M17/[2]MOD2014!J14-1 -> 0.02058823529 | AA17: =N17/[2]MOD2014!K14-1 -> 0.02071563089 | AB17: =O17/[2]MOD2014!L14-1 -> 0.02044989775 | AC17: =P17/[2]MOD2014!M14-1 -> 0.02077922078
A18: 9 | B18: споразумение | C18: 0.02528465453 | D18: В | E18: 08.11 | F18: Добив на варовик, суров гипс, креда, доломит и шисти | G18: =IF(B18<>0,'[2]INSIncome1-4_2014'!E101,0) -> 188 | H18: 662 | I18: 522 | J18: 474 | K18: 411 | L18: 411 | M18: 349 | N18: 567 | O18: 522 | P18: 411 | R18: =IF(B18<>0,([2]MOD2014!E15*'[2]INSIncome1-4_2014'!D11+'[2]INSIncome1-4_2014'!F11*[2]MOD2014!F15+[2]MOD2014!G15*'[2]INSIncome1-4_2014'!H11+'[2]INSIncome1-4_2014'!J11*[2]MOD2014!H15+[2]MOD2014!I15*'[2]INSIncome1-4_2014'!L11+'[2]INSIncome1-4_2014'!N11*[2]MOD2014!J15+[2]MOD2014!K15*'[2]INSIncome1-4_2014'!P11+'[2]INSIncome1-4_2014'!R11*[2]MOD2014!L15+[2]MOD2014!M15*'[2]INSIncome1-4_2014'!T11)/G18,0) -> 493.3191489 | S18: =IF(B18<>0,(H18*'[2]INSIncome1-4_2014'!D11+'[2]INSIncome1-4_2014'!F11*'[2]MOD2015-contrakt'!I18+'[2]MOD2015-contrakt'!J18*'[2]INSIncome1-4_2014'!H11+'[2]INSIncome1-4_2014'!J11*'[2]MOD2015-contrakt'!K18+'[2]MOD2015-contrakt'!L18*'[2]INSIncome1-4_2014'!L11+'[2]INSIncome1-4_2014'!N11*'[2]MOD2015-contrakt'!M18+'[2]MOD2015-contrakt'!N18*'[2]INSIncome1-4_2014'!P11+'[2]INSIncome1-4_2014'!R11*'[2]MOD2015-contrakt'!O18+'[2]MOD2015-contrakt'!P18*'[2]INSIncome1-4_2014'!T11)/G18,0) -> 505.7925532 | T18: 0.02528465453 | U18: =H18/[2]MOD2014!E15-1 -> 0.02476780186 | V18: =I18/[2]MOD2014!F15-1 -> 0.02554027505 | W18: =J18/[2]MOD2014!G15-1 -> 0.02597402597 | X18: =K18/[2]MOD2014!H15-1 -> 0.02493765586 | Y18: =L18/[2]MOD2014!I15-1 -> 0.02493765586 | Z18: =M18/[2]MOD2014!J15-1 -> 0.02647058824 | AA18: =N18/[2]MOD2014!K15-1 -> 0.0253164557 | AB18: =O18/[2]MOD2014!L15-1 -> 0.02554027505 | AC18: =P18/[2]MOD2014!M15-1 -> 0.02493765586
A19: 10 | B19: споразумение | C19: 0.0299529063 | D19: В | E19: 08.12 | F19: Добив на трошен камък, чакъл и пясък | G19: =IF(B19<>0,'[2]INSIncome1-4_2014'!E102,0) -> 2447 | H19: 832 | I19: 691 | J19: 597 | K19: 439 | L19: 409 | M19: 350 | N19: 549 | O19: 549 | P19: 409 | R19: =IF(B19<>0,([2]MOD2014!E16*'[2]INSIncome1-4_2014'!D12+'[2]INSIncome1-4_2014'!F12*[2]MOD2014!F16+[2]MOD2014!G16*'[2]INSIncome1-4_2014'!H12+'[2]INSIncome1-4_2014'!J12*[2]MOD2014!H16+[2]MOD2014!I16*'[2]INSIncome1-4_2014'!L12+'[2]INSIncome1-4_2014'!N12*[2]MOD2014!J16+[2]MOD2014!K16*'[2]INSIncome1-4_2014'!P12+'[2]INSIncome1-4_2014'!R12*[2]MOD2014!L16+[2]MOD2014!M16*'[2]INSIncome1-4_2014'!T12)/G19,0) -> 535.6726604 | S19: =IF(B19<>0,(H19*'[2]INSIncome1-4_2014'!D12+'[2]INSIncome1-4_2014'!F12*'[2]MOD2015-contrakt'!I19+'[2]MOD2015-contrakt'!J19*'[2]INSIncome1-4_2014'!H12+'[2]INSIncome1-4_2014'!J12*'[2]MOD2015-contrakt'!K19+'[2]MOD2015-contrakt'!L19*'[2]INSIncome1-4_2014'!L12+'[2]INSIncome1-4_2014'!N12*'[2]MOD2015-contrakt'!M19+'[2]MOD2015-contrakt'!N19*'[2]INSIncome1-4_2014'!P12+'[2]INSIncome1-4_2014'!R12*'[2]MOD2015-contrakt'!O19+'[2]MOD2015-contrakt'!P19*'[2]INSIncome1-4_2014'!T12)/G19,0) -> 551.7176134 | T19: 0.0299529063 | U19: =H19/[2]MOD2014!E16-1 -> 0.0297029703 | V19: =I19/[2]MOD2014!F16-1 -> 0.02980625931 | W19: =J19/[2]MOD2014!G16-1 -> 0.02931034483 | X19: =K19/[2]MOD2014!H16-1 -> 0.03051643192 | Y19: =L19/[2]MOD2014!I16-1 -> 0.03022670025 | Z19: =M19/[2]MOD2014!J16-1 -> 0.02941176471 | AA19: =N19/[2]MOD2014!K16-1 -> 0.03001876173 | AB19: =O19/[2]MOD2014!L16-1 -> 0.03001876173 | AC19: =P19/[2]MOD2014!M16-1 -> 0.03022670025
A20: 11 | B20: споразумение | C20: 0.0296309631 | D20: В | E20: 08.12 | F20: Добив на глина и каолин | G20: =IF(B20<>0,'[2]INSIncome1-4_2014'!E103,0) -> 46 | H20: 857 | I20: 711 | J20: 614 | K20: 452 | L20: 419 | M20: 350 | N20: 564 | O20: 564 | P20: 419 | R20: =IF(B20<>0,([2]MOD2014!E17*'[2]INSIncome1-4_2014'!D13+'[2]INSIncome1-4_2014'!F13*[2]MOD2014!F17+[2]MOD2014!G17*'[2]INSIncome1-4_2014'!H13+'[2]INSIncome1-4_2014'!J13*[2]MOD2014!H17+[2]MOD2014!I17*'[2]INSIncome1-4_2014'!L13+'[2]INSIncome1-4_2014'!N13*[2]MOD2014!J17+[2]MOD2014!K17*'[2]INSIncome1-4_2014'!P13+'[2]INSIncome1-4_2014'!R13*[2]MOD2014!L17+[2]MOD2014!M17*'[2]INSIncome1-4_2014'!T13)/G20,0) -> 603.8043478 | S20: =IF(B20<>0,(H20*'[2]INSIncome1-4_2014'!D13+'[2]INSIncome1-4_2014'!F13*'[2]MOD2015-contrakt'!I20+'[2]MOD2015-contrakt'!J20*'[2]INSIncome1-4_2014'!H13+'[2]INSIncome1-4_2014'!J13*'[2]MOD2015-contrakt'!K20+'[2]MOD2015-contrakt'!L20*'[2]INSIncome1-4_2014'!L13+'[2]INSIncome1-4_2014'!N13*'[2]MOD2015-contrakt'!M20+'[2]MOD2015-contrakt'!N20*'[2]INSIncome1-4_2014'!P13+'[2]INSIncome1-4_2014'!R13*'[2]MOD2015-contrakt'!O20+'[2]MOD2015-contrakt'!P20*'[2]INSIncome1-4_2014'!T13)/G20,0) -> 621.6956522 | T20: 0.0296309631 | U20: =H20/[2]MOD2014!E17-1 -> 0.03004807692 | V20: =I20/[2]MOD2014!F17-1 -> 0.03043478261 | W20: =J20/[2]MOD2014!G17-1 -> 0.03020134228 | X20: =K20/[2]MOD2014!H17-1 -> 0.02961275626 | Y20: =L20/[2]MOD2014!I17-1 -> 0.02948402948 | Z20: =M20/[2]MOD2014!J17-1 -> 0.02941176471 | AA20: =N20/[2]MOD2014!K17-1 -> 0.02919708029 | AB20: =O20/[2]MOD2014!L17-1 -> 0.02919708029 | AC20: =P20/[2]MOD2014!M17-1 -> 0.02948402948
A21: 12 | B21: споразумение | C21: 0.02980584652 | D21: В | E21: 08.9 и 09 | F21: Добив на други неметални материали и суровини; Спомагателни дейности в добива | G21: =IF(B21<>0,'[2]INSIncome1-4_2014'!E104,0) -> 820 | H21: 665 | I21: 524 | J21: 476 | K21: 413 | L21: 413 | M21: 350 | N21: 570 | O21: 524 | P21: 413 | R21: =IF(B21<>0,([2]MOD2014!E18*'[2]INSIncome1-4_2014'!D14+'[2]INSIncome1-4_2014'!F14*[2]MOD2014!F18+[2]MOD2014!G18*'[2]INSIncome1-4_2014'!H14+'[2]INSIncome1-4_2014'!J14*[2]MOD2014!H18+[2]MOD2014!I18*'[2]INSIncome1-4_2014'!L14+'[2]INSIncome1-4_2014'!N14*[2]MOD2014!J18+[2]MOD2014!K18*'[2]INSIncome1-4_2014'!P14+'[2]INSIncome1-4_2014'!R14*[2]MOD2014!L18+[2]MOD2014!M18*'[2]INSIncome1-4_2014'!T14)/G21,0) -> 506.3256098 | S21: =IF(B21<>0,(H21*'[2]INSIncome1-4_2014'!D14+'[2]INSIncome1-4_2014'!F14*'[2]MOD2015-contrakt'!I21+'[2]MOD2015-contrakt'!J21*'[2]INSIncome1-4_2014'!H14+'[2]INSIncome1-4_2014'!J14*'[2]MOD2015-contrakt'!K21+'[2]MOD2015-contrakt'!L21*'[2]INSIncome1-4_2014'!L14+'[2]INSIncome1-4_2014'!N14*'[2]MOD2015-contrakt'!M21+'[2]MOD2015-contrakt'!N21*'[2]INSIncome1-4_2014'!P14+'[2]INSIncome1-4_2014'!R14*'[2]MOD2015-contrakt'!O21+'[2]MOD2015-contrakt'!P21*'[2]INSIncome1-4_2014'!T14)/G21,0) -> 521.4170732 | T21: 0.02980584652 | U21: =H21/[2]MOD2014!E18-1 -> 0.02941176471 | V21: =I21/[2]MOD2014!F18-1 -> 0.02946954813 | W21: =J21/[2]MOD2014!G18-1 -> 0.0303030303 | X21: =K21/[2]MOD2014!H18-1 -> 0.02992518703 | Y21: =L21/[2]MOD2014!I18-1 -> 0.02992518703 | Z21: =M21/[2]MOD2014!J18-1 -> 0.02941176471 | AA21: =N21/[2]MOD2014!K18-1 -> 0.03074141049 | AB21: =O21/[2]MOD2014!L18-1 -> 0.02946954813 | AC21: =P21/[2]MOD2014!M18-1 -> 0.02992518703
A22: 13 | C22: 0 | D22: C | E22: 10.1 без 10.12, 10.2 | F22: Производство и преработка на месо; производство на месни продукти, без готови ястия; Преработка и консервиране на риба и други водни животни, без готови ястия | G22: =IF(B22<>0,'[2]INSIncome1-4_2014'!E105,0) -> 0 | R22: =IF(B22<>0,([2]MOD2014!E19*'[2]INSIncome1-4_2014'!D15+'[2]INSIncome1-4_2014'!F15*[2]MOD2014!F19+[2]MOD2014!G19*'[2]INSIncome1-4_2014'!H15+'[2]INSIncome1-4_2014'!J15*[2]MOD2014!H19+[2]MOD2014!I19*'[2]INSIncome1-4_2014'!L15+'[2]INSIncome1-4_2014'!N15*[2]MOD2014!J19+[2]MOD2014!K19*'[2]INSIncome1-4_2014'!P15+'[2]INSIncome1-4_2014'!R15*[2]MOD2014!L19+[2]MOD2014!M19*'[2]INSIncome1-4_2014'!T15)/G22,0) -> 0 | S22: =IF(B22<>0,(H22*'[2]INSIncome1-4_2014'!D15+'[2]INSIncome1-4_2014'!F15*'[2]MOD2015-contrakt'!I22+'[2]MOD2015-contrakt'!J22*'[2]INSIncome1-4_2014'!H15+'[2]INSIncome1-4_2014'!J15*'[2]MOD2015-contrakt'!K22+'[2]MOD2015-contrakt'!L22*'[2]INSIncome1-4_2014'!L15+'[2]INSIncome1-4_2014'!N15*'[2]MOD2015-contrakt'!M22+'[2]MOD2015-contrakt'!N22*'[2]INSIncome1-4_2014'!P15+'[2]INSIncome1-4_2014'!R15*'[2]MOD2015-contrakt'!O22+'[2]MOD2015-contrakt'!P22*'[2]INSIncome1-4_2014'!T15)/G22,0) -> 0 | T22: 0 | U22: =H22/[2]MOD2014!E19-1 -> -1 | V22: =I22/[2]MOD2014!F19-1 -> -1 | W22: =J22/[2]MOD2014!G19-1 -> -1 | X22: =K22/[2]MOD2014!H19-1 -> -1 | Y22: =L22/[2]MOD2014!I19-1 -> -1 | Z22: =M22/[2]MOD2014!J19-1 -> -1 | AA22: =N22/[2]MOD2014!K19-1 -> -1 | AB22: =O22/[2]MOD2014!L19-1 -> -1 | AC22: =P22/[2]MOD2014!M19-1 -> -1
A23: 14 | B23: споразумение | C23: 0.07613141575 | D23: C | E23: 10.12 | F23: Производство и преработка на месо от домашни птици | G23: =IF(B23<>0,'[2]INSIncome1-4_2014'!E106,0) -> 4224 | H23: 1060 | I23: 910 | J23: 780 | K23: 560 | L23: 380 | M23: 430 | N23: 460 | O23: 580 | P23: 390 | R23: =IF(B23<>0,([2]MOD2014!E20*'[2]INSIncome1-4_2014'!D16+'[2]INSIncome1-4_2014'!F16*[2]MOD2014!F20+[2]MOD2014!G20*'[2]INSIncome1-4_2014'!H16+'[2]INSIncome1-4_2014'!J16*[2]MOD2014!H20+[2]MOD2014!I20*'[2]INSIncome1-4_2014'!L16+'[2]INSIncome1-4_2014'!N16*[2]MOD2014!J20+[2]MOD2014!K20*'[2]INSIncome1-4_2014'!P16+'[2]INSIncome1-4_2014'!R16*[2]MOD2014!L20+[2]MOD2014!M20*'[2]INSIncome1-4_2014'!T16)/G23,0) -> 466.5104167 | S23: =IF(B23<>0,(H23*'[2]INSIncome1-4_2014'!D16+'[2]INSIncome1-4_2014'!F16*'[2]MOD2015-contrakt'!I23+'[2]MOD2015-contrakt'!J23*'[2]INSIncome1-4_2014'!H16+'[2]INSIncome1-4_2014'!J16*'[2]MOD2015-contrakt'!K23+'[2]MOD2015-contrakt'!L23*'[2]INSIncome1-4_2014'!L16+'[2]INSIncome1-4_2014'!N16*'[2]MOD2015-contrakt'!M23+'[2]MOD2015-contrakt'!N23*'[2]INSIncome1-4_2014'!P16+'[2]INSIncome1-4_2014'!R16*'[2]MOD2015-contrakt'!O23+'[2]MOD2015-contrakt'!P23*'[2]INSIncome1-4_2014'!T16)/G23,0) -> 502.0265152 | T23: 0.07613141575 | U23: =H23/[2]MOD2014!E20-1 -> 0.1041666667 | V23: =I23/[2]MOD2014!F20-1 -> 0.09638554217 | W23: =J23/[2]MOD2014!G20-1 -> 0.0985915493 | X23: =K23/[2]MOD2014!H20-1 -> 0.09803921569 | Y23: =L23/[2]MOD2014!I20-1 -> 0.05555555556 | Z23: =M23/[2]MOD2014!J20-1 -> 0.0487804878 | AA23: =N23/[2]MOD2014!K20-1 -> 0.06976744186 | AB23: =O23/[2]MOD2014!L20-1 -> 0.03571428571 | AC23: =P23/[2]MOD2014!M20-1 -> 0.08333333333
A24: 15 | C24: 0 | D24: C | E24: 10.3 | F24: Преработка и консервиране на плодове и зеленчуци, без готови ястия | G24: =IF(B24<>0,'[2]INSIncome1-4_2014'!E107,0) -> 0 | R24: =IF(B24<>0,([2]MOD2014!E21*'[2]INSIncome1-4_2014'!D17+'[2]INSIncome1-4_2014'!F17*[2]MOD2014!F21+[2]MOD2014!G21*'[2]INSIncome1-4_2014'!H17+'[2]INSIncome1-4_2014'!J17*[2]MOD2014!H21+[2]MOD2014!I21*'[2]INSIncome1-4_2014'!L17+'[2]INSIncome1-4_2014'!N17*[2]MOD2014!J21+[2]MOD2014!K21*'[2]INSIncome1-4_2014'!P17+'[2]INSIncome1-4_2014'!R17*[2]MOD2014!L21+[2]MOD2014!M21*'[2]INSIncome1-4_2014'!T17)/G24,0) -> 0 | S24: =IF(B24<>0,(H24*'[2]INSIncome1-4_2014'!D17+'[2]INSIncome1-4_2014'!F17*'[2]MOD2015-contrakt'!I24+'[2]MOD2015-contrakt'!J24*'[2]INSIncome1-4_2014'!H17+'[2]INSIncome1-4_2014'!J17*'[2]MOD2015-contrakt'!K24+'[2]MOD2015-contrakt'!L24*'[2]INSIncome1-4_2014'!L17+'[2]INSIncome1-4_2014'!N17*'[2]MOD2015-contrakt'!M24+'[2]MOD2015-contrakt'!N24*'[2]INSIncome1-4_2014'!P17+'[2]INSIncome1-4_2014'!R17*'[2]MOD2015-contrakt'!O24+'[2]MOD2015-contrakt'!P24*'[2]INSIncome1-4_2014'!T17)/G24,0) -> 0 | T24: 0 | U24: =H24/[2]MOD2014!E21-1 -> -1 | V24: =I24/[2]MOD2014!F21-1 -> -1 | W24: =J24/[2]MOD2014!G21-1 -> -1 | X24: =K24/[2]MOD2014!H21-1 -> -1 | Y24: =L24/[2]MOD2014!I21-1 -> -1 | Z24: =M24/[2]MOD2014!J21-1 -> -1 | AA24: =N24/[2]MOD2014!K21-1 -> -1 | AB24: =O24/[2]MOD2014!L21-1 -> -1 | AC24: =P24/[2]MOD2014!M21-1 -> -1
A25: 16 | C25: 0 | D25: C | E25: 10.4 | F25: Производство на растителни и животински масла и мазнини | G25: =IF(B25<>0,'[2]INSIncome1-4_2014'!E108,0) -> 0 | R25: =IF(B25<>0,([2]MOD2014!E22*'[2]INSIncome1-4_2014'!D18+'[2]INSIncome1-4_2014'!F18*[2]MOD2014!F22+[2]MOD2014!G22*'[2]INSIncome1-4_2014'!H18+'[2]INSIncome1-4_2014'!J18*[2]MOD2014!H22+[2]MOD2014!I22*'[2]INSIncome1-4_2014'!L18+'[2]INSIncome1-4_2014'!N18*[2]MOD2014!J22+[2]MOD2014!K22*'[2]INSIncome1-4_2014'!P18+'[2]INSIncome1-4_2014'!R18*[2]MOD2014!L22+[2]MOD2014!M22*'[2]INSIncome1-4_2014'!T18)/G25,0) -> 0 | S25: =IF(B25<>0,(H25*'[2]INSIncome1-4_2014'!D18+'[2]INSIncome1-4_2014'!F18*'[2]MOD2015-contrakt'!I25+'[2]MOD2015-contrakt'!J25*'[2]INSIncome1-4_2014'!H18+'[2]INSIncome1-4_2014'!J18*'[2]MOD2015-contrakt'!K25+'[2]MOD2015-contrakt'!L25*'[2]INSIncome1-4_2014'!L18+'[2]INSIncome1-4_2014'!N18*'[2]MOD2015-contrakt'!M25+'[2]MOD2015-contrakt'!N25*'[2]INSIncome1-4_2014'!P18+'[2]INSIncome1-4_2014'!R18*'[2]MOD2015-contrakt'!O25+'[2]MOD2015-contrakt'!P25*'[2]INSIncome1-4_2014'!T18)/G25,0) -> 0 | T25: 0 | U25: =H25/[2]MOD2014!E22-1 -> -1 | V25: =I25/[2]MOD2014!F22-1 -> -1 | W25: =J25/[2]MOD2014!G22-1 -> -1 | X25: =K25/[2]MOD2014!H22-1 -> -1 | Y25: =L25/[2]MOD2014!I22-1 -> -1 | Z25: =M25/[2]MOD2014!J22-1 -> -1 | AA25: =N25/[2]MOD2014!K22-1 -> -1 | AB25: =O25/[2]MOD2014!L22-1 -> -1 | AC25: =P25/[2]MOD2014!M22-1 -> -1
A26: 17 | C26: 0 | D26: C | E26: 10.5 | F26: Производство на мляко и млечни продукти | G26: =IF(B26<>0,'[2]INSIncome1-4_2014'!E109,0) -> 0 | R26: =IF(B26<>0,([2]MOD2014!E23*'[2]INSIncome1-4_2014'!D19+'[2]INSIncome1-4_2014'!F19*[2]MOD2014!F23+[2]MOD2014!G23*'[2]INSIncome1-4_2014'!H19+'[2]INSIncome1-4_2014'!J19*[2]MOD2014!H23+[2]MOD2014!I23*'[2]INSIncome1-4_2014'!L19+'[2]INSIncome1-4_2014'!N19*[2]MOD2014!J23+[2]MOD2014!K23*'[2]INSIncome1-4_2014'!P19+'[2]INSIncome1-4_2014'!R19*[2]MOD2014!L23+[2]MOD2014!M23*'[2]INSIncome1-4_2014'!T19)/G26,0) -> 0 | S26: =IF(B26<>0,(H26*'[2]INSIncome1-4_2014'!D19+'[2]INSIncome1-4_2014'!F19*'[2]MOD2015-contrakt'!I26+'[2]MOD2015-contrakt'!J26*'[2]INSIncome1-4_2014'!H19+'[2]INSIncome1-4_2014'!J19*'[2]MOD2015-contrakt'!K26+'[2]MOD2015-contrakt'!L26*'[2]INSIncome1-4_2014'!L19+'[2]INSIncome1-4_2014'!N19*'[2]MOD2015-contrakt'!M26+'[2]MOD2015-contrakt'!N26*'[2]INSIncome1-4_2014'!P19+'[2]INSIncome1-4_2014'!R19*'[2]MOD2015-contrakt'!O26+'[2]MOD2015-contrakt'!P26*'[2]INSIncome1-4_2014'!T19)/G26,0) -> 0 | T26: 0 | U26: =H26/[2]MOD2014!E23-1 -> -1 | V26: =I26/[2]MOD2014!F23-1 -> -1 | W26: =J26/[2]MOD2014!G23-1 -> -1 | X26: =K26/[2]MOD2014!H23-1 -> -1 | Y26: =L26/[2]MOD2014!I23-1 -> -1 | Z26: =M26/[2]MOD2014!J23-1 -> -1 | AA26: =N26/[2]MOD2014!K23-1 -> -1 | AB26: =O26/[2]MOD2014!L23-1 -> -1 | AC26: =P26/[2]MOD2014!M23-1 -> -1
A27: 18 | C27: 0 | D27: C | E27: 10.6 | F27: Производство на мелничарски продукти, нишесте и нишестени продукти | G27: =IF(B27<>0,'[2]INSIncome1-4_2014'!E110,0) -> 0 | R27: =IF(B27<>0,([2]MOD2014!E24*'[2]INSIncome1-4_2014'!D20+'[2]INSIncome1-4_2014'!F20*[2]MOD2014!F24+[2]MOD2014!G24*'[2]INSIncome1-4_2014'!H20+'[2]INSIncome1-4_2014'!J20*[2]MOD2014!H24+[2]MOD2014!I24*'[2]INSIncome1-4_2014'!L20+'[2]INSIncome1-4_2014'!N20*[2]MOD2014!J24+[2]MOD2014!K24*'[2]INSIncome1-4_2014'!P20+'[2]INSIncome1-4_2014'!R20*[2]MOD2014!L24+[2]MOD2014!M24*'[2]INSIncome1-4_2014'!T20)/G27,0) -> 0 | S27: =IF(B27<>0,(H27*'[2]INSIncome1-4_2014'!D20+'[2]INSIncome1-4_2014'!F20*'[2]MOD2015-contrakt'!I27+'[2]MOD2015-contrakt'!J27*'[2]INSIncome1-4_2014'!H20+'[2]INSIncome1-4_2014'!J20*'[2]MOD2015-contrakt'!K27+'[2]MOD2015-contrakt'!L27*'[2]INSIncome1-4_2014'!L20+'[2]INSIncome1-4_2014'!N20*'[2]MOD2015-contrakt'!M27+'[2]MOD2015-contrakt'!N27*'[2]INSIncome1-4_2014'!P20+'[2]INSIncome1-4_2014'!R20*'[2]MOD2015-contrakt'!O27+'[2]MOD2015-contrakt'!P27*'[2]INSIncome1-4_2014'!T20)/G27,0) -> 0 | T27: 0 | U27: =H27/[2]MOD2014!E24-1 -> -1 | V27: =I27/[2]MOD2014!F24-1 -> -1 | W27: =J27/[2]MOD2014!G24-1 -> -1 | X27: =K27/[2]MOD2014!H24-1 -> -1 | Y27: =L27/[2]MOD2014!I24-1 -> -1 | Z27: =M27/[2]MOD2014!J24-1 -> -1 | AA27: =N27/[2]MOD2014!K24-1 -> -1 | AB27: =O27/[2]MOD2014!L24-1 -> -1 | AC27: =P27/[2]MOD2014!M24-1 -> -1
A28: 19 | B28: споразумение | C28: 0.00256392929 | D28: C | E28: 10.7 и 10.8 без 10.81 и 10.82 | F28: Производство на хлебни и тестени изделия; Производство на други хранителни продукти | G28: =IF(B28<>0,'[2]INSIncome1-4_2014'!E111,0) -> 34934 | H28: 800 | I28: 560 | J28: 560 | K28: 440 | L28: 365 | M28: 342 | N28: 450 | O28: 505 | P28: 410 | R28: =IF(B28<>0,([2]MOD2014!E25*'[2]INSIncome1-4_2014'!D21+'[2]INSIncome1-4_2014'!F21*[2]MOD2014!F25+[2]MOD2014!G25*'[2]INSIncome1-4_2014'!H21+'[2]INSIncome1-4_2014'!J21*[2]MOD2014!H25+[2]MOD2014!I25*'[2]INSIncome1-4_2014'!L21+'[2]INSIncome1-4_2014'!N21*[2]MOD2014!J25+[2]MOD2014!K25*'[2]INSIncome1-4_2014'!P21+'[2]INSIncome1-4_2014'!R21*[2]MOD2014!L25+[2]MOD2014!M25*'[2]INSIncome1-4_2014'!T21)/G28,0) -> 437.1524017 | S28: =IF(B28<>0,(H28*'[2]INSIncome1-4_2014'!D21+'[2]INSIncome1-4_2014'!F21*'[2]MOD2015-contrakt'!I28+'[2]MOD2015-contrakt'!J28*'[2]INSIncome1-4_2014'!H21+'[2]INSIncome1-4_2014'!J21*'[2]MOD2015-contrakt'!K28+'[2]MOD2015-contrakt'!L28*'[2]INSIncome1-4_2014'!L21+'[2]INSIncome1-4_2014'!N21*'[2]MOD2015-contrakt'!M28+'[2]MOD2015-contrakt'!N28*'[2]INSIncome1-4_2014'!P21+'[2]INSIncome1-4_2014'!R21*'[2]MOD2015-contrakt'!O28+'[2]MOD2015-contrakt'!P28*'[2]INSIncome1-4_2014'!T21)/G28,0) -> 438.2732295 | T28: 0.00256392929 | U28: =H28/[2]MOD2014!E25-1 -> 0 | V28: =I28/[2]MOD2014!F25-1 -> 0 | W28: =J28/[2]MOD2014!G25-1 -> 0 | X28: =K28/[2]MOD2014!H25-1 -> 0 | Y28: =L28/[2]MOD2014!I25-1 -> 0.01388888889 | Z28: =M28/[2]MOD2014!J25-1 -> 0 | AA28: =N28/[2]MOD2014!K25-1 -> 0 | AB28: =O28/[2]MOD2014!L25-1 -> 0 | AC28: =P28/[2]MOD2014!M25-1 -> 0
A29: 20 | B29: споразумение | C29: 0.02107441658 | D29: C | E29: 10.81 и 10.82 | F29: Производство на захар; Производство на какао, шоколадови и захарни изделия | G29: =IF(B29<>0,'[2]INSIncome1-4_2014'!E112,0) -> 6362 | H29: 1100 | I29: 905 | J29: 840 | K29: 600 | L29: 380 | M29: 380 | N29: 590 | O29: 620 | P29: 385 | R29: =IF(B29<>0,([2]MOD2014!E26*'[2]INSIncome1-4_2014'!D22+'[2]INSIncome1-4_2014'!F22*[2]MOD2014!F26+[2]MOD2014!G26*'[2]INSIncome1-4_2014'!H22+'[2]INSIncome1-4_2014'!J22*[2]MOD2014!H26+[2]MOD2014!I26*'[2]INSIncome1-4_2014'!L22+'[2]INSIncome1-4_2014'!N22*[2]MOD2014!J26+[2]MOD2014!K26*'[2]INSIncome1-4_2014'!P22+'[2]INSIncome1-4_2014'!R22*[2]MOD2014!L26+[2]MOD2014!M26*'[2]INSIncome1-4_2014'!T22)/G29,0) -> 570.7607671 | S29: =IF(B29<>0,(H29*'[2]INSIncome1-4_2014'!D22+'[2]INSIncome1-4_2014'!F22*'[2]MOD2015-contrakt'!I29+'[2]MOD2015-contrakt'!J29*'[2]INSIncome1-4_2014'!H22+'[2]INSIncome1-4_2014'!J22*'[2]MOD2015-contrakt'!K29+'[2]MOD2015-contrakt'!L29*'[2]INSIncome1-4_2014'!L22+'[2]INSIncome1-4_2014'!N22*'[2]MOD2015-contrakt'!M29+'[2]MOD2015-contrakt'!N29*'[2]INSIncome1-4_2014'!P22+'[2]INSIncome1-4_2014'!R22*'[2]MOD2015-contrakt'!O29+'[2]MOD2015-contrakt'!P29*'[2]INSIncome1-4_2014'!T22)/G29,0) -> 582.7892172 | T29: 0.02107441658 | U29: =H29/[2]MOD2014!E26-1 -> 0 | V29: =I29/[2]MOD2014!F26-1 -> 0.005555555556 | W29: =J29/[2]MOD2014!G26-1 -> 0.01204819277 | X29: =K29/[2]MOD2014!H26-1 -> 0.01694915254 | Y29: =L29/[2]MOD2014!I26-1 -> 0.08571428571 | Z29: =M29/[2]MOD2014!J26-1 -> 0.1176470588 | AA29: =N29/[2]MOD2014!K26-1 -> 0.01724137931 | AB29: =O29/[2]MOD2014!L26-1 -> 0.01639344262 | AC29: =P29/[2]MOD2014!M26-1 -> 0.04054054054
A30: 21 | B30: споразумение | C30: 0.0200051525 | D30: C | E30: 10.9 | F30: Производство на готови храни за животни | G30: =IF(B30<>0,'[2]INSIncome1-4_2014'!E113,0) -> 1582 | H30: 990 | I30: 900 | J30: 800 | K30: 600 | L30: 370 | M30: 430 | N30: 620 | O30: 620 | P30: 390 | R30: =IF(B30<>0,([2]MOD2014!E27*'[2]INSIncome1-4_2014'!D23+'[2]INSIncome1-4_2014'!F23*[2]MOD2014!F27+[2]MOD2014!G27*'[2]INSIncome1-4_2014'!H23+'[2]INSIncome1-4_2014'!J23*[2]MOD2014!H27+[2]MOD2014!I27*'[2]INSIncome1-4_2014'!L23+'[2]INSIncome1-4_2014'!N23*[2]MOD2014!J27+[2]MOD2014!K27*'[2]INSIncome1-4_2014'!P23+'[2]INSIncome1-4_2014'!R23*[2]MOD2014!L27+[2]MOD2014!M27*'[2]INSIncome1-4_2014'!T23)/G30,0) -> 564.3299621 | S30: =IF(B30<>0,(H30*'[2]INSIncome1-4_2014'!D23+'[2]INSIncome1-4_2014'!F23*'[2]MOD2015-contrakt'!I30+'[2]MOD2015-contrakt'!J30*'[2]INSIncome1-4_2014'!H23+'[2]INSIncome1-4_2014'!J23*'[2]MOD2015-contrakt'!K30+'[2]MOD2015-contrakt'!L30*'[2]INSIncome1-4_2014'!L23+'[2]INSIncome1-4_2014'!N23*'[2]MOD2015-contrakt'!M30+'[2]MOD2015-contrakt'!N30*'[2]INSIncome1-4_2014'!P23+'[2]INSIncome1-4_2014'!R23*'[2]MOD2015-contrakt'!O30+'[2]MOD2015-contrakt'!P30*'[2]INSIncome1-4_2014'!T23)/G30,0) -> 575.619469 | T30: 0.0200051525 | U30: =H30/[2]MOD2014!E27-1 -> 0 | V30: =I30/[2]MOD2014!F27-1 -> 0 | W30: =J30/[2]MOD2014!G27-1 -> 0 | X30: =K30/[2]MOD2014!H27-1 -> 0.01694915254 | Y30: =L30/[2]MOD2014!I27-1 -> 0.02777777778 | Z30: =M30/[2]MOD2014!J27-1 -> 0.02380952381 | AA30: =N30/[2]MOD2014!K27-1 -> 0.01639344262 | AB30: =O30/[2]MOD2014!L27-1 -> 0.01639344262 | AC30: =P30/[2]MOD2014!M27-1 -> 0.05405405405
A31: 22 | C31: 0 | D31: C | E31: 11 без 11.05, 11.06 и 11.07 | F31: Производство на напитки | G31: =IF(B31<>0,'[2]INSIncome1-4_2014'!E114,0) -> 0 | R31: =IF(B31<>0,([2]MOD2014!E28*'[2]INSIncome1-4_2014'!D24+'[2]INSIncome1-4_2014'!F24*[2]MOD2014!F28+[2]MOD2014!G28*'[2]INSIncome1-4_2014'!H24+'[2]INSIncome1-4_2014'!J24*[2]MOD2014!H28+[2]MOD2014!I28*'[2]INSIncome1-4_2014'!L24+'[2]INSIncome1-4_2014'!N24*[2]MOD2014!J28+[2]MOD2014!K28*'[2]INSIncome1-4_2014'!P24+'[2]INSIncome1-4_2014'!R24*[2]MOD2014!L28+[2]MOD2014!M28*'[2]INSIncome1-4_2014'!T24)/G31,0) -> 0 | S31: =IF(B31<>0,(H31*'[2]INSIncome1-4_2014'!D24+'[2]INSIncome1-4_2014'!F24*'[2]MOD2015-contrakt'!I31+'[2]MOD2015-contrakt'!J31*'[2]INSIncome1-4_2014'!H24+'[2]INSIncome1-4_2014'!J24*'[2]MOD2015-contrakt'!K31+'[2]MOD2015-contrakt'!L31*'[2]INSIncome1-4_2014'!L24+'[2]INSIncome1-4_2014'!N24*'[2]MOD2015-contrakt'!M31+'[2]MOD2015-contrakt'!N31*'[2]INSIncome1-4_2014'!P24+'[2]INSIncome1-4_2014'!R24*'[2]MOD2015-contrakt'!O31+'[2]MOD2015-contrakt'!P31*'[2]INSIncome1-4_2014'!T24)/G31,0) -> 0 | T31: 0 | U31: =H31/[2]MOD2014!E28-1 -> -1 | V31: =I31/[2]MOD2014!F28-1 -> -1 | W31: =J31/[2]MOD2014!G28-1 -> -1 | X31: =K31/[2]MOD2014!H28-1 -> -1 | Y31: =L31/[2]MOD2014!I28-1 -> -1 | Z31: =M31/[2]MOD2014!J28-1 -> -1 | AA31: =N31/[2]MOD2014!K28-1 -> -1 | AB31: =O31/[2]MOD2014!L28-1 -> -1 | AC31: =P31/[2]MOD2014!M28-1 -> -1
A32: 23 | B32: споразумение | C32: 0.006575968081 | D32: C | E32: 11.05 и 11.06 | F32: Производство на пиво и малц | G32: =IF(B32<>0,'[2]INSIncome1-4_2014'!E115,0) -> 2380 | H32: 790 | I32: 670 | J32: 595 | K32: 433 | L32: 420 | N32: 495 | O32: 470 | P32: 420 | R32: =IF(B32<>0,([2]MOD2014!E29*'[2]INSIncome1-4_2014'!D25+'[2]INSIncome1-4_2014'!F25*[2]MOD2014!F29+[2]MOD2014!G29*'[2]INSIncome1-4_2014'!H25+'[2]INSIncome1-4_2014'!J25*[2]MOD2014!H29+[2]MOD2014!I29*'[2]INSIncome1-4_2014'!L25+'[2]INSIncome1-4_2014'!N25*[2]MOD2014!J29+[2]MOD2014!K29*'[2]INSIncome1-4_2014'!P25+'[2]INSIncome1-4_2014'!R25*[2]MOD2014!L29+[2]MOD2014!M29*'[2]INSIncome1-4_2014'!T25)/G32,0) -> 567.8302521 | S32: =IF(B32<>0,(H32*'[2]INSIncome1-4_2014'!D25+'[2]INSIncome1-4_2014'!F25*'[2]MOD2015-contrakt'!I32+'[2]MOD2015-contrakt'!J32*'[2]INSIncome1-4_2014'!H25+'[2]INSIncome1-4_2014'!J25*'[2]MOD2015-contrakt'!K32+'[2]MOD2015-contrakt'!L32*'[2]INSIncome1-4_2014'!L25+'[2]INSIncome1-4_2014'!N25*'[2]MOD2015-contrakt'!M32+'[2]MOD2015-contrakt'!N32*'[2]INSIncome1-4_2014'!P25+'[2]INSIncome1-4_2014'!R25*'[2]MOD2015-contrakt'!O32+'[2]MOD2015-contrakt'!P32*'[2]INSIncome1-4_2014'!T25)/G32,0) -> 571.5642857 | T32: 0.006575968081 | U32: =H32/[2]MOD2014!E29-1 -> 0 | V32: =I32/[2]MOD2014!F29-1 -> 0 | W32: =J32/[2]MOD2014!G29-1 -> 0.008474576271 | X32: =K32/[2]MOD2014!H29-1 -> 0 | Y32: =L32/[2]MOD2014!I29-1 -> 0.03194103194 | Z32: =M32/[2]MOD2014!J29-1 -> -1 | AA32: =N32/[2]MOD2014!K29-1 -> 0.01020408163 | AB32: =O32/[2]MOD2014!L29-1 -> 0.01075268817 | AC32: =P32/[2]MOD2014!M29-1 -> 0.004784688995
A33: 24 | C33: 0 | D33: C | E33: 11.07 | F33: Производство на безалкохолни напитки, минерални и други бутилирани води | G33: =IF(B33<>0,'[2]INSIncome1-4_2014'!E116,0) -> 0 | R33: =IF(B33<>0,([2]MOD2014!E30*'[2]INSIncome1-4_2014'!D26+'[2]INSIncome1-4_2014'!F26*[2]MOD2014!F30+[2]MOD2014!G30*'[2]INSIncome1-4_2014'!H26+'[2]INSIncome1-4_2014'!J26*[2]MOD2014!H30+[2]MOD2014!I30*'[2]INSIncome1-4_2014'!L26+'[2]INSIncome1-4_2014'!N26*[2]MOD2014!J30+[2]MOD2014!K30*'[2]INSIncome1-4_2014'!P26+'[2]INSIncome1-4_2014'!R26*[2]MOD2014!L30+[2]MOD2014!M30*'[2]INSIncome1-4_2014'!T26)/G33,0) -> 0 | S33: =IF(B33<>0,(H33*'[2]INSIncome1-4_2014'!D26+'[2]INSIncome1-4_2014'!F26*'[2]MOD2015-contrakt'!I33+'[2]MOD2015-contrakt'!J33*'[2]INSIncome1-4_2014'!H26+'[2]INSIncome1-4_2014'!J26*'[2]MOD2015-contrakt'!K33+'[2]MOD2015-contrakt'!L33*'[2]INSIncome1-4_2014'!L26+'[2]INSIncome1-4_2014'!N26*'[2]MOD2015-contrakt'!M33+'[2]MOD2015-contrakt'!N33*'[2]INSIncome1-4_2014'!P26+'[2]INSIncome1-4_2014'!R26*'[2]MOD2015-contrakt'!O33+'[2]MOD2015-contrakt'!P33*'[2]INSIncome1-4_2014'!T26)/G33,0) -> 0 | T33: 0 | U33: =H33/[2]MOD2014!E30-1 -> -1 | V33: =I33/[2]MOD2014!F30-1 -> -1 | W33: =J33/[2]MOD2014!G30-1 -> -1 | X33: =K33/[2]MOD2014!H30-1 -> -1 | Y33: =L33/[2]MOD2014!I30-1 -> -1 | Z33: =M33/[2]MOD2014!J30-1 -> -1 | AA33: =N33/[2]MOD2014!K30-1 -> -1 | AB33: =O33/[2]MOD2014!L30-1 -> -1 | AC33: =P33/[2]MOD2014!M30-1 -> -1
A34: 25 | C34: 0 | D34: C | E34: 12 | F34: Производство на тютюневи изделия | G34: =IF(B34<>0,'[2]INSIncome1-4_2014'!E117,0) -> 0 | R34: =IF(B34<>0,([2]MOD2014!E31*'[2]INSIncome1-4_2014'!D27+'[2]INSIncome1-4_2014'!F27*[2]MOD2014!F31+[2]MOD2014!G31*'[2]INSIncome1-4_2014'!H27+'[2]INSIncome1-4_2014'!J27*[2]MOD2014!H31+[2]MOD2014!I31*'[2]INSIncome1-4_2014'!L27+'[2]INSIncome1-4_2014'!N27*[2]MOD2014!J31+[2]MOD2014!K31*'[2]INSIncome1-4_2014'!P27+'[2]INSIncome1-4_2014'!R27*[2]MOD2014!L31+[2]MOD2014!M31*'[2]INSIncome1-4_2014'!T27)/G34,0) -> 0 | S34: =IF(B34<>0,(H34*'[2]INSIncome1-4_2014'!D27+'[2]INSIncome1-4_2014'!F27*'[2]MOD2015-contrakt'!I34+'[2]MOD2015-contrakt'!J34*'[2]INSIncome1-4_2014'!H27+'[2]INSIncome1-4_2014'!J27*'[2]MOD2015-contrakt'!K34+'[2]MOD2015-contrakt'!L34*'[2]INSIncome1-4_2014'!L27+'[2]INSIncome1-4_2014'!N27*'[2]MOD2015-contrakt'!M34+'[2]MOD2015-contrakt'!N34*'[2]INSIncome1-4_2014'!P27+'[2]INSIncome1-4_2014'!R27*'[2]MOD2015-contrakt'!O34+'[2]MOD2015-contrakt'!P34*'[2]INSIncome1-4_2014'!T27)/G34,0) -> 0 | T34: 0 | U34: =H34/[2]MOD2014!E31-1 -> -1 | V34: =I34/[2]MOD2014!F31-1 -> -1 | W34: =J34/[2]MOD2014!G31-1 -> -1 | X34: =K34/[2]MOD2014!H31-1 -> -1 | Y34: =L34/[2]MOD2014!I31-1 -> -1 | Z34: =M34/[2]MOD2014!J31-1 -> -1 | AA34: =N34/[2]MOD2014!K31-1 -> -1 | AB34: =O34/[2]MOD2014!L31-1 -> -1 | AC34: =P34/[2]MOD2014!M31-1 -> -1
A35: 26 | C35: 0 | D35: C | E35: 13 | F35: Производство на текстил и изделия от текстил, без облекло | G35: =IF(B35<>0,'[2]INSIncome1-4_2014'!E118,0) -> 0 | R35: =IF(B35<>0,([2]MOD2014!E32*'[2]INSIncome1-4_2014'!D28+'[2]INSIncome1-4_2014'!F28*[2]MOD2014!F32+[2]MOD2014!G32*'[2]INSIncome1-4_2014'!H28+'[2]INSIncome1-4_2014'!J28*[2]MOD2014!H32+[2]MOD2014!I32*'[2]INSIncome1-4_2014'!L28+'[2]INSIncome1-4_2014'!N28*[2]MOD2014!J32+[2]MOD2014!K32*'[2]INSIncome1-4_2014'!P28+'[2]INSIncome1-4_2014'!R28*[2]MOD2014!L32+[2]MOD2014!M32*'[2]INSIncome1-4_2014'!T28)/G35,0) -> 0 | S35: =IF(B35<>0,(H35*'[2]INSIncome1-4_2014'!D28+'[2]INSIncome1-4_2014'!F28*'[2]MOD2015-contrakt'!I35+'[2]MOD2015-contrakt'!J35*'[2]INSIncome1-4_2014'!H28+'[2]INSIncome1-4_2014'!J28*'[2]MOD2015-contrakt'!K35+'[2]MOD2015-contrakt'!L35*'[2]INSIncome1-4_2014'!L28+'[2]INSIncome1-4_2014'!N28*'[2]MOD2015-contrakt'!M35+'[2]MOD2015-contrakt'!N35*'[2]INSIncome1-4_2014'!P28+'[2]INSIncome1-4_2014'!R28*'[2]MOD2015-contrakt'!O35+'[2]MOD2015-contrakt'!P35*'[2]INSIncome1-4_2014'!T28)/G35,0) -> 0 | T35: 0 | U35: =H35/[2]MOD2014!E32-1 -> -1 | V35: =I35/[2]MOD2014!F32-1 -> -1 | W35: =J35/[2]MOD2014!G32-1 -> -1 | X35: =K35/[2]MOD2014!H32-1 -> -1 | Y35: =L35/[2]MOD2014!I32-1 -> -1 | Z35: =M35/[2]MOD2014!J32-1 -> -1 | AA35: =N35/[2]MOD2014!K32-1 -> -1 | AB35: =O35/[2]MOD2014!L32-1 -> -1 | AC35: =P35/[2]MOD2014!M32-1 -> -1
A36: 27 | C36: 0 | D36: C | E36: 14 без 14.3 | F36: Производство на облекло | G36: =IF(B36<>0,'[2]INSIncome1-4_2014'!E119,0) -> 0 | R36: =IF(B36<>0,([2]MOD2014!E33*'[2]INSIncome1-4_2014'!D29+'[2]INSIncome1-4_2014'!F29*[2]MOD2014!F33+[2]MOD2014!G33*'[2]INSIncome1-4_2014'!H29+'[2]INSIncome1-4_2014'!J29*[2]MOD2014!H33+[2]MOD2014!I33*'[2]INSIncome1-4_2014'!L29+'[2]INSIncome1-4_2014'!N29*[2]MOD2014!J33+[2]MOD2014!K33*'[2]INSIncome1-4_2014'!P29+'[2]INSIncome1-4_2014'!R29*[2]MOD2014!L33+[2]MOD2014!M33*'[2]INSIncome1-4_2014'!T29)/G36,0) -> 0 | S36: =IF(B36<>0,(H36*'[2]INSIncome1-4_2014'!D29+'[2]INSIncome1-4_2014'!F29*'[2]MOD2015-contrakt'!I36+'[2]MOD2015-contrakt'!J36*'[2]INSIncome1-4_2014'!H29+'[2]INSIncome1-4_2014'!J29*'[2]MOD2015-contrakt'!K36+'[2]MOD2015-contrakt'!L36*'[2]INSIncome1-4_2014'!L29+'[2]INSIncome1-4_2014'!N29*'[2]MOD2015-contrakt'!M36+'[2]MOD2015-contrakt'!N36*'[2]INSIncome1-4_2014'!P29+'[2]INSIncome1-4_2014'!R29*'[2]MOD2015-contrakt'!O36+'[2]MOD2015-contrakt'!P36*'[2]INSIncome1-4_2014'!T29)/G36,0) -> 0 | T36: 0 | U36: =H36/[2]MOD2014!E33-1 -> -1 | V36: =I36/[2]MOD2014!F33-1 -> -1 | W36: =J36/[2]MOD2014!G33-1 -> -1 | X36: =K36/[2]MOD2014!H33-1 -> -1 | Y36: =L36/[2]MOD2014!I33-1 -> -1 | Z36: =M36/[2]MOD2014!J33-1 -> -1 | AA36: =N36/[2]MOD2014!K33-1 -> -1 | AB36: =O36/[2]MOD2014!L33-1 -> -1 | AC36: =P36/[2]MOD2014!M33-1 -> -1
A37: 28 | C37: 0 | D37: C | E37: 14.3 | F37: Производство на други трикотажни изделия | G37: =IF(B37<>0,'[2]INSIncome1-4_2014'!E120,0) -> 0 | R37: =IF(B37<>0,([2]MOD2014!E34*'[2]INSIncome1-4_2014'!D30+'[2]INSIncome1-4_2014'!F30*[2]MOD2014!F34+[2]MOD2014!G34*'[2]INSIncome1-4_2014'!H30+'[2]INSIncome1-4_2014'!J30*[2]MOD2014!H34+[2]MOD2014!I34*'[2]INSIncome1-4_2014'!L30+'[2]INSIncome1-4_2014'!N30*[2]MOD2014!J34+[2]MOD2014!K34*'[2]INSIncome1-4_2014'!P30+'[2]INSIncome1-4_2014'!R30*[2]MOD2014!L34+[2]MOD2014!M34*'[2]INSIncome1-4_2014'!T30)/G37,0) -> 0 | S37: =IF(B37<>0,(H37*'[2]INSIncome1-4_2014'!D30+'[2]INSIncome1-4_2014'!F30*'[2]MOD2015-contrakt'!I37+'[2]MOD2015-contrakt'!J37*'[2]INSIncome1-4_2014'!H30+'[2]INSIncome1-4_2014'!J30*'[2]MOD2015-contrakt'!K37+'[2]MOD2015-contrakt'!L37*'[2]INSIncome1-4_2014'!L30+'[2]INSIncome1-4_2014'!N30*'[2]MOD2015-contrakt'!M37+'[2]MOD2015-contrakt'!N37*'[2]INSIncome1-4_2014'!P30+'[2]INSIncome1-4_2014'!R30*'[2]MOD2015-contrakt'!O37+'[2]MOD2015-contrakt'!P37*'[2]INSIncome1-4_2014'!T30)/G37,0) -> 0 | T37: 0 | U37: =H37/[2]MOD2014!E34-1 -> -1 | V37: =I37/[2]MOD2014!F34-1 -> -1 | W37: =J37/[2]MOD2014!G34-1 -> -1 | X37: =K37/[2]MOD2014!H34-1 -> -1 | Y37: =L37/[2]MOD2014!I34-1 -> -1 | Z37: =M37/[2]MOD2014!J34-1 -> -1 | AA37: =N37/[2]MOD2014!K34-1 -> -1 | AB37: =O37/[2]MOD2014!L34-1 -> -1 | AC37: =P37/[2]MOD2014!M34-1 -> -1
A38: 29 | C38: 0 | D38: C | E38: 15 | F38: Обработка на кожи; производство на обувки и други изделия от обработени кожи без косъм | G38: =IF(B38<>0,'[2]INSIncome1-4_2014'!E121,0) -> 0 | R38: =IF(B38<>0,([2]MOD2014!E35*'[2]INSIncome1-4_2014'!D31+'[2]INSIncome1-4_2014'!F31*[2]MOD2014!F35+[2]MOD2014!G35*'[2]INSIncome1-4_2014'!H31+'[2]INSIncome1-4_2014'!J31*[2]MOD2014!H35+[2]MOD2014!I35*'[2]INSIncome1-4_2014'!L31+'[2]INSIncome1-4_2014'!N31*[2]MOD2014!J35+[2]MOD2014!K35*'[2]INSIncome1-4_2014'!P31+'[2]INSIncome1-4_2014'!R31*[2]MOD2014!L35+[2]MOD2014!M35*'[2]INSIncome1-4_2014'!T31)/G38,0) -> 0 | S38: =IF(B38<>0,(H38*'[2]INSIncome1-4_2014'!D31+'[2]INSIncome1-4_2014'!F31*'[2]MOD2015-contrakt'!I38+'[2]MOD2015-contrakt'!J38*'[2]INSIncome1-4_2014'!H31+'[2]INSIncome1-4_2014'!J31*'[2]MOD2015-contrakt'!K38+'[2]MOD2015-contrakt'!L38*'[2]INSIncome1-4_2014'!L31+'[2]INSIncome1-4_2014'!N31*'[2]MOD2015-contrakt'!M38+'[2]MOD2015-contrakt'!N38*'[2]INSIncome1-4_2014'!P31+'[2]INSIncome1-4_2014'!R31*'[2]MOD2015-contrakt'!O38+'[2]MOD2015-contrakt'!P38*'[2]INSIncome1-4_2014'!T31)/G38,0) -> 0 | T38: 0 | U38: =H38/[2]MOD2014!E35-1 -> -1 | V38: =I38/[2]MOD2014!F35-1 -> -1 | W38: =J38/[2]MOD2014!G35-1 -> -1 | X38: =K38/[2]MOD2014!H35-1 -> -1 | Y38: =L38/[2]MOD2014!I35-1 -> -1 | Z38: =M38/[2]MOD2014!J35-1 -> -1 | AA38: =N38/[2]MOD2014!K35-1 -> -1 | AB38: =O38/[2]MOD2014!L35-1 -> -1 | AC38: =P38/[2]MOD2014!M35-1 -> -1
A39: 30 | B39: споразумение | C39: 0.08944190152 | D39: C | E39: 16 | F39: Производство на дървен материал и изделия от дървен материал и корк, без мебели; производство на изделия от слама и материали за плетене | G39: =IF(B39<>0,'[2]INSIncome1-4_2014'!E122,0) -> 16595 | H39: 550 | I39: 430 | J39: 390 | K39: 340 | L39: 340 | M39: 340 | N39: 400 | O39: 390 | P39: 340 | R39: =IF(B39<>0,([2]MOD2014!E36*'[2]INSIncome1-4_2014'!D32+'[2]INSIncome1-4_2014'!F32*[2]MOD2014!F36+[2]MOD2014!G36*'[2]INSIncome1-4_2014'!H32+'[2]INSIncome1-4_2014'!J32*[2]MOD2014!H36+[2]MOD2014!I36*'[2]INSIncome1-4_2014'!L32+'[2]INSIncome1-4_2014'!N32*[2]MOD2014!J36+[2]MOD2014!K36*'[2]INSIncome1-4_2014'!P32+'[2]INSIncome1-4_2014'!R32*[2]MOD2014!L36+[2]MOD2014!M36*'[2]INSIncome1-4_2014'!T32)/G39,0) -> 352.9502862 | S39: =IF(B39<>0,(H39*'[2]INSIncome1-4_2014'!D32+'[2]INSIncome1-4_2014'!F32*'[2]MOD2015-contrakt'!I39+'[2]MOD2015-contrakt'!J39*'[2]INSIncome1-4_2014'!H32+'[2]INSIncome1-4_2014'!J32*'[2]MOD2015-contrakt'!K39+'[2]MOD2015-contrakt'!L39*'[2]INSIncome1-4_2014'!L32+'[2]INSIncome1-4_2014'!N32*'[2]MOD2015-contrakt'!M39+'[2]MOD2015-contrakt'!N39*'[2]INSIncome1-4_2014'!P32+'[2]INSIncome1-4_2014'!R32*'[2]MOD2015-contrakt'!O39+'[2]MOD2015-contrakt'!P39*'[2]INSIncome1-4_2014'!T32)/G39,0) -> 384.518831 | T39: 0.08944190152 | U39: =H39/[2]MOD2014!E36-1 -> 0.05769230769 | V39: =I39/[2]MOD2014!F36-1 -> 0.0487804878 | W39: =J39/[2]MOD2014!G36-1 -> 0.05405405405 | X39: =K39/[2]MOD2014!H36-1 -> 0 | Y39: =L39/[2]MOD2014!I36-1 -> 0 | Z39: =M39/[2]MOD2014!J36-1 -> 0 | AA39: =N39/[2]MOD2014!K36-1 -> 0.1764705882 | AB39: =O39/[2]MOD2014!L36-1 -> 0.1470588235 | AC39: =P39/[2]MOD2014!M36-1 -> 0
A40: 31 | B40: споразумение | C40: 0.03732678757 | D40: C | E40: 17 | F40: Производство на хартия, картон и изделия от хартия и картон | G40: =IF(B40<>0,'[2]INSIncome1-4_2014'!E123,0) -> 8386 | H40: 795 | I40: 590 | J40: 530 | K40: 380 | L40: 340 | N40: 490 | O40: 410 | P40: 340 | R40: =IF(B40<>0,([2]MOD2014!E37*'[2]INSIncome1-4_2014'!D33+'[2]INSIncome1-4_2014'!F33*[2]MOD2014!F37+[2]MOD2014!G37*'[2]INSIncome1-4_2014'!H33+'[2]INSIncome1-4_2014'!J33*[2]MOD2014!H37+[2]MOD2014!I37*'[2]INSIncome1-4_2014'!L33+'[2]INSIncome1-4_2014'!N33*[2]MOD2014!J37+[2]MOD2014!K37*'[2]INSIncome1-4_2014'!P33+'[2]INSIncome1-4_2014'!R33*[2]MOD2014!L37+[2]MOD2014!M37*'[2]INSIncome1-4_2014'!T33)/G40,0) -> 425.8001431 | S40: =IF(B40<>0,(H40*'[2]INSIncome1-4_2014'!D33+'[2]INSIncome1-4_2014'!F33*'[2]MOD2015-contrakt'!I40+'[2]MOD2015-contrakt'!J40*'[2]INSIncome1-4_2014'!H33+'[2]INSIncome1-4_2014'!J33*'[2]MOD2015-contrakt'!K40+'[2]MOD2015-contrakt'!L40*'[2]INSIncome1-4_2014'!L33+'[2]INSIncome1-4_2014'!N33*'[2]MOD2015-contrakt'!M40+'[2]MOD2015-contrakt'!N40*'[2]INSIncome1-4_2014'!P33+'[2]INSIncome1-4_2014'!R33*'[2]MOD2015-contrakt'!O40+'[2]MOD2015-contrakt'!P40*'[2]INSIncome1-4_2014'!T33)/G40,0) -> 441.6938946 | T40: 0.03732678757 | U40: =H40/[2]MOD2014!E37-1 -> 0.01923076923 | V40: =I40/[2]MOD2014!F37-1 -> 0.01724137931 | W40: =J40/[2]MOD2014!G37-1 -> 0.01923076923 | X40: =K40/[2]MOD2014!H37-1 -> 0.02702702703 | Y40: =L40/[2]MOD2014!I37-1 -> 0 | Z40: =M40/[2]MOD2014!J37-1 -> -1 | AA40: =N40/[2]MOD2014!K37-1 -> 0.0652173913 | AB40: =O40/[2]MOD2014!L37-1 -> 0.07894736842 | AC40: =P40/[2]MOD2014!M37-1 -> 0
A41: 32 | C41: 0 | D41: C, J | E41: 18, 58 и 59 | F41: Печатна дейност и възпроизвеждане на записани носители ;Издателска дейност; Производство на филми и телевизионни предавания, звукозаписване и издаване на музика | G41: =IF(B41<>0,'[2]INSIncome1-4_2014'!E124,0) -> 0 | R41: =IF(B41<>0,([2]MOD2014!E38*'[2]INSIncome1-4_2014'!D34+'[2]INSIncome1-4_2014'!F34*[2]MOD2014!F38+[2]MOD2014!G38*'[2]INSIncome1-4_2014'!H34+'[2]INSIncome1-4_2014'!J34*[2]MOD2014!H38+[2]MOD2014!I38*'[2]INSIncome1-4_2014'!L34+'[2]INSIncome1-4_2014'!N34*[2]MOD2014!J38+[2]MOD2014!K38*'[2]INSIncome1-4_2014'!P34+'[2]INSIncome1-4_2014'!R34*[2]MOD2014!L38+[2]MOD2014!M38*'[2]INSIncome1-4_2014'!T34)/G41,0) -> 0 | S41: =IF(B41<>0,(H41*'[2]INSIncome1-4_2014'!D34+'[2]INSIncome1-4_2014'!F34*'[2]MOD2015-contrakt'!I41+'[2]MOD2015-contrakt'!J41*'[2]INSIncome1-4_2014'!H34+'[2]INSIncome1-4_2014'!J34*'[2]MOD2015-contrakt'!K41+'[2]MOD2015-contrakt'!L41*'[2]INSIncome1-4_2014'!L34+'[2]INSIncome1-4_2014'!N34*'[2]MOD2015-contrakt'!M41+'[2]MOD2015-contrakt'!N41*'[2]INSIncome1-4_2014'!P34+'[2]INSIncome1-4_2014'!R34*'[2]MOD2015-contrakt'!O41+'[2]MOD2015-contrakt'!P41*'[2]INSIncome1-4_2014'!T34)/G41,0) -> 0 | T41: 0 | U41: =H41/[2]MOD2014!E38-1 -> -1 | V41: =I41/[2]MOD2014!F38-1 -> -1 | W41: =J41/[2]MOD2014!G38-1 -> -1 | X41: =K41/[2]MOD2014!H38-1 -> -1 | Y41: =L41/[2]MOD2014!I38-1 -> -1 | Z41: =M41/[2]MOD2014!J38-1 -> -1 | AA41: =N41/[2]MOD2014!K38-1 -> -1 | AB41: =O41/[2]MOD2014!L38-1 -> -1 | AC41: =P41/[2]MOD2014!M38-1 -> -1
A42: 33 | C42: 0 | D42: C | E42: 19 | F42: Производство на кокс и рафинирани нефтопродукти | G42: =IF(B42<>0,'[2]INSIncome1-4_2014'!E125,0) -> 0 | R42: =IF(B42<>0,([2]MOD2014!E39*'[2]INSIncome1-4_2014'!D35+'[2]INSIncome1-4_2014'!F35*[2]MOD2014!F39+[2]MOD2014!G39*'[2]INSIncome1-4_2014'!H35+'[2]INSIncome1-4_2014'!J35*[2]MOD2014!H39+[2]MOD2014!I39*'[2]INSIncome1-4_2014'!L35+'[2]INSIncome1-4_2014'!N35*[2]MOD2014!J39+[2]MOD2014!K39*'[2]INSIncome1-4_2014'!P35+'[2]INSIncome1-4_2014'!R35*[2]MOD2014!L39+[2]MOD2014!M39*'[2]INSIncome1-4_2014'!T35)/G42,0) -> 0 | S42: =IF(B42<>0,(H42*'[2]INSIncome1-4_2014'!D35+'[2]INSIncome1-4_2014'!F35*'[2]MOD2015-contrakt'!I42+'[2]MOD2015-contrakt'!J42*'[2]INSIncome1-4_2014'!H35+'[2]INSIncome1-4_2014'!J35*'[2]MOD2015-contrakt'!K42+'[2]MOD2015-contrakt'!L42*'[2]INSIncome1-4_2014'!L35+'[2]INSIncome1-4_2014'!N35*'[2]MOD2015-contrakt'!M42+'[2]MOD2015-contrakt'!N42*'[2]INSIncome1-4_2014'!P35+'[2]INSIncome1-4_2014'!R35*'[2]MOD2015-contrakt'!O42+'[2]MOD2015-contrakt'!P42*'[2]INSIncome1-4_2014'!T35)/G42,0) -> 0 | T42: 0 | U42: =H42/[2]MOD2014!E39-1 -> -1 | V42: =I42/[2]MOD2014!F39-1 -> -1 | W42: =J42/[2]MOD2014!G39-1 -> -1 | X42: =K42/[2]MOD2014!H39-1 -> -1 | Y42: =L42/[2]MOD2014!I39-1 -> -1 | Z42: =M42/[2]MOD2014!J39-1 -> -1 | AA42: =N42/[2]MOD2014!K39-1 -> -1 | AB42: =O42/[2]MOD2014!L39-1 -> -1 | AC42: =P42/[2]MOD2014!M39-1 -> -1
A43: 34 | C43: 0 | D43: C | E43: 20 | F43: Производство на химични продукти | G43: =IF(B43<>0,'[2]INSIncome1-4_2014'!E126,0) -> 0 | R43: =IF(B43<>0,([2]MOD2014!E40*'[2]INSIncome1-4_2014'!D36+'[2]INSIncome1-4_2014'!F36*[2]MOD2014!F40+[2]MOD2014!G40*'[2]INSIncome1-4_2014'!H36+'[2]INSIncome1-4_2014'!J36*[2]MOD2014!H40+[2]MOD2014!I40*'[2]INSIncome1-4_2014'!L36+'[2]INSIncome1-4_2014'!N36*[2]MOD2014!J40+[2]MOD2014!K40*'[2]INSIncome1-4_2014'!P36+'[2]INSIncome1-4_2014'!R36*[2]MOD2014!L40+[2]MOD2014!M40*'[2]INSIncome1-4_2014'!T36)/G43,0) -> 0 | S43: =IF(B43<>0,(H43*'[2]INSIncome1-4_2014'!D36+'[2]INSIncome1-4_2014'!F36*'[2]MOD2015-contrakt'!I43+'[2]MOD2015-contrakt'!J43*'[2]INSIncome1-4_2014'!H36+'[2]INSIncome1-4_2014'!J36*'[2]MOD2015-contrakt'!K43+'[2]MOD2015-contrakt'!L43*'[2]INSIncome1-4_2014'!L36+'[2]INSIncome1-4_2014'!N36*'[2]MOD2015-contrakt'!M43+'[2]MOD2015-contrakt'!N43*'[2]INSIncome1-4_2014'!P36+'[2]INSIncome1-4_2014'!R36*'[2]MOD2015-contrakt'!O43+'[2]MOD2015-contrakt'!P43*'[2]INSIncome1-4_2014'!T36)/G43,0) -> 0 | T43: 0 | U43: =H43/[2]MOD2014!E40-1 -> -1 | V43: =I43/[2]MOD2014!F40-1 -> -1 | W43: =J43/[2]MOD2014!G40-1 -> -1 | X43: =K43/[2]MOD2014!H40-1 -> -1 | Y43: =L43/[2]MOD2014!I40-1 -> -1 | Z43: =M43/[2]MOD2014!J40-1 -> -1 | AA43: =N43/[2]MOD2014!K40-1 -> -1 | AB43: =O43/[2]MOD2014!L40-1 -> -1 | AC43: =P43/[2]MOD2014!M40-1 -> -1
A44: 35 | C44: 0 | D44: C | E44: 21 | F44: Производство на лекарствени вещества и продукти | G44: =IF(B44<>0,'[2]INSIncome1-4_2014'!E127,0) -> 0 | R44: =IF(B44<>0,([2]MOD2014!E41*'[2]INSIncome1-4_2014'!D37+'[2]INSIncome1-4_2014'!F37*[2]MOD2014!F41+[2]MOD2014!G41*'[2]INSIncome1-4_2014'!H37+'[2]INSIncome1-4_2014'!J37*[2]MOD2014!H41+[2]MOD2014!I41*'[2]INSIncome1-4_2014'!L37+'[2]INSIncome1-4_2014'!N37*[2]MOD2014!J41+[2]MOD2014!K41*'[2]INSIncome1-4_2014'!P37+'[2]INSIncome1-4_2014'!R37*[2]MOD2014!L41+[2]MOD2014!M41*'[2]INSIncome1-4_2014'!T37)/G44,0) -> 0 | S44: =IF(B44<>0,(H44*'[2]INSIncome1-4_2014'!D37+'[2]INSIncome1-4_2014'!F37*'[2]MOD2015-contrakt'!I44+'[2]MOD2015-contrakt'!J44*'[2]INSIncome1-4_2014'!H37+'[2]INSIncome1-4_2014'!J37*'[2]MOD2015-contrakt'!K44+'[2]MOD2015-contrakt'!L44*'[2]INSIncome1-4_2014'!L37+'[2]INSIncome1-4_2014'!N37*'[2]MOD2015-contrakt'!M44+'[2]MOD2015-contrakt'!N44*'[2]INSIncome1-4_2014'!P37+'[2]INSIncome1-4_2014'!R37*'[2]MOD2015-contrakt'!O44+'[2]MOD2015-contrakt'!P44*'[2]INSIncome1-4_2014'!T37)/G44,0) -> 0 | T44: 0 | U44: =H44/[2]MOD2014!E41-1 -> -1 | V44: =I44/[2]MOD2014!F41-1 -> -1 | W44: =J44/[2]MOD2014!G41-1 -> -1 | X44: =K44/[2]MOD2014!H41-1 -> -1 | Y44: =L44/[2]MOD2014!I41-1 -> -1 | Z44: =M44/[2]MOD2014!J41-1 -> -1 | AA44: =N44/[2]MOD2014!K41-1 -> -1 | AB44: =O44/[2]MOD2014!L41-1 -> -1 | AC44: =P44/[2]MOD2014!M41-1 -> -1
A45: 36 | C45: 0 | D45: C | E45: 22 | F45: Производство на изделия от каучук и пластмаси | G45: =IF(B45<>0,'[2]INSIncome1-4_2014'!E128,0) -> 0 | R45: =IF(B45<>0,([2]MOD2014!E42*'[2]INSIncome1-4_2014'!D38+'[2]INSIncome1-4_2014'!F38*[2]MOD2014!F42+[2]MOD2014!G42*'[2]INSIncome1-4_2014'!H38+'[2]INSIncome1-4_2014'!J38*[2]MOD2014!H42+[2]MOD2014!I42*'[2]INSIncome1-4_2014'!L38+'[2]INSIncome1-4_2014'!N38*[2]MOD2014!J42+[2]MOD2014!K42*'[2]INSIncome1-4_2014'!P38+'[2]INSIncome1-4_2014'!R38*[2]MOD2014!L42+[2]MOD2014!M42*'[2]INSIncome1-4_2014'!T38)/G45,0) -> 0 | S45: =IF(B45<>0,(H45*'[2]INSIncome1-4_2014'!D38+'[2]INSIncome1-4_2014'!F38*'[2]MOD2015-contrakt'!I45+'[2]MOD2015-contrakt'!J45*'[2]INSIncome1-4_2014'!H38+'[2]INSIncome1-4_2014'!J38*'[2]MOD2015-contrakt'!K45+'[2]MOD2015-contrakt'!L45*'[2]INSIncome1-4_2014'!L38+'[2]INSIncome1-4_2014'!N38*'[2]MOD2015-contrakt'!M45+'[2]MOD2015-contrakt'!N45*'[2]INSIncome1-4_2014'!P38+'[2]INSIncome1-4_2014'!R38*'[2]MOD2015-contrakt'!O45+'[2]MOD2015-contrakt'!P45*'[2]INSIncome1-4_2014'!T38)/G45,0) -> 0 | T45: 0 | U45: =H45/[2]MOD2014!E42-1 -> -1 | V45: =I45/[2]MOD2014!F42-1 -> -1 | W45: =J45/[2]MOD2014!G42-1 -> -1 | X45: =K45/[2]MOD2014!H42-1 -> -1 | Y45: =L45/[2]MOD2014!I42-1 -> -1 | Z45: =M45/[2]MOD2014!J42-1 -> -1 | AA45: =N45/[2]MOD2014!K42-1 -> -1 | AB45: =O45/[2]MOD2014!L42-1 -> -1 | AC45: =P45/[2]MOD2014!M42-1 -> -1
A46: 37 | B46: споразумение | C46: 0.1252223636 | D46: C | E46: 23 | F46: Производство на изделия от други неметални минерални суровини | G46: =IF(B46<>0,'[2]INSIncome1-4_2014'!E129,0) -> 21554 | H46: 740 | I46: 600 | J46: 560 | K46: 350 | L46: 340 | M46: 340 | N46: 540 | O46: 540 | P46: 340 | R46: =IF(B46<>0,([2]MOD2014!E43*'[2]INSIncome1-4_2014'!D39+'[2]INSIncome1-4_2014'!F39*[2]MOD2014!F43+[2]MOD2014!G43*'[2]INSIncome1-4_2014'!H39+'[2]INSIncome1-4_2014'!J39*[2]MOD2014!H43+[2]MOD2014!I43*'[2]INSIncome1-4_2014'!L39+'[2]INSIncome1-4_2014'!N39*[2]MOD2014!J43+[2]MOD2014!K43*'[2]INSIncome1-4_2014'!P39+'[2]INSIncome1-4_2014'!R39*[2]MOD2014!L43+[2]MOD2014!M43*'[2]INSIncome1-4_2014'!T39)/G46,0) -> 446.9703071 | S46: =IF(B46<>0,(H46*'[2]INSIncome1-4_2014'!D39+'[2]INSIncome1-4_2014'!F39*'[2]MOD2015-contrakt'!I46+'[2]MOD2015-contrakt'!J46*'[2]INSIncome1-4_2014'!H39+'[2]INSIncome1-4_2014'!J39*'[2]MOD2015-contrakt'!K46+'[2]MOD2015-contrakt'!L46*'[2]INSIncome1-4_2014'!L39+'[2]INSIncome1-4_2014'!N39*'[2]MOD2015-contrakt'!M46+'[2]MOD2015-contrakt'!N46*'[2]INSIncome1-4_2014'!P39+'[2]INSIncome1-4_2014'!R39*'[2]MOD2015-contrakt'!O46+'[2]MOD2015-contrakt'!P46*'[2]INSIncome1-4_2014'!T39)/G46,0) -> 502.9409854 | T46: 0.1252223636 | U46: =H46/[2]MOD2014!E43-1 -> 0.1858974359 | V46: =I46/[2]MOD2014!F43-1 -> 0.2219959267 | W46: =J46/[2]MOD2014!G43-1 -> 0.2556053812 | X46: =K46/[2]MOD2014!H43-1 -> -0.09560723514 | Y46: =L46/[2]MOD2014!I43-1 -> -0.02578796562 | Z46: =M46/[2]MOD2014!J43-1 -> 0 | AA46: =N46/[2]MOD2014!K43-1 -> 0.09979633401 | AB46: =O46/[2]MOD2014!L43-1 -> 0.2 | AC46: =P46/[2]MOD2014!M43-1 -> -0.0395480226
A47: 38 | B47: споразумение | C47: 0.01867708009 | D47: C | E47: 24 без 24.5 | F47: Производство на основни метали | G47: =IF(B47<>0,'[2]INSIncome1-4_2014'!E130,0) -> 4450 | H47: 750 | I47: 520 | J47: 500 | K47: 360 | L47: 350 | N47: 460 | O47: 460 | P47: 350 | R47: =IF(B47<>0,([2]MOD2014!E44*'[2]INSIncome1-4_2014'!D40+'[2]INSIncome1-4_2014'!F40*[2]MOD2014!F44+[2]MOD2014!G44*'[2]INSIncome1-4_2014'!H40+'[2]INSIncome1-4_2014'!J40*[2]MOD2014!H44+[2]MOD2014!I44*'[2]INSIncome1-4_2014'!L40+'[2]INSIncome1-4_2014'!N40*[2]MOD2014!J44+[2]MOD2014!K44*'[2]INSIncome1-4_2014'!P40+'[2]INSIncome1-4_2014'!R40*[2]MOD2014!L44+[2]MOD2014!M44*'[2]INSIncome1-4_2014'!T40)/G47,0) -> 469 | S47: =IF(B47<>0,(H47*'[2]INSIncome1-4_2014'!D40+'[2]INSIncome1-4_2014'!F40*'[2]MOD2015-contrakt'!I47+'[2]MOD2015-contrakt'!J47*'[2]INSIncome1-4_2014'!H40+'[2]INSIncome1-4_2014'!J40*'[2]MOD2015-contrakt'!K47+'[2]MOD2015-contrakt'!L47*'[2]INSIncome1-4_2014'!L40+'[2]INSIncome1-4_2014'!N40*'[2]MOD2015-contrakt'!M47+'[2]MOD2015-contrakt'!N47*'[2]INSIncome1-4_2014'!P40+'[2]INSIncome1-4_2014'!R40*'[2]MOD2015-contrakt'!O47+'[2]MOD2015-contrakt'!P47*'[2]INSIncome1-4_2014'!T40)/G47,0) -> 477.7595506 | T47: 0.01867708009 | U47: =H47/[2]MOD2014!E44-1 -> 0 | V47: =I47/[2]MOD2014!F44-1 -> 0 | W47: =J47/[2]MOD2014!G44-1 -> 0.02040816327 | X47: =K47/[2]MOD2014!H44-1 -> 0.05882352941 | Y47: =L47/[2]MOD2014!I44-1 -> 0.02941176471 | Z47: =M47/[2]MOD2014!J44-1 -> -1 | AA47: =N47/[2]MOD2014!K44-1 -> 0.02222222222 | AB47: =O47/[2]MOD2014!L44-1 -> 0.02222222222 | AC47: =P47/[2]MOD2014!M44-1 -> 0.02941176471
A48: 39 | B48: споразумение | C48: 0.05012850134 | D48: C | E48: 24.5 | F48: Леене на метали | G48: =IF(B48<>0,'[2]INSIncome1-4_2014'!E131,0) -> 3665 | H48: 740 | I48: 520 | J48: 500 | K48: 380 | L48: 380 | M48: 380 | N48: 420 | O48: 440 | P48: 380 | R48: =IF(B48<>0,([2]MOD2014!E45*'[2]INSIncome1-4_2014'!D41+'[2]INSIncome1-4_2014'!F41*[2]MOD2014!F45+[2]MOD2014!G45*'[2]INSIncome1-4_2014'!H41+'[2]INSIncome1-4_2014'!J41*[2]MOD2014!H45+[2]MOD2014!I45*'[2]INSIncome1-4_2014'!L41+'[2]INSIncome1-4_2014'!N41*[2]MOD2014!J45+[2]MOD2014!K45*'[2]INSIncome1-4_2014'!P41+'[2]INSIncome1-4_2014'!R41*[2]MOD2014!L45+[2]MOD2014!M45*'[2]INSIncome1-4_2014'!T41)/G48,0) -> 420.420191 | S48: =IF(B48<>0,(H48*'[2]INSIncome1-4_2014'!D41+'[2]INSIncome1-4_2014'!F41*'[2]MOD2015-contrakt'!I48+'[2]MOD2015-contrakt'!J48*'[2]INSIncome1-4_2014'!H41+'[2]INSIncome1-4_2014'!J41*'[2]MOD2015-contrakt'!K48+'[2]MOD2015-contrakt'!L48*'[2]INSIncome1-4_2014'!L41+'[2]INSIncome1-4_2014'!N41*'[2]MOD2015-contrakt'!M48+'[2]MOD2015-contrakt'!N48*'[2]INSIncome1-4_2014'!P41+'[2]INSIncome1-4_2014'!R41*'[2]MOD2015-contrakt'!O48+'[2]MOD2015-contrakt'!P48*'[2]INSIncome1-4_2014'!T41)/G48,0) -> 441.4952251 | T48: 0.05012850134 | U48: =H48/[2]MOD2014!E45-1 -> 0 | V48: =I48/[2]MOD2014!F45-1 -> 0.04 | W48: =J48/[2]MOD2014!G45-1 -> 0.04166666667 | X48: =K48/[2]MOD2014!H45-1 -> 0.1014492754 | Y48: =L48/[2]MOD2014!I45-1 -> 0.1176470588 | Z48: =M48/[2]MOD2014!J45-1 -> 0.1176470588 | AA48: =N48/[2]MOD2014!K45-1 -> 0.05 | AB48: =O48/[2]MOD2014!L45-1 -> 0.02325581395 | AC48: =P48/[2]MOD2014!M45-1 -> 0.1176470588
A49: 40 | B49: споразумение | C49: 0.04012654861 | D49: C | E49: 25 без 25.4 | F49: Производство на метални изделия, без машини и оборудване | G49: =IF(B49<>0,'[2]INSIncome1-4_2014'!E132,0) -> 48386 | H49: 700 | I49: 480 | J49: 450 | K49: 380 | L49: 380 | M49: 380 | N49: 400 | O49: 400 | P49: 380 | R49: =IF(B49<>0,([2]MOD2014!E46*'[2]INSIncome1-4_2014'!D42+'[2]INSIncome1-4_2014'!F42*[2]MOD2014!F46+[2]MOD2014!G46*'[2]INSIncome1-4_2014'!H42+'[2]INSIncome1-4_2014'!J42*[2]MOD2014!H46+[2]MOD2014!I46*'[2]INSIncome1-4_2014'!L42+'[2]INSIncome1-4_2014'!N42*[2]MOD2014!J46+[2]MOD2014!K46*'[2]INSIncome1-4_2014'!P42+'[2]INSIncome1-4_2014'!R42*[2]MOD2014!L46+[2]MOD2014!M46*'[2]INSIncome1-4_2014'!T42)/G49,0) -> 407.5659282 | S49: =IF(B49<>0,(H49*'[2]INSIncome1-4_2014'!D42+'[2]INSIncome1-4_2014'!F42*'[2]MOD2015-contrakt'!I49+'[2]MOD2015-contrakt'!J49*'[2]INSIncome1-4_2014'!H42+'[2]INSIncome1-4_2014'!J42*'[2]MOD2015-contrakt'!K49+'[2]MOD2015-contrakt'!L49*'[2]INSIncome1-4_2014'!L42+'[2]INSIncome1-4_2014'!N42*'[2]MOD2015-contrakt'!M49+'[2]MOD2015-contrakt'!N49*'[2]INSIncome1-4_2014'!P42+'[2]INSIncome1-4_2014'!R42*'[2]MOD2015-contrakt'!O49+'[2]MOD2015-contrakt'!P49*'[2]INSIncome1-4_2014'!T42)/G49,0) -> 423.9201422 | T49: 0.04012654861 | U49: =H49/[2]MOD2014!E46-1 -> 0 | V49: =I49/[2]MOD2014!F46-1 -> 0.04347826087 | W49: =J49/[2]MOD2014!G46-1 -> 0.02272727273 | X49: =K49/[2]MOD2014!H46-1 -> 0.1014492754 | Y49: =L49/[2]MOD2014!I46-1 -> 0.1176470588 | Z49: =M49/[2]MOD2014!J46-1 -> 0.1176470588 | AA49: =N49/[2]MOD2014!K46-1 -> 0.02564102564 | AB49: =O49/[2]MOD2014!L46-1 -> 0.02564102564 | AC49: =P49/[2]MOD2014!M46-1 -> 0.1176470588
A50: 41 | B50: споразумение | C50: 0.1130019862 | D50: C | E50: 26 | F50: Производство на компютърна и комуникационна техника, електронни и оптични продукти. | G50: =IF(B50<>0,'[2]INSIncome1-4_2014'!E133,0) -> 8311 | H50: 690 | I50: 590 | J50: 510 | K50: 380 | L50: 380 | M50: 380 | N50: 500 | O50: 490 | P50: 380 | R50: =IF(B50<>0,([2]MOD2014!E47*'[2]INSIncome1-4_2014'!D43+'[2]INSIncome1-4_2014'!F43*[2]MOD2014!F47+[2]MOD2014!G47*'[2]INSIncome1-4_2014'!H43+'[2]INSIncome1-4_2014'!J43*[2]MOD2014!H47+[2]MOD2014!I47*'[2]INSIncome1-4_2014'!L43+'[2]INSIncome1-4_2014'!N43*[2]MOD2014!J47+[2]MOD2014!K47*'[2]INSIncome1-4_2014'!P43+'[2]INSIncome1-4_2014'!R43*[2]MOD2014!L47+[2]MOD2014!M47*'[2]INSIncome1-4_2014'!T43)/G50,0) -> 453.1392131 | S50: =IF(B50<>0,(H50*'[2]INSIncome1-4_2014'!D43+'[2]INSIncome1-4_2014'!F43*'[2]MOD2015-contrakt'!I50+'[2]MOD2015-contrakt'!J50*'[2]INSIncome1-4_2014'!H43+'[2]INSIncome1-4_2014'!J43*'[2]MOD2015-contrakt'!K50+'[2]MOD2015-contrakt'!L50*'[2]INSIncome1-4_2014'!L43+'[2]INSIncome1-4_2014'!N43*'[2]MOD2015-contrakt'!M50+'[2]MOD2015-contrakt'!N50*'[2]INSIncome1-4_2014'!P43+'[2]INSIncome1-4_2014'!R43*'[2]MOD2015-contrakt'!O50+'[2]MOD2015-contrakt'!P50*'[2]INSIncome1-4_2014'!T43)/G50,0) -> 504.3448442 | T50: 0.1130019862 | U50: =H50/[2]MOD2014!E47-1 -> 0.04545454545 | V50: =I50/[2]MOD2014!F47-1 -> 0.07272727273 | W50: =J50/[2]MOD2014!G47-1 -> 0.08510638298 | X50: =K50/[2]MOD2014!H47-1 -> 0.1176470588 | Y50: =L50/[2]MOD2014!I47-1 -> 0.1176470588 | Z50: =M50/[2]MOD2014!J47-1 -> 0.1176470588 | AA50: =N50/[2]MOD2014!K47-1 -> 0.1627906977 | AB50: =O50/[2]MOD2014!L47-1 -> 0.1395348837 | AC50: =P50/[2]MOD2014!M47-1 -> 0.1176470588
A51: 42 | B51: споразумение | C51: 0.1262107019 | D51: C | E51: 27 | F51: Производство на електрически съоръжения | G51: =IF(B51<>0,'[2]INSIncome1-4_2014'!E134,0) -> 21375 | H51: 690 | I51: 590 | J51: 510 | K51: 380 | L51: 380 | M51: 380 | N51: 500 | O51: 490 | P51: 380 | R51: =IF(B51<>0,([2]MOD2014!E48*'[2]INSIncome1-4_2014'!D44+'[2]INSIncome1-4_2014'!F44*[2]MOD2014!F48+[2]MOD2014!G48*'[2]INSIncome1-4_2014'!H44+'[2]INSIncome1-4_2014'!J44*[2]MOD2014!H48+[2]MOD2014!I48*'[2]INSIncome1-4_2014'!L44+'[2]INSIncome1-4_2014'!N44*[2]MOD2014!J48+[2]MOD2014!K48*'[2]INSIncome1-4_2014'!P44+'[2]INSIncome1-4_2014'!R44*[2]MOD2014!L48+[2]MOD2014!M48*'[2]INSIncome1-4_2014'!T44)/G51,0) -> 438.4388304 | S51: =IF(B51<>0,(H51*'[2]INSIncome1-4_2014'!D44+'[2]INSIncome1-4_2014'!F44*'[2]MOD2015-contrakt'!I51+'[2]MOD2015-contrakt'!J51*'[2]INSIncome1-4_2014'!H44+'[2]INSIncome1-4_2014'!J44*'[2]MOD2015-contrakt'!K51+'[2]MOD2015-contrakt'!L51*'[2]INSIncome1-4_2014'!L44+'[2]INSIncome1-4_2014'!N44*'[2]MOD2015-contrakt'!M51+'[2]MOD2015-contrakt'!N51*'[2]INSIncome1-4_2014'!P44+'[2]INSIncome1-4_2014'!R44*'[2]MOD2015-contrakt'!O51+'[2]MOD2015-contrakt'!P51*'[2]INSIncome1-4_2014'!T44)/G51,0) -> 493.7745029 | T51: 0.1262107019 | U51: =H51/[2]MOD2014!E48-1 -> 0.06153846154 | V51: =I51/[2]MOD2014!F48-1 -> 0.09259259259 | W51: =J51/[2]MOD2014!G48-1 -> 0.08510638298 | X51: =K51/[2]MOD2014!H48-1 -> 0.1176470588 | Y51: =L51/[2]MOD2014!I48-1 -> 0.1176470588 | Z51: =M51/[2]MOD2014!J48-1 -> 0.1176470588 | AA51: =N51/[2]MOD2014!K48-1 -> 0.1627906977 | AB51: =O51/[2]MOD2014!L48-1 -> 0.1395348837 | AC51: =P51/[2]MOD2014!M48-1 -> 0.1176470588
A52: 43 | B52: споразумение | C52: 0.02958885758 | D52: C | E52: 28 без 28.11; 25.4 | F52: Производство на машини и оборудване с общо и специално предназначение; Производство на въоръжение и боеприпаси | G52: =IF(B52<>0,'[2]INSIncome1-4_2014'!E135,0) -> 34341 | H52: 800 | I52: 550 | J52: 500 | K52: 380 | L52: 380 | M52: 380 | N52: 480 | O52: 470 | P52: 380 | R52: =IF(B52<>0,([2]MOD2014!E49*'[2]INSIncome1-4_2014'!D45+'[2]INSIncome1-4_2014'!F45*[2]MOD2014!F49+[2]MOD2014!G49*'[2]INSIncome1-4_2014'!H45+'[2]INSIncome1-4_2014'!J45*[2]MOD2014!H49+[2]MOD2014!I49*'[2]INSIncome1-4_2014'!L45+'[2]INSIncome1-4_2014'!N45*[2]MOD2014!J49+[2]MOD2014!K49*'[2]INSIncome1-4_2014'!P45+'[2]INSIncome1-4_2014'!R45*[2]MOD2014!L49+[2]MOD2014!M49*'[2]INSIncome1-4_2014'!T45)/G52,0) -> 479.9475845 | S52: =IF(B52<>0,(H52*'[2]INSIncome1-4_2014'!D45+'[2]INSIncome1-4_2014'!F45*'[2]MOD2015-contrakt'!I52+'[2]MOD2015-contrakt'!J52*'[2]INSIncome1-4_2014'!H45+'[2]INSIncome1-4_2014'!J45*'[2]MOD2015-contrakt'!K52+'[2]MOD2015-contrakt'!L52*'[2]INSIncome1-4_2014'!L45+'[2]INSIncome1-4_2014'!N45*'[2]MOD2015-contrakt'!M52+'[2]MOD2015-contrakt'!N52*'[2]INSIncome1-4_2014'!P45+'[2]INSIncome1-4_2014'!R45*'[2]MOD2015-contrakt'!O52+'[2]MOD2015-contrakt'!P52*'[2]INSIncome1-4_2014'!T45)/G52,0) -> 494.1486852 | T52: 0.02958885758 | U52: =H52/[2]MOD2014!E49-1 -> 0 | V52: =I52/[2]MOD2014!F49-1 -> 0.03773584906 | W52: =J52/[2]MOD2014!G49-1 -> 0.04166666667 | X52: =K52/[2]MOD2014!H49-1 -> 0.05555555556 | Y52: =L52/[2]MOD2014!I49-1 -> 0.1176470588 | Z52: =M52/[2]MOD2014!J49-1 -> 0.1176470588 | AA52: =N52/[2]MOD2014!K49-1 -> 0.02127659574 | AB52: =O52/[2]MOD2014!L49-1 -> 0.02173913043 | AC52: =P52/[2]MOD2014!M49-1 -> 0.1176470588
A53: 44 | B53: споразумение | C53: 0.02479364585 | D53: C | E53: 28.11 | F53: Производство на турбини и двигатели, без авиационни, автомобилни и мотоциклетни | G53: =IF(B53<>0,'[2]INSIncome1-4_2014'!E136,0) -> 593 | H53: 920 | I53: 600 | J53: 600 | K53: 470 | L53: 380 | M53: 380 | N53: 510 | O53: 500 | P53: 380 | R53: =IF(B53<>0,([2]MOD2014!E50*'[2]INSIncome1-4_2014'!D46+'[2]INSIncome1-4_2014'!F46*[2]MOD2014!F50+[2]MOD2014!G50*'[2]INSIncome1-4_2014'!H46+'[2]INSIncome1-4_2014'!J46*[2]MOD2014!H50+[2]MOD2014!I50*'[2]INSIncome1-4_2014'!L46+'[2]INSIncome1-4_2014'!N46*[2]MOD2014!J50+[2]MOD2014!K50*'[2]INSIncome1-4_2014'!P46+'[2]INSIncome1-4_2014'!R46*[2]MOD2014!L50+[2]MOD2014!M50*'[2]INSIncome1-4_2014'!T46)/G53,0) -> 541.3996627 | S53: =IF(B53<>0,(H53*'[2]INSIncome1-4_2014'!D46+'[2]INSIncome1-4_2014'!F46*'[2]MOD2015-contrakt'!I53+'[2]MOD2015-contrakt'!J53*'[2]INSIncome1-4_2014'!H46+'[2]INSIncome1-4_2014'!J46*'[2]MOD2015-contrakt'!K53+'[2]MOD2015-contrakt'!L53*'[2]INSIncome1-4_2014'!L46+'[2]INSIncome1-4_2014'!N46*'[2]MOD2015-contrakt'!M53+'[2]MOD2015-contrakt'!N53*'[2]INSIncome1-4_2014'!P46+'[2]INSIncome1-4_2014'!R46*'[2]MOD2015-contrakt'!O53+'[2]MOD2015-contrakt'!P53*'[2]INSIncome1-4_2014'!T46)/G53,0) -> 554.8229342 | T53: 0.02479364585 | U53: =H53/[2]MOD2014!E50-1 -> 0 | V53: =I53/[2]MOD2014!F50-1 -> 0.03448275862 | W53: =J53/[2]MOD2014!G50-1 -> 0.03448275862 | X53: =K53/[2]MOD2014!H50-1 -> 0 | Y53: =L53/[2]MOD2014!I50-1 -> 0.1176470588 | Z53: =M53/[2]MOD2014!J50-1 -> 0.1176470588 | AA53: =N53/[2]MOD2014!K50-1 -> 0.02 | AB53: =O53/[2]MOD2014!L50-1 -> 0.02040816327 | AC53: =P53/[2]MOD2014!M50-1 -> 0.1176470588
A54: 45 | B54: споразумение | C54: 0.04518177596 | D54: C | E54: 29, 30 | F54: Производство на автомобили, ремаркета и полуремаркета; Производство на превозни средства, без автомобили | G54: =IF(B54<>0,'[2]INSIncome1-4_2014'!E137,0) -> 17614 | H54: 930 | I54: 620 | J54: 550 | K54: 380 | L54: 380 | M54: 380 | N54: 550 | O54: 450 | P54: 380 | R54: =IF(B54<>0,([2]MOD2014!E51*'[2]INSIncome1-4_2014'!D47+'[2]INSIncome1-4_2014'!F47*[2]MOD2014!F51+[2]MOD2014!G51*'[2]INSIncome1-4_2014'!H47+'[2]INSIncome1-4_2014'!J47*[2]MOD2014!H51+[2]MOD2014!I51*'[2]INSIncome1-4_2014'!L47+'[2]INSIncome1-4_2014'!N47*[2]MOD2014!J51+[2]MOD2014!K51*'[2]INSIncome1-4_2014'!P47+'[2]INSIncome1-4_2014'!R47*[2]MOD2014!L51+[2]MOD2014!M51*'[2]INSIncome1-4_2014'!T47)/G54,0) -> 454.6815033 | S54: =IF(B54<>0,(H54*'[2]INSIncome1-4_2014'!D47+'[2]INSIncome1-4_2014'!F47*'[2]MOD2015-contrakt'!I54+'[2]MOD2015-contrakt'!J54*'[2]INSIncome1-4_2014'!H47+'[2]INSIncome1-4_2014'!J47*'[2]MOD2015-contrakt'!K54+'[2]MOD2015-contrakt'!L54*'[2]INSIncome1-4_2014'!L47+'[2]INSIncome1-4_2014'!N47*'[2]MOD2015-contrakt'!M54+'[2]MOD2015-contrakt'!N54*'[2]INSIncome1-4_2014'!P47+'[2]INSIncome1-4_2014'!R47*'[2]MOD2015-contrakt'!O54+'[2]MOD2015-contrakt'!P54*'[2]INSIncome1-4_2014'!T47)/G54,0) -> 475.2248212 | T54: 0.04518177596 | U54: =H54/[2]MOD2014!E51-1 -> 0 | V54: =I54/[2]MOD2014!F51-1 -> 0.03333333333 | W54: =J54/[2]MOD2014!G51-1 -> 0.01851851852 | X54: =K54/[2]MOD2014!H51-1 -> 0.05555555556 | Y54: =L54/[2]MOD2014!I51-1 -> 0.1176470588 | Z54: =M54/[2]MOD2014!J51-1 -> 0.1176470588 | AA54: =N54/[2]MOD2014!K51-1 -> 0.01851851852 | AB54: =O54/[2]MOD2014!L51-1 -> 0.02272727273 | AC54: =P54/[2]MOD2014!M51-1 -> 0.1176470588
A55: 46 | B55: споразумение | C55: 0.1049497789 | D55: C | E55: 31 | F55: Производство на мебели | G55: =IF(B55<>0,'[2]INSIncome1-4_2014'!E138,0) -> 20849 | H55: 560 | I55: 425 | J55: 400 | K55: 350 | L55: 340 | M55: 340 | N55: 390 | O55: 390 | P55: 340 | R55: =IF(B55<>0,([2]MOD2014!E52*'[2]INSIncome1-4_2014'!D48+'[2]INSIncome1-4_2014'!F48*[2]MOD2014!F52+[2]MOD2014!G52*'[2]INSIncome1-4_2014'!H48+'[2]INSIncome1-4_2014'!J48*[2]MOD2014!H52+[2]MOD2014!I52*'[2]INSIncome1-4_2014'!L48+'[2]INSIncome1-4_2014'!N48*[2]MOD2014!J52+[2]MOD2014!K52*'[2]INSIncome1-4_2014'!P48+'[2]INSIncome1-4_2014'!R48*[2]MOD2014!L52+[2]MOD2014!M52*'[2]INSIncome1-4_2014'!T48)/G55,0) -> 352.1048971 | S55: =IF(B55<>0,(H55*'[2]INSIncome1-4_2014'!D48+'[2]INSIncome1-4_2014'!F48*'[2]MOD2015-contrakt'!I55+'[2]MOD2015-contrakt'!J55*'[2]INSIncome1-4_2014'!H48+'[2]INSIncome1-4_2014'!J48*'[2]MOD2015-contrakt'!K55+'[2]MOD2015-contrakt'!L55*'[2]INSIncome1-4_2014'!L48+'[2]INSIncome1-4_2014'!N48*'[2]MOD2015-contrakt'!M55+'[2]MOD2015-contrakt'!N55*'[2]INSIncome1-4_2014'!P48+'[2]INSIncome1-4_2014'!R48*'[2]MOD2015-contrakt'!O55+'[2]MOD2015-contrakt'!P55*'[2]INSIncome1-4_2014'!T48)/G55,0) -> 389.0582282 | T55: 0.1049497789 | U55: =H55/[2]MOD2014!E52-1 -> 0.07692307692 | V55: =I55/[2]MOD2014!F52-1 -> 0.04938271605 | W55: =J55/[2]MOD2014!G52-1 -> 0.1764705882 | X55: =K55/[2]MOD2014!H52-1 -> 0.02941176471 | Y55: =L55/[2]MOD2014!I52-1 -> 0 | Z55: =M55/[2]MOD2014!J52-1 -> 0 | AA55: =N55/[2]MOD2014!K52-1 -> 0.1470588235 | AB55: =O55/[2]MOD2014!L52-1 -> 0.1470588235 | AC55: =P55/[2]MOD2014!M52-1 -> 0
A56: 47 | C56: 0 | D56: C | E56: 32 без 32.5 ,33 | F56: Производство, некласифицирано другаде; Ремонт и инсталиране на машини и оборудване | G56: =IF(B56<>0,'[2]INSIncome1-4_2014'!E139,0) -> 0 | R56: =IF(B56<>0,([2]MOD2014!E53*'[2]INSIncome1-4_2014'!D49+'[2]INSIncome1-4_2014'!F49*[2]MOD2014!F53+[2]MOD2014!G53*'[2]INSIncome1-4_2014'!H49+'[2]INSIncome1-4_2014'!J49*[2]MOD2014!H53+[2]MOD2014!I53*'[2]INSIncome1-4_2014'!L49+'[2]INSIncome1-4_2014'!N49*[2]MOD2014!J53+[2]MOD2014!K53*'[2]INSIncome1-4_2014'!P49+'[2]INSIncome1-4_2014'!R49*[2]MOD2014!L53+[2]MOD2014!M53*'[2]INSIncome1-4_2014'!T49)/G56,0) -> 0 | S56: =IF(B56<>0,(H56*'[2]INSIncome1-4_2014'!D49+'[2]INSIncome1-4_2014'!F49*'[2]MOD2015-contrakt'!I56+'[2]MOD2015-contrakt'!J56*'[2]INSIncome1-4_2014'!H49+'[2]INSIncome1-4_2014'!J49*'[2]MOD2015-contrakt'!K56+'[2]MOD2015-contrakt'!L56*'[2]INSIncome1-4_2014'!L49+'[2]INSIncome1-4_2014'!N49*'[2]MOD2015-contrakt'!M56+'[2]MOD2015-contrakt'!N56*'[2]INSIncome1-4_2014'!P49+'[2]INSIncome1-4_2014'!R49*'[2]MOD2015-contrakt'!O56+'[2]MOD2015-contrakt'!P56*'[2]INSIncome1-4_2014'!T49)/G56,0) -> 0 | T56: 0 | U56: =H56/[2]MOD2014!E53-1 -> -1 | V56: =I56/[2]MOD2014!F53-1 -> -1 | W56: =J56/[2]MOD2014!G53-1 -> -1 | X56: =K56/[2]MOD2014!H53-1 -> -1 | Y56: =L56/[2]MOD2014!I53-1 -> -1 | Z56: =M56/[2]MOD2014!J53-1 -> -1 | AA56: =N56/[2]MOD2014!K53-1 -> -1 | AB56: =O56/[2]MOD2014!L53-1 -> -1 | AC56: =P56/[2]MOD2014!M53-1 -> -1
A57: 48 | C57: 0 | D57: C | E57: 32.5 | F57: Производство на медицински и зъболекарски инструменти и средства (Дейности в зъботехнически лаборатории) | G57: =IF(B57<>0,'[2]INSIncome1-4_2014'!E140,0) -> 0 | R57: =IF(B57<>0,([2]MOD2014!E54*'[2]INSIncome1-4_2014'!D50+'[2]INSIncome1-4_2014'!F50*[2]MOD2014!F54+[2]MOD2014!G54*'[2]INSIncome1-4_2014'!H50+'[2]INSIncome1-4_2014'!J50*[2]MOD2014!H54+[2]MOD2014!I54*'[2]INSIncome1-4_2014'!L50+'[2]INSIncome1-4_2014'!N50*[2]MOD2014!J54+[2]MOD2014!K54*'[2]INSIncome1-4_2014'!P50+'[2]INSIncome1-4_2014'!R50*[2]MOD2014!L54+[2]MOD2014!M54*'[2]INSIncome1-4_2014'!T50)/G57,0) -> 0 | S57: =IF(B57<>0,(H57*'[2]INSIncome1-4_2014'!D50+'[2]INSIncome1-4_2014'!F50*'[2]MOD2015-contrakt'!I57+'[2]MOD2015-contrakt'!J57*'[2]INSIncome1-4_2014'!H50+'[2]INSIncome1-4_2014'!J50*'[2]MOD2015-contrakt'!K57+'[2]MOD2015-contrakt'!L57*'[2]INSIncome1-4_2014'!L50+'[2]INSIncome1-4_2014'!N50*'[2]MOD2015-contrakt'!M57+'[2]MOD2015-contrakt'!N57*'[2]INSIncome1-4_2014'!P50+'[2]INSIncome1-4_2014'!R50*'[2]MOD2015-contrakt'!O57+'[2]MOD2015-contrakt'!P57*'[2]INSIncome1-4_2014'!T50)/G57,0) -> 0 | T57: 0 | U57: =H57/[2]MOD2014!E54-1 -> -1 | V57: =I57/[2]MOD2014!F54-1 -> -1 | W57: =J57/[2]MOD2014!G54-1 -> -1 | X57: =K57/[2]MOD2014!H54-1 -> -1 | Y57: =L57/[2]MOD2014!I54-1 -> -1 | Z57: =M57/[2]MOD2014!J54-1 -> -1 | AA57: =N57/[2]MOD2014!K54-1 -> -1 | AB57: =O57/[2]MOD2014!L54-1 -> -1 | AC57: =P57/[2]MOD2014!M54-1 -> -1
A58: 49 | B58: споразумение | C58: -0.0001103138949 | D58: D | E58: 35.1 | F58: Производство, пренос и разпределение на електрическа енергия | G58: =IF(B58<>0,'[2]INSIncome1-4_2014'!E141,0) -> 24423 | H58: 930 | I58: 730 | J58: 690 | K58: 400 | L58: 350 | N58: 580 | O58: 550 | P58: 350 | R58: =IF(B58<>0,([2]MOD2014!E55*'[2]INSIncome1-4_2014'!D51+'[2]INSIncome1-4_2014'!F51*[2]MOD2014!F55+[2]MOD2014!G55*'[2]INSIncome1-4_2014'!H51+'[2]INSIncome1-4_2014'!J51*[2]MOD2014!H55+[2]MOD2014!I55*'[2]INSIncome1-4_2014'!L51+'[2]INSIncome1-4_2014'!N51*[2]MOD2014!J55+[2]MOD2014!K55*'[2]INSIncome1-4_2014'!P51+'[2]INSIncome1-4_2014'!R51*[2]MOD2014!L55+[2]MOD2014!M55*'[2]INSIncome1-4_2014'!T51)/G58,0) -> 630.9859559 | S58: =IF(B58<>0,(H58*'[2]INSIncome1-4_2014'!D51+'[2]INSIncome1-4_2014'!F51*'[2]MOD2015-contrakt'!I58+'[2]MOD2015-contrakt'!J58*'[2]INSIncome1-4_2014'!H51+'[2]INSIncome1-4_2014'!J51*'[2]MOD2015-contrakt'!K58+'[2]MOD2015-contrakt'!L58*'[2]INSIncome1-4_2014'!L51+'[2]INSIncome1-4_2014'!N51*'[2]MOD2015-contrakt'!M58+'[2]MOD2015-contrakt'!N58*'[2]INSIncome1-4_2014'!P51+'[2]INSIncome1-4_2014'!R51*'[2]MOD2015-contrakt'!O58+'[2]MOD2015-contrakt'!P58*'[2]INSIncome1-4_2014'!T51)/G58,0) -> 630.9163493 | T58: -0.0001103138949 | U58: =H58/[2]MOD2014!E55-1 -> 0 | V58: =I58/[2]MOD2014!F55-1 -> 0 | W58: =J58/[2]MOD2014!G55-1 -> 0 | X58: =K58/[2]MOD2014!H55-1 -> 0 | Y58: =L58/[2]MOD2014!I55-1 -> 0 | Z58: =M58/[2]MOD2014!J55-1 -> -1 | AA58: =N58/[2]MOD2014!K55-1 -> 0 | AB58: =O58/[2]MOD2014!L55-1 -> 0 | AC58: =P58/[2]MOD2014!M55-1 -> 0
A59: 50 | C59: 0 | D59: D | E59: 35.2; 49.5 | F59: Производство и разпределение на газообразни горива по газоразпределителните мрежи; Тръбопроводен транспорт | G59: =IF(B59<>0,'[2]INSIncome1-4_2014'!E142,0) -> 0 | R59: =IF(B59<>0,([2]MOD2014!E56*'[2]INSIncome1-4_2014'!D52+'[2]INSIncome1-4_2014'!F52*[2]MOD2014!F56+[2]MOD2014!G56*'[2]INSIncome1-4_2014'!H52+'[2]INSIncome1-4_2014'!J52*[2]MOD2014!H56+[2]MOD2014!I56*'[2]INSIncome1-4_2014'!L52+'[2]INSIncome1-4_2014'!N52*[2]MOD2014!J56+[2]MOD2014!K56*'[2]INSIncome1-4_2014'!P52+'[2]INSIncome1-4_2014'!R52*[2]MOD2014!L56+[2]MOD2014!M56*'[2]INSIncome1-4_2014'!T52)/G59,0) -> 0 | S59: =IF(B59<>0,(H59*'[2]INSIncome1-4_2014'!D52+'[2]INSIncome1-4_2014'!F52*'[2]MOD2015-contrakt'!I59+'[2]MOD2015-contrakt'!J59*'[2]INSIncome1-4_2014'!H52+'[2]INSIncome1-4_2014'!J52*'[2]MOD2015-contrakt'!K59+'[2]MOD2015-contrakt'!L59*'[2]INSIncome1-4_2014'!L52+'[2]INSIncome1-4_2014'!N52*'[2]MOD2015-contrakt'!M59+'[2]MOD2015-contrakt'!N59*'[2]INSIncome1-4_2014'!P52+'[2]INSIncome1-4_2014'!R52*'[2]MOD2015-contrakt'!O59+'[2]MOD2015-contrakt'!P59*'[2]INSIncome1-4_2014'!T52)/G59,0) -> 0 | T59: 0 | U59: =H59/[2]MOD2014!E56-1 -> -1 | V59: =I59/[2]MOD2014!F56-1 -> -1 | W59: =J59/[2]MOD2014!G56-1 -> -1 | X59: =K59/[2]MOD2014!H56-1 -> -1 | Y59: =L59/[2]MOD2014!I56-1 -> -1 | Z59: =M59/[2]MOD2014!J56-1 -> -1 | AA59: =N59/[2]MOD2014!K56-1 -> -1 | AB59: =O59/[2]MOD2014!L56-1 -> -1 | AC59: =P59/[2]MOD2014!M56-1 -> -1
A60: 51 | B60: споразумение | C60: 0.004521358328 | D60: D | E60: 35.3 | F60: Производство и разпределение на топлинна енергия | G60: =IF(B60<>0,'[2]INSIncome1-4_2014'!E143,0) -> 5048 | H60: 820 | I60: 625 | J60: 595 | K60: 370 | L60: 350 | N60: 450 | O60: 500 | P60: 350 | R60: =IF(B60<>0,([2]MOD2014!E57*'[2]INSIncome1-4_2014'!D53+'[2]INSIncome1-4_2014'!F53*[2]MOD2014!F57+[2]MOD2014!G57*'[2]INSIncome1-4_2014'!H53+'[2]INSIncome1-4_2014'!J53*[2]MOD2014!H57+[2]MOD2014!I57*'[2]INSIncome1-4_2014'!L53+'[2]INSIncome1-4_2014'!N53*[2]MOD2014!J57+[2]MOD2014!K57*'[2]INSIncome1-4_2014'!P53+'[2]INSIncome1-4_2014'!R53*[2]MOD2014!L57+[2]MOD2014!M57*'[2]INSIncome1-4_2014'!T53)/G60,0) -> 515.6893819 | S60: =IF(B60<>0,(H60*'[2]INSIncome1-4_2014'!D53+'[2]INSIncome1-4_2014'!F53*'[2]MOD2015-contrakt'!I60+'[2]MOD2015-contrakt'!J60*'[2]INSIncome1-4_2014'!H53+'[2]INSIncome1-4_2014'!J53*'[2]MOD2015-contrakt'!K60+'[2]MOD2015-contrakt'!L60*'[2]INSIncome1-4_2014'!L53+'[2]INSIncome1-4_2014'!N53*'[2]MOD2015-contrakt'!M60+'[2]MOD2015-contrakt'!N60*'[2]INSIncome1-4_2014'!P53+'[2]INSIncome1-4_2014'!R53*'[2]MOD2015-contrakt'!O60+'[2]MOD2015-contrakt'!P60*'[2]INSIncome1-4_2014'!T53)/G60,0) -> 518.0209984 | T60: 0.004521358328 | U60: =H60/[2]MOD2014!E57-1 -> 0 | V60: =I60/[2]MOD2014!F57-1 -> 0 | W60: =J60/[2]MOD2014!G57-1 -> 0 | X60: =K60/[2]MOD2014!H57-1 -> 0 | Y60: =L60/[2]MOD2014!I57-1 -> 0.01449275362 | Z60: =M60/[2]MOD2014!J57-1 -> -1 | AA60: =N60/[2]MOD2014!K57-1 -> 0.01123595506 | AB60: =O60/[2]MOD2014!L57-1 -> 0.0101010101 | AC60: =P60/[2]MOD2014!M57-1 -> 0.01449275362
A61: 52 | B61: споразумение | C61: 0.01125146747 | D61: Е | E61: 36, 37 | F61: Събиране, пречистване и доставяне на води; Събиране, отвеждане и пречистване на отпадъчни води | G61: =IF(B61<>0,'[2]INSIncome1-4_2014'!E144,0) -> 17283 | H61: 730 | I61: 645 | J61: 580 | K61: 420 | L61: 390 | M61: 400 | N61: 485 | O61: 420 | P61: 355 | R61: =IF(B61<>0,([2]MOD2014!E58*'[2]INSIncome1-4_2014'!D54+'[2]INSIncome1-4_2014'!F54*[2]MOD2014!F58+[2]MOD2014!G58*'[2]INSIncome1-4_2014'!H54+'[2]INSIncome1-4_2014'!J54*[2]MOD2014!H58+[2]MOD2014!I58*'[2]INSIncome1-4_2014'!L54+'[2]INSIncome1-4_2014'!N54*[2]MOD2014!J58+[2]MOD2014!K58*'[2]INSIncome1-4_2014'!P54+'[2]INSIncome1-4_2014'!R54*[2]MOD2014!L58+[2]MOD2014!M58*'[2]INSIncome1-4_2014'!T54)/G61,0) -> 469.594862 | S61: =IF(B61<>0,(H61*'[2]INSIncome1-4_2014'!D54+'[2]INSIncome1-4_2014'!F54*'[2]MOD2015-contrakt'!I61+'[2]MOD2015-contrakt'!J61*'[2]INSIncome1-4_2014'!H54+'[2]INSIncome1-4_2014'!J54*'[2]MOD2015-contrakt'!K61+'[2]MOD2015-contrakt'!L61*'[2]INSIncome1-4_2014'!L54+'[2]INSIncome1-4_2014'!N54*'[2]MOD2015-contrakt'!M61+'[2]MOD2015-contrakt'!N61*'[2]INSIncome1-4_2014'!P54+'[2]INSIncome1-4_2014'!R54*'[2]MOD2015-contrakt'!O61+'[2]MOD2015-contrakt'!P61*'[2]INSIncome1-4_2014'!T54)/G61,0) -> 474.8784933 | T61: 0.01125146747 | U61: =H61/[2]MOD2014!E58-1 -> 0.03693181818 | V61: =I61/[2]MOD2014!F58-1 -> 0.0078125 | W61: =J61/[2]MOD2014!G58-1 -> 0.006944444444 | X61: =K61/[2]MOD2014!H58-1 -> 0.009615384615 | Y61: =L61/[2]MOD2014!I58-1 -> 0.015625 | Z61: =M61/[2]MOD2014!J58-1 -> 0.1764705882 | AA61: =N61/[2]MOD2014!K58-1 -> 0.01041666667 | AB61: =O61/[2]MOD2014!L58-1 -> 0.009615384615 | AC61: =P61/[2]MOD2014!M58-1 -> 0.008522727273
A62: 53 | C62: 0 | D62: E | E62: 38 без 38.12 и 38.22; 39 | F62: Събиране и обезвреждане на отпадъци; рециклиране на материали; Възстановяване и други услуги по управление на отпадъци | G62: =IF(B62<>0,'[2]INSIncome1-4_2014'!E145,0) -> 0 | R62: =IF(B62<>0,([2]MOD2014!E59*'[2]INSIncome1-4_2014'!D55+'[2]INSIncome1-4_2014'!F55*[2]MOD2014!F59+[2]MOD2014!G59*'[2]INSIncome1-4_2014'!H55+'[2]INSIncome1-4_2014'!J55*[2]MOD2014!H59+[2]MOD2014!I59*'[2]INSIncome1-4_2014'!L55+'[2]INSIncome1-4_2014'!N55*[2]MOD2014!J59+[2]MOD2014!K59*'[2]INSIncome1-4_2014'!P55+'[2]INSIncome1-4_2014'!R55*[2]MOD2014!L59+[2]MOD2014!M59*'[2]INSIncome1-4_2014'!T55)/G62,0) -> 0 | S62: =IF(B62<>0,(H62*'[2]INSIncome1-4_2014'!D55+'[2]INSIncome1-4_2014'!F55*'[2]MOD2015-contrakt'!I62+'[2]MOD2015-contrakt'!J62*'[2]INSIncome1-4_2014'!H55+'[2]INSIncome1-4_2014'!J55*'[2]MOD2015-contrakt'!K62+'[2]MOD2015-contrakt'!L62*'[2]INSIncome1-4_2014'!L55+'[2]INSIncome1-4_2014'!N55*'[2]MOD2015-contrakt'!M62+'[2]MOD2015-contrakt'!N62*'[2]INSIncome1-4_2014'!P55+'[2]INSIncome1-4_2014'!R55*'[2]MOD2015-contrakt'!O62+'[2]MOD2015-contrakt'!P62*'[2]INSIncome1-4_2014'!T55)/G62,0) -> 0 | T62: 0 | U62: =H62/[2]MOD2014!E59-1 -> -1 | V62: =I62/[2]MOD2014!F59-1 -> -1 | W62: =J62/[2]MOD2014!G59-1 -> -1 | X62: =K62/[2]MOD2014!H59-1 -> -1 | Y62: =L62/[2]MOD2014!I59-1 -> -1 | Z62: =M62/[2]MOD2014!J59-1 -> -1 | AA62: =N62/[2]MOD2014!K59-1 -> -1 | AB62: =O62/[2]MOD2014!L59-1 -> -1 | AC62: =P62/[2]MOD2014!M59-1 -> -1
A63: 54 | B63: споразумение | C63: 0.01457026198 | D63: E | E63: 38.12 и 38.22 | F63: Събиране на опасни отпадъци; Обработване и обезвреждане на опасни отпадъци | G63: =IF(B63<>0,'[2]INSIncome1-4_2014'!E146,0) -> 1290 | H63: 955 | I63: 790 | J63: 710 | K63: 560 | L63: 535 | N63: 600 | O63: 560 | P63: 545 | R63: =IF(B63<>0,([2]MOD2014!E60*'[2]INSIncome1-4_2014'!D56+'[2]INSIncome1-4_2014'!F56*[2]MOD2014!F60+[2]MOD2014!G60*'[2]INSIncome1-4_2014'!H56+'[2]INSIncome1-4_2014'!J56*[2]MOD2014!H60+[2]MOD2014!I60*'[2]INSIncome1-4_2014'!L56+'[2]INSIncome1-4_2014'!N56*[2]MOD2014!J60+[2]MOD2014!K60*'[2]INSIncome1-4_2014'!P56+'[2]INSIncome1-4_2014'!R56*[2]MOD2014!L60+[2]MOD2014!M60*'[2]INSIncome1-4_2014'!T56)/G63,0) -> 686.3294574 | S63: =IF(B63<>0,(H63*'[2]INSIncome1-4_2014'!D56+'[2]INSIncome1-4_2014'!F56*'[2]MOD2015-contrakt'!I63+'[2]MOD2015-contrakt'!J63*'[2]INSIncome1-4_2014'!H56+'[2]INSIncome1-4_2014'!J56*'[2]MOD2015-contrakt'!K63+'[2]MOD2015-contrakt'!L63*'[2]INSIncome1-4_2014'!L56+'[2]INSIncome1-4_2014'!N56*'[2]MOD2015-contrakt'!M63+'[2]MOD2015-contrakt'!N63*'[2]INSIncome1-4_2014'!P56+'[2]INSIncome1-4_2014'!R56*'[2]MOD2015-contrakt'!O63+'[2]MOD2015-contrakt'!P63*'[2]INSIncome1-4_2014'!T56)/G63,0) -> 696.3294574 | T63: 0.01457026198 | U63: =H63/[2]MOD2014!E60-1 -> 0.01058201058 | V63: =I63/[2]MOD2014!F60-1 -> 0.01282051282 | W63: =J63/[2]MOD2014!G60-1 -> 0.01428571429 | X63: =K63/[2]MOD2014!H60-1 -> 0.01818181818 | Y63: =L63/[2]MOD2014!I60-1 -> 0.01904761905 | Z63: =M63/[2]MOD2014!J60-1 -> -1 | AA63: =N63/[2]MOD2014!K60-1 -> 0.01694915254 | AB63: =O63/[2]MOD2014!L60-1 -> 0.01818181818 | AC63: =P63/[2]MOD2014!M60-1 -> 0.01869158879
A64: 55 | B64: споразумение | C64: 0.004042127786 | D64: F | E64: 41, 42 без 42.11 и 42.22, 43 | F64: Строителство на сгради; Строителство на съоръжения; Специализирани строителни дейности | G64: =IF(B64<>0,'[2]INSIncome1-4_2014'!E147,0) -> 118259 | H64: 740 | I64: 600 | J64: 560 | K64: 350 | L64: 340 | M64: 340 | N64: 540 | O64: 540 | P64: 340 | R64: =IF(B64<>0,([2]MOD2014!E61*'[2]INSIncome1-4_2014'!D57+'[2]INSIncome1-4_2014'!F57*[2]MOD2014!F61+[2]MOD2014!G61*'[2]INSIncome1-4_2014'!H57+'[2]INSIncome1-4_2014'!J57*[2]MOD2014!H61+[2]MOD2014!I61*'[2]INSIncome1-4_2014'!L57+'[2]INSIncome1-4_2014'!N57*[2]MOD2014!J61+[2]MOD2014!K61*'[2]INSIncome1-4_2014'!P57+'[2]INSIncome1-4_2014'!R57*[2]MOD2014!L61+[2]MOD2014!M61*'[2]INSIncome1-4_2014'!T57)/G64,0) -> 468.5597713 | S64: =IF(B64<>0,(H64*'[2]INSIncome1-4_2014'!D57+'[2]INSIncome1-4_2014'!F57*'[2]MOD2015-contrakt'!I64+'[2]MOD2015-contrakt'!J64*'[2]INSIncome1-4_2014'!H57+'[2]INSIncome1-4_2014'!J57*'[2]MOD2015-contrakt'!K64+'[2]MOD2015-contrakt'!L64*'[2]INSIncome1-4_2014'!L57+'[2]INSIncome1-4_2014'!N57*'[2]MOD2015-contrakt'!M64+'[2]MOD2015-contrakt'!N64*'[2]INSIncome1-4_2014'!P57+'[2]INSIncome1-4_2014'!R57*'[2]MOD2015-contrakt'!O64+'[2]MOD2015-contrakt'!P64*'[2]INSIncome1-4_2014'!T57)/G64,0) -> 470.4537498 | T64: 0.004042127786 | U64: =H64/[2]MOD2014!E61-1 -> 0.02777777778 | V64: =I64/[2]MOD2014!F61-1 -> 0.01694915254 | W64: =J64/[2]MOD2014!G61-1 -> 0 | X64: =K64/[2]MOD2014!H61-1 -> 0 | Y64: =L64/[2]MOD2014!I61-1 -> 0 | Z64: =M64/[2]MOD2014!J61-1 -> 0 | AA64: =N64/[2]MOD2014!K61-1 -> 0 | AB64: =O64/[2]MOD2014!L61-1 -> 0 | AC64: =P64/[2]MOD2014!M61-1 -> 0
A65: 56 | B65: споразумение | C65: 0 | D65: F | E65: 42.11 | F65: Строителство на автомагистрали, пътища и самолетни писти | G65: =IF(B65<>0,'[2]INSIncome1-4_2014'!E148,0) -> 15385 | H65: 825 | I65: 650 | J65: 590 | K65: 425 | L65: 340 | M65: 340 | N65: 590 | O65: 590 | P65: 340 | R65: =IF(B65<>0,([2]MOD2014!E62*'[2]INSIncome1-4_2014'!D58+'[2]INSIncome1-4_2014'!F58*[2]MOD2014!F62+[2]MOD2014!G62*'[2]INSIncome1-4_2014'!H58+'[2]INSIncome1-4_2014'!J58*[2]MOD2014!H62+[2]MOD2014!I62*'[2]INSIncome1-4_2014'!L58+'[2]INSIncome1-4_2014'!N58*[2]MOD2014!J62+[2]MOD2014!K62*'[2]INSIncome1-4_2014'!P58+'[2]INSIncome1-4_2014'!R58*[2]MOD2014!L62+[2]MOD2014!M62*'[2]INSIncome1-4_2014'!T58)/G65,0) -> 532.5073123 | S65: =IF(B65<>0,(H65*'[2]INSIncome1-4_2014'!D58+'[2]INSIncome1-4_2014'!F58*'[2]MOD2015-contrakt'!I65+'[2]MOD2015-contrakt'!J65*'[2]INSIncome1-4_2014'!H58+'[2]INSIncome1-4_2014'!J58*'[2]MOD2015-contrakt'!K65+'[2]MOD2015-contrakt'!L65*'[2]INSIncome1-4_2014'!L58+'[2]INSIncome1-4_2014'!N58*'[2]MOD2015-contrakt'!M65+'[2]MOD2015-contrakt'!N65*'[2]INSIncome1-4_2014'!P58+'[2]INSIncome1-4_2014'!R58*'[2]MOD2015-contrakt'!O65+'[2]MOD2015-contrakt'!P65*'[2]INSIncome1-4_2014'!T58)/G65,0) -> 532.5073123 | T65: 0 | U65: =H65/[2]MOD2014!E62-1 -> 0 | V65: =I65/[2]MOD2014!F62-1 -> 0 | W65: =J65/[2]MOD2014!G62-1 -> 0 | X65: =K65/[2]MOD2014!H62-1 -> 0 | Y65: =L65/[2]MOD2014!I62-1 -> 0 | Z65: =M65/[2]MOD2014!J62-1 -> 0 | AA65: =N65/[2]MOD2014!K62-1 -> 0 | AB65: =O65/[2]MOD2014!L62-1 -> 0 | AC65: =P65/[2]MOD2014!M62-1 -> 0
A66: 57 | B66: споразумение | C66: 0 | D66: F | E66: 42.22 | F66: Строителство на преносни и разпределителни електрически и далекосъобщителни мрежи | G66: =IF(B66<>0,'[2]INSIncome1-4_2014'!E149,0) -> 4950 | H66: 650 | I66: 525 | J66: 495 | K66: 345 | L66: 340 | N66: 365 | O66: 420 | P66: 340 | R66: =IF(B66<>0,([2]MOD2014!E63*'[2]INSIncome1-4_2014'!D59+'[2]INSIncome1-4_2014'!F59*[2]MOD2014!F63+[2]MOD2014!G63*'[2]INSIncome1-4_2014'!H59+'[2]INSIncome1-4_2014'!J59*[2]MOD2014!H63+[2]MOD2014!I63*'[2]INSIncome1-4_2014'!L59+'[2]INSIncome1-4_2014'!N59*[2]MOD2014!J63+[2]MOD2014!K63*'[2]INSIncome1-4_2014'!P59+'[2]INSIncome1-4_2014'!R59*[2]MOD2014!L63+[2]MOD2014!M63*'[2]INSIncome1-4_2014'!T59)/G66,0) -> 410.5 | S66: =IF(B66<>0,(H66*'[2]INSIncome1-4_2014'!D59+'[2]INSIncome1-4_2014'!F59*'[2]MOD2015-contrakt'!I66+'[2]MOD2015-contrakt'!J66*'[2]INSIncome1-4_2014'!H59+'[2]INSIncome1-4_2014'!J59*'[2]MOD2015-contrakt'!K66+'[2]MOD2015-contrakt'!L66*'[2]INSIncome1-4_2014'!L59+'[2]INSIncome1-4_2014'!N59*'[2]MOD2015-contrakt'!M66+'[2]MOD2015-contrakt'!N66*'[2]INSIncome1-4_2014'!P59+'[2]INSIncome1-4_2014'!R59*'[2]MOD2015-contrakt'!O66+'[2]MOD2015-contrakt'!P66*'[2]INSIncome1-4_2014'!T59)/G66,0) -> 410.5 | T66: 0 | U66: =H66/[2]MOD2014!E63-1 -> 0 | V66: =I66/[2]MOD2014!F63-1 -> 0 | W66: =J66/[2]MOD2014!G63-1 -> 0 | X66: =K66/[2]MOD2014!H63-1 -> 0 | Y66: =L66/[2]MOD2014!I63-1 -> 0 | Z66: =M66/[2]MOD2014!J63-1 -> -1 | AA66: =N66/[2]MOD2014!K63-1 -> 0 | AB66: =O66/[2]MOD2014!L63-1 -> 0 | AC66: =P66/[2]MOD2014!M63-1 -> 0
A67: 58 | B67: Споразумение | C67: 0.06004117069 | D67: G | E67: 45, 46, 47 без 46.46, 47.73, 47.74 | F67: Търговия на едро и дребно с автомобили и мотоциклети, техническо обслужване и ремонт; Търговия на едро, без търговията с автомобили и мотоциклети; Търговия на дребно, без търговията с автомобили и мотоциклети | G67: =IF(B67<>0,'[2]INSIncome1-4_2014'!E150,0) -> 326769 | H67: 1150 | I67: 950 | J67: 840 | K67: 590 | L67: 500 | M67: 400 | N67: 550 | O67: 540 | P67: 440 | R67: =IF(B67<>0,([2]MOD2014!E64*'[2]INSIncome1-4_2014'!D60+'[2]INSIncome1-4_2014'!F60*[2]MOD2014!F64+[2]MOD2014!G64*'[2]INSIncome1-4_2014'!H60+'[2]INSIncome1-4_2014'!J60*[2]MOD2014!H64+[2]MOD2014!I64*'[2]INSIncome1-4_2014'!L60+'[2]INSIncome1-4_2014'!N60*[2]MOD2014!J64+[2]MOD2014!K64*'[2]INSIncome1-4_2014'!P60+'[2]INSIncome1-4_2014'!R60*[2]MOD2014!L64+[2]MOD2014!M64*'[2]INSIncome1-4_2014'!T60)/G67,0) -> 543.533285 | S67: =IF(B67<>0,(H67*'[2]INSIncome1-4_2014'!D60+'[2]INSIncome1-4_2014'!F60*'[2]MOD2015-contrakt'!I67+'[2]MOD2015-contrakt'!J67*'[2]INSIncome1-4_2014'!H60+'[2]INSIncome1-4_2014'!J60*'[2]MOD2015-contrakt'!K67+'[2]MOD2015-contrakt'!L67*'[2]INSIncome1-4_2014'!L60+'[2]INSIncome1-4_2014'!N60*'[2]MOD2015-contrakt'!M67+'[2]MOD2015-contrakt'!N67*'[2]INSIncome1-4_2014'!P60+'[2]INSIncome1-4_2014'!R60*'[2]MOD2015-contrakt'!O67+'[2]MOD2015-contrakt'!P67*'[2]INSIncome1-4_2014'!T60)/G67,0) -> 576.1676597 | T67: 0.06004117069 | U67: =H67/[2]MOD2014!E64-1 -> 0.09523809524 | V67: =I67/[2]MOD2014!F64-1 -> 0.04395604396 | W67: =J67/[2]MOD2014!G64-1 -> 0.05 | X67: =K67/[2]MOD2014!H64-1 -> 0.04424778761 | Y67: =L67/[2]MOD2014!I64-1 -> 0.06382978723 | Z67: =M67/[2]MOD2014!J64-1 -> 0.03359173127 | AA67: =N67/[2]MOD2014!K64-1 -> 0.04761904762 | AB67: =O67/[2]MOD2014!L64-1 -> 0.04854368932 | AC67: =P67/[2]MOD2014!M64-1 -> 0.04761904762
A68: 59 | C68: 0 | D68: G | E68: 46.46, 47.73, 47.74 | F68: Търговия на едро с фармацевтични стоки, медицинска техника и апаратура; Търговия на дребно с лекарства и други фармацевтични стоки; Търговия на дребно с медицински и ортопедични стоки | G68: =IF(B68<>0,'[2]INSIncome1-4_2014'!E151,0) -> 0 | R68: =IF(B68<>0,([2]MOD2014!E65*'[2]INSIncome1-4_2014'!D61+'[2]INSIncome1-4_2014'!F61*[2]MOD2014!F65+[2]MOD2014!G65*'[2]INSIncome1-4_2014'!H61+'[2]INSIncome1-4_2014'!J61*[2]MOD2014!H65+[2]MOD2014!I65*'[2]INSIncome1-4_2014'!L61+'[2]INSIncome1-4_2014'!N61*[2]MOD2014!J65+[2]MOD2014!K65*'[2]INSIncome1-4_2014'!P61+'[2]INSIncome1-4_2014'!R61*[2]MOD2014!L65+[2]MOD2014!M65*'[2]INSIncome1-4_2014'!T61)/G68,0) -> 0 | S68: =IF(B68<>0,(H68*'[2]INSIncome1-4_2014'!D61+'[2]INSIncome1-4_2014'!F61*'[2]MOD2015-contrakt'!I68+'[2]MOD2015-contrakt'!J68*'[2]INSIncome1-4_2014'!H61+'[2]INSIncome1-4_2014'!J61*'[2]MOD2015-contrakt'!K68+'[2]MOD2015-contrakt'!L68*'[2]INSIncome1-4_2014'!L61+'[2]INSIncome1-4_2014'!N61*'[2]MOD2015-contrakt'!M68+'[2]MOD2015-contrakt'!N68*'[2]INSIncome1-4_2014'!P61+'[2]INSIncome1-4_2014'!R61*'[2]MOD2015-contrakt'!O68+'[2]MOD2015-contrakt'!P68*'[2]INSIncome1-4_2014'!T61)/G68,0) -> 0 | T68: 0 | U68: =H68/[2]MOD2014!E65-1 -> -1 | V68: =I68/[2]MOD2014!F65-1 -> -1 | W68: =J68/[2]MOD2014!G65-1 -> -1 | X68: =K68/[2]MOD2014!H65-1 -> -1 | Y68: =L68/[2]MOD2014!I65-1 -> -1 | Z68: =M68/[2]MOD2014!J65-1 -> -1 | AA68: =N68/[2]MOD2014!K65-1 -> -1 | AB68: =O68/[2]MOD2014!L65-1 -> -1 | AC68: =P68/[2]MOD2014!M65-1 -> -1
A69: 60 | B69: Споразумение | C69: 0.004914852964 | D69: I | E69: 55, 56, 79 | F69: Хотелиерство; Ресторантьорство; Туристическа агентска и операторска дейност; други дейности, свързани с пътувания и резервации | G69: =IF(B69<>0,'[2]INSIncome1-4_2014'!E152,0) -> 112713 | H69: 905 | I69: 780 | J69: 610 | K69: 495 | L69: 440 | M69: 380 | N69: 550 | O69: 540 | P69: 400 | R69: =IF(B69<>0,([2]MOD2014!E66*'[2]INSIncome1-4_2014'!D62+'[2]INSIncome1-4_2014'!F62*[2]MOD2014!F66+[2]MOD2014!G66*'[2]INSIncome1-4_2014'!H62+'[2]INSIncome1-4_2014'!J62*[2]MOD2014!H66+[2]MOD2014!I66*'[2]INSIncome1-4_2014'!L62+'[2]INSIncome1-4_2014'!N62*[2]MOD2014!J66+[2]MOD2014!K66*'[2]INSIncome1-4_2014'!P62+'[2]INSIncome1-4_2014'!R62*[2]MOD2014!L66+[2]MOD2014!M66*'[2]INSIncome1-4_2014'!T62)/G69,0) -> 471.1645507 | S69: =IF(B69<>0,(H69*'[2]INSIncome1-4_2014'!D62+'[2]INSIncome1-4_2014'!F62*'[2]MOD2015-contrakt'!I69+'[2]MOD2015-contrakt'!J69*'[2]INSIncome1-4_2014'!H62+'[2]INSIncome1-4_2014'!J62*'[2]MOD2015-contrakt'!K69+'[2]MOD2015-contrakt'!L69*'[2]INSIncome1-4_2014'!L62+'[2]INSIncome1-4_2014'!N62*'[2]MOD2015-contrakt'!M69+'[2]MOD2015-contrakt'!N69*'[2]INSIncome1-4_2014'!P62+'[2]INSIncome1-4_2014'!R62*'[2]MOD2015-contrakt'!O69+'[2]MOD2015-contrakt'!P69*'[2]INSIncome1-4_2014'!T62)/G69,0) -> 473.4802552 | T69: 0.004914852964 | U69: =H69/[2]MOD2014!E66-1 -> 0 | V69: =I69/[2]MOD2014!F66-1 -> 0 | W69: =J69/[2]MOD2014!G66-1 -> 0 | X69: =K69/[2]MOD2014!H66-1 -> 0 | Y69: =L69/[2]MOD2014!I66-1 -> 0 | Z69: =M69/[2]MOD2014!J66-1 -> 0.1176470588 | AA69: =N69/[2]MOD2014!K66-1 -> 0.03773584906 | AB69: =O69/[2]MOD2014!L66-1 -> 0.03846153846 | AC69: =P69/[2]MOD2014!M66-1 -> 0.02564102564
A70: 61 | C70: 0 | D70: H | E70: 49.1, 49.2, 52 - само за железопътен транспорт | F70: Пътнически железопътен транспорт, междуселищен; Товарен железопътен транспорт; Складиране на товари и спомагателни дейности в железопътния транспорт | G70: =IF(B70<>0,'[2]INSIncome1-4_2014'!E153,0) -> 0 | R70: =IF(B70<>0,([2]MOD2014!E67*'[2]INSIncome1-4_2014'!D63+'[2]INSIncome1-4_2014'!F63*[2]MOD2014!F67+[2]MOD2014!G67*'[2]INSIncome1-4_2014'!H63+'[2]INSIncome1-4_2014'!J63*[2]MOD2014!H67+[2]MOD2014!I67*'[2]INSIncome1-4_2014'!L63+'[2]INSIncome1-4_2014'!N63*[2]MOD2014!J67+[2]MOD2014!K67*'[2]INSIncome1-4_2014'!P63+'[2]INSIncome1-4_2014'!R63*[2]MOD2014!L67+[2]MOD2014!M67*'[2]INSIncome1-4_2014'!T63)/G70,0) -> 0 | S70: =IF(B70<>0,(H70*'[2]INSIncome1-4_2014'!D63+'[2]INSIncome1-4_2014'!F63*'[2]MOD2015-contrakt'!I70+'[2]MOD2015-contrakt'!J70*'[2]INSIncome1-4_2014'!H63+'[2]INSIncome1-4_2014'!J63*'[2]MOD2015-contrakt'!K70+'[2]MOD2015-contrakt'!L70*'[2]INSIncome1-4_2014'!L63+'[2]INSIncome1-4_2014'!N63*'[2]MOD2015-contrakt'!M70+'[2]MOD2015-contrakt'!N70*'[2]INSIncome1-4_2014'!P63+'[2]INSIncome1-4_2014'!R63*'[2]MOD2015-contrakt'!O70+'[2]MOD2015-contrakt'!P70*'[2]INSIncome1-4_2014'!T63)/G70,0) -> 0 | T70: 0 | U70: =H70/[2]MOD2014!E67-1 -> -1 | V70: =I70/[2]MOD2014!F67-1 -> -1 | W70: =J70/[2]MOD2014!G67-1 -> -1 | X70: =K70/[2]MOD2014!H67-1 -> -1 | Y70: =L70/[2]MOD2014!I67-1 -> -1 | Z70: =M70/[2]MOD2014!J67-1 -> -1 | AA70: =N70/[2]MOD2014!K67-1 -> -1 | AB70: =O70/[2]MOD2014!L67-1 -> -1 | AC70: =P70/[2]MOD2014!M67-1 -> -1
A71: 62 | C71: 0 | D71: H | E71: 49.3, 49.4 | F71: Друг пътнически сухопътен транспорт; Товарен автомобилен транспорт и услуги по преместване | G71: =IF(B71<>0,'[2]INSIncome1-4_2014'!E154,0) -> 0 | R71: =IF(B71<>0,([2]MOD2014!E68*'[2]INSIncome1-4_2014'!D64+'[2]INSIncome1-4_2014'!F64*[2]MOD2014!F68+[2]MOD2014!G68*'[2]INSIncome1-4_2014'!H64+'[2]INSIncome1-4_2014'!J64*[2]MOD2014!H68+[2]MOD2014!I68*'[2]INSIncome1-4_2014'!L64+'[2]INSIncome1-4_2014'!N64*[2]MOD2014!J68+[2]MOD2014!K68*'[2]INSIncome1-4_2014'!P64+'[2]INSIncome1-4_2014'!R64*[2]MOD2014!L68+[2]MOD2014!M68*'[2]INSIncome1-4_2014'!T64)/G71,0) -> 0 | S71: =IF(B71<>0,(H71*'[2]INSIncome1-4_2014'!D64+'[2]INSIncome1-4_2014'!F64*'[2]MOD2015-contrakt'!I71+'[2]MOD2015-contrakt'!J71*'[2]INSIncome1-4_2014'!H64+'[2]INSIncome1-4_2014'!J64*'[2]MOD2015-contrakt'!K71+'[2]MOD2015-contrakt'!L71*'[2]INSIncome1-4_2014'!L64+'[2]INSIncome1-4_2014'!N64*'[2]MOD2015-contrakt'!M71+'[2]MOD2015-contrakt'!N71*'[2]INSIncome1-4_2014'!P64+'[2]INSIncome1-4_2014'!R64*'[2]MOD2015-contrakt'!O71+'[2]MOD2015-contrakt'!P71*'[2]INSIncome1-4_2014'!T64)/G71,0) -> 0 | T71: 0 | U71: =H71/[2]MOD2014!E68-1 -> -1 | V71: =I71/[2]MOD2014!F68-1 -> -1 | W71: =J71/[2]MOD2014!G68-1 -> -1 | X71: =K71/[2]MOD2014!H68-1 -> -1 | Y71: =L71/[2]MOD2014!I68-1 -> -1 | Z71: =M71/[2]MOD2014!J68-1 -> -1 | AA71: =N71/[2]MOD2014!K68-1 -> -1 | AB71: =O71/[2]MOD2014!L68-1 -> -1 | AC71: =P71/[2]MOD2014!M68-1 -> -1
A72: 63 | C72: 0 | D72: H | E72: 50 | F72: Воден транспорт | G72: =IF(B72<>0,'[2]INSIncome1-4_2014'!E155,0) -> 0 | R72: =IF(B72<>0,([2]MOD2014!E69*'[2]INSIncome1-4_2014'!D65+'[2]INSIncome1-4_2014'!F65*[2]MOD2014!F69+[2]MOD2014!G69*'[2]INSIncome1-4_2014'!H65+'[2]INSIncome1-4_2014'!J65*[2]MOD2014!H69+[2]MOD2014!I69*'[2]INSIncome1-4_2014'!L65+'[2]INSIncome1-4_2014'!N65*[2]MOD2014!J69+[2]MOD2014!K69*'[2]INSIncome1-4_2014'!P65+'[2]INSIncome1-4_2014'!R65*[2]MOD2014!L69+[2]MOD2014!M69*'[2]INSIncome1-4_2014'!T65)/G72,0) -> 0 | S72: =IF(B72<>0,(H72*'[2]INSIncome1-4_2014'!D65+'[2]INSIncome1-4_2014'!F65*'[2]MOD2015-contrakt'!I72+'[2]MOD2015-contrakt'!J72*'[2]INSIncome1-4_2014'!H65+'[2]INSIncome1-4_2014'!J65*'[2]MOD2015-contrakt'!K72+'[2]MOD2015-contrakt'!L72*'[2]INSIncome1-4_2014'!L65+'[2]INSIncome1-4_2014'!N65*'[2]MOD2015-contrakt'!M72+'[2]MOD2015-contrakt'!N72*'[2]INSIncome1-4_2014'!P65+'[2]INSIncome1-4_2014'!R65*'[2]MOD2015-contrakt'!O72+'[2]MOD2015-contrakt'!P72*'[2]INSIncome1-4_2014'!T65)/G72,0) -> 0 | T72: 0 | U72: =H72/[2]MOD2014!E69-1 -> -1 | V72: =I72/[2]MOD2014!F69-1 -> -1 | W72: =J72/[2]MOD2014!G69-1 -> -1 | X72: =K72/[2]MOD2014!H69-1 -> -1 | Y72: =L72/[2]MOD2014!I69-1 -> -1 | Z72: =M72/[2]MOD2014!J69-1 -> -1 | AA72: =N72/[2]MOD2014!K69-1 -> -1 | AB72: =O72/[2]MOD2014!L69-1 -> -1 | AC72: =P72/[2]MOD2014!M69-1 -> -1
A73: 64 | B73: споразумение | C73: 0.119839983 | D73: H | E73: 51 | F73: Въздушен транспорт | G73: =IF(B73<>0,'[2]INSIncome1-4_2014'!E156,0) -> 2203 | H73: 1075 | I73: 988 | J73: 806 | K73: 501 | L73: 513 | M73: 381 | N73: 522 | O73: 580 | P73: 454 | R73: =IF(B73<>0,([2]MOD2014!E70*'[2]INSIncome1-4_2014'!D66+'[2]INSIncome1-4_2014'!F66*[2]MOD2014!F70+[2]MOD2014!G70*'[2]INSIncome1-4_2014'!H66+'[2]INSIncome1-4_2014'!J66*[2]MOD2014!H70+[2]MOD2014!I70*'[2]INSIncome1-4_2014'!L66+'[2]INSIncome1-4_2014'!N66*[2]MOD2014!J70+[2]MOD2014!K70*'[2]INSIncome1-4_2014'!P66+'[2]INSIncome1-4_2014'!R66*[2]MOD2014!L70+[2]MOD2014!M70*'[2]INSIncome1-4_2014'!T66)/G73,0) -> 688.419882 | S73: =IF(B73<>0,(H73*'[2]INSIncome1-4_2014'!D66+'[2]INSIncome1-4_2014'!F66*'[2]MOD2015-contrakt'!I73+'[2]MOD2015-contrakt'!J73*'[2]INSIncome1-4_2014'!H66+'[2]INSIncome1-4_2014'!J66*'[2]MOD2015-contrakt'!K73+'[2]MOD2015-contrakt'!L73*'[2]INSIncome1-4_2014'!L66+'[2]INSIncome1-4_2014'!N66*'[2]MOD2015-contrakt'!M73+'[2]MOD2015-contrakt'!N73*'[2]INSIncome1-4_2014'!P66+'[2]INSIncome1-4_2014'!R66*'[2]MOD2015-contrakt'!O73+'[2]MOD2015-contrakt'!P73*'[2]INSIncome1-4_2014'!T66)/G73,0) -> 770.9201089 | T73: 0.119839983 | U73: =H73/[2]MOD2014!E70-1 -> 0.1197916667 | V73: =I73/[2]MOD2014!F70-1 -> 0.1201814059 | W73: =J73/[2]MOD2014!G70-1 -> 0.1194444444 | X73: =K73/[2]MOD2014!H70-1 -> 0.1208053691 | Y73: =L73/[2]MOD2014!I70-1 -> 0.1200873362 | Z73: =M73/[2]MOD2014!J70-1 -> 0.1205882353 | AA73: =N73/[2]MOD2014!K70-1 -> 0.1201716738 | AB73: =O73/[2]MOD2014!L70-1 -> 0.1196911197 | AC73: =P73/[2]MOD2014!M70-1 -> 0.1209876543
A74: 65 | C74: 0 | D74: H | E74: 52, без железопътен транспорт | F74: Складиране на товари и спомагателни дейности в транспорта (без железопътен транспорт) | G74: =IF(B74<>0,'[2]INSIncome1-4_2014'!E157,0) -> 0 | R74: =IF(B74<>0,([2]MOD2014!E71*'[2]INSIncome1-4_2014'!D67+'[2]INSIncome1-4_2014'!F67*[2]MOD2014!F71+[2]MOD2014!G71*'[2]INSIncome1-4_2014'!H67+'[2]INSIncome1-4_2014'!J67*[2]MOD2014!H71+[2]MOD2014!I71*'[2]INSIncome1-4_2014'!L67+'[2]INSIncome1-4_2014'!N67*[2]MOD2014!J71+[2]MOD2014!K71*'[2]INSIncome1-4_2014'!P67+'[2]INSIncome1-4_2014'!R67*[2]MOD2014!L71+[2]MOD2014!M71*'[2]INSIncome1-4_2014'!T67)/G74,0) -> 0 | S74: =IF(B74<>0,(H74*'[2]INSIncome1-4_2014'!D67+'[2]INSIncome1-4_2014'!F67*'[2]MOD2015-contrakt'!I74+'[2]MOD2015-contrakt'!J74*'[2]INSIncome1-4_2014'!H67+'[2]INSIncome1-4_2014'!J67*'[2]MOD2015-contrakt'!K74+'[2]MOD2015-contrakt'!L74*'[2]INSIncome1-4_2014'!L67+'[2]INSIncome1-4_2014'!N67*'[2]MOD2015-contrakt'!M74+'[2]MOD2015-contrakt'!N74*'[2]INSIncome1-4_2014'!P67+'[2]INSIncome1-4_2014'!R67*'[2]MOD2015-contrakt'!O74+'[2]MOD2015-contrakt'!P74*'[2]INSIncome1-4_2014'!T67)/G74,0) -> 0 | T74: 0 | U74: =H74/[2]MOD2014!E71-1 -> -1 | V74: =I74/[2]MOD2014!F71-1 -> -1 | W74: =J74/[2]MOD2014!G71-1 -> -1 | X74: =K74/[2]MOD2014!H71-1 -> -1 | Y74: =L74/[2]MOD2014!I71-1 -> -1 | Z74: =M74/[2]MOD2014!J71-1 -> -1 | AA74: =N74/[2]MOD2014!K71-1 -> -1 | AB74: =O74/[2]MOD2014!L71-1 -> -1 | AC74: =P74/[2]MOD2014!M71-1 -> -1
A75: 66 | B75: споразумение | C75: =T75 -> 0.02938342531 | D75: H | E75: 53 | F75: Пощенски и куриерски дейности | G75: =IF(B75<>0,'[2]INSIncome1-4_2014'!E158,0) -> 18751 | H75: 470 | I75: 460 | J75: 390 | K75: 350 | L75: 345 | N75: 375 | O75: 360 | P75: 340 | R75: =IF(B75<>0,([2]MOD2014!E72*'[2]INSIncome1-4_2014'!D68+'[2]INSIncome1-4_2014'!F68*[2]MOD2014!F72+[2]MOD2014!G72*'[2]INSIncome1-4_2014'!H68+'[2]INSIncome1-4_2014'!J68*[2]MOD2014!H72+[2]MOD2014!I72*'[2]INSIncome1-4_2014'!L68+'[2]INSIncome1-4_2014'!N68*[2]MOD2014!J72+[2]MOD2014!K72*'[2]INSIncome1-4_2014'!P68+'[2]INSIncome1-4_2014'!R68*[2]MOD2014!L72+[2]MOD2014!M72*'[2]INSIncome1-4_2014'!T68)/G75,0) -> 353.1235667 | S75: =IF(B75<>0,(H75*'[2]INSIncome1-4_2014'!D68+'[2]INSIncome1-4_2014'!F68*'[2]MOD2015-contrakt'!I75+'[2]MOD2015-contrakt'!J75*'[2]INSIncome1-4_2014'!H68+'[2]INSIncome1-4_2014'!J68*'[2]MOD2015-contrakt'!K75+'[2]MOD2015-contrakt'!L75*'[2]INSIncome1-4_2014'!L68+'[2]INSIncome1-4_2014'!N68*'[2]MOD2015-contrakt'!M75+'[2]MOD2015-contrakt'!N75*'[2]INSIncome1-4_2014'!P68+'[2]INSIncome1-4_2014'!R68*'[2]MOD2015-contrakt'!O75+'[2]MOD2015-contrakt'!P75*'[2]INSIncome1-4_2014'!T68)/G75,0) -> 363.4995467 | T75: =IF(B75<>0,S75/R75-1,0) -> 0.02938342531 | U75: =H75/[2]MOD2014!E72-1 -> 0.05617977528 | V75: =I75/[2]MOD2014!F72-1 -> 0.04545454545 | W75: =J75/[2]MOD2014!G72-1 -> 0.02631578947 | X75: =K75/[2]MOD2014!H72-1 -> 0.02941176471 | Y75: =L75/[2]MOD2014!I72-1 -> 0.01470588235 | Z75: =M75/[2]MOD2014!J72-1 -> -1 | AA75: =N75/[2]MOD2014!K72-1 -> 0.07142857143 | AB75: =O75/[2]MOD2014!L72-1 -> 0.05882352941 | AC75: =P75/[2]MOD2014!M72-1 -> 0
A76: 67 | C76: 0 | D76: J | E76: 60, 61 | F76: Радио- и телевизионна дейност; Далекосъобщения | G76: =IF(B76<>0,'[2]INSIncome1-4_2014'!E159,0) -> 0 | R76: =IF(B76<>0,([2]MOD2014!E73*'[2]INSIncome1-4_2014'!D69+'[2]INSIncome1-4_2014'!F69*[2]MOD2014!F73+[2]MOD2014!G73*'[2]INSIncome1-4_2014'!H69+'[2]INSIncome1-4_2014'!J69*[2]MOD2014!H73+[2]MOD2014!I73*'[2]INSIncome1-4_2014'!L69+'[2]INSIncome1-4_2014'!N69*[2]MOD2014!J73+[2]MOD2014!K73*'[2]INSIncome1-4_2014'!P69+'[2]INSIncome1-4_2014'!R69*[2]MOD2014!L73+[2]MOD2014!M73*'[2]INSIncome1-4_2014'!T69)/G76,0) -> 0 | S76: =IF(B76<>0,(H76*'[2]INSIncome1-4_2014'!D69+'[2]INSIncome1-4_2014'!F69*'[2]MOD2015-contrakt'!I76+'[2]MOD2015-contrakt'!J76*'[2]INSIncome1-4_2014'!H69+'[2]INSIncome1-4_2014'!J69*'[2]MOD2015-contrakt'!K76+'[2]MOD2015-contrakt'!L76*'[2]INSIncome1-4_2014'!L69+'[2]INSIncome1-4_2014'!N69*'[2]MOD2015-contrakt'!M76+'[2]MOD2015-contrakt'!N76*'[2]INSIncome1-4_2014'!P69+'[2]INSIncome1-4_2014'!R69*'[2]MOD2015-contrakt'!O76+'[2]MOD2015-contrakt'!P76*'[2]INSIncome1-4_2014'!T69)/G76,0) -> 0 | T76: 0 | U76: =H76/[2]MOD2014!E73-1 -> -1 | V76: =I76/[2]MOD2014!F73-1 -> -1 | W76: =J76/[2]MOD2014!G73-1 -> -1 | X76: =K76/[2]MOD2014!H73-1 -> -1 | Y76: =L76/[2]MOD2014!I73-1 -> -1 | Z76: =M76/[2]MOD2014!J73-1 -> -1 | AA76: =N76/[2]MOD2014!K73-1 -> -1 | AB76: =O76/[2]MOD2014!L73-1 -> -1 | AC76: =P76/[2]MOD2014!M73-1 -> -1
A77: 68 | C77: 0 | D77: K | E77: 64, 65, 66 | F77: ФИНАНСОВИ И ЗАСТРАХОВАТЕЛНИ ДЕЙНОСТИ | G77: =IF(B77<>0,'[2]INSIncome1-4_2014'!E160,0) -> 0 | R77: =IF(B77<>0,([2]MOD2014!E74*'[2]INSIncome1-4_2014'!D70+'[2]INSIncome1-4_2014'!F70*[2]MOD2014!F74+[2]MOD2014!G74*'[2]INSIncome1-4_2014'!H70+'[2]INSIncome1-4_2014'!J70*[2]MOD2014!H74+[2]MOD2014!I74*'[2]INSIncome1-4_2014'!L70+'[2]INSIncome1-4_2014'!N70*[2]MOD2014!J74+[2]MOD2014!K74*'[2]INSIncome1-4_2014'!P70+'[2]INSIncome1-4_2014'!R70*[2]MOD2014!L74+[2]MOD2014!M74*'[2]INSIncome1-4_2014'!T70)/G77,0) -> 0 | S77: =IF(B77<>0,(H77*'[2]INSIncome1-4_2014'!D70+'[2]INSIncome1-4_2014'!F70*'[2]MOD2015-contrakt'!I77+'[2]MOD2015-contrakt'!J77*'[2]INSIncome1-4_2014'!H70+'[2]INSIncome1-4_2014'!J70*'[2]MOD2015-contrakt'!K77+'[2]MOD2015-contrakt'!L77*'[2]INSIncome1-4_2014'!L70+'[2]INSIncome1-4_2014'!N70*'[2]MOD2015-contrakt'!M77+'[2]MOD2015-contrakt'!N77*'[2]INSIncome1-4_2014'!P70+'[2]INSIncome1-4_2014'!R70*'[2]MOD2015-contrakt'!O77+'[2]MOD2015-contrakt'!P77*'[2]INSIncome1-4_2014'!T70)/G77,0) -> 0 | T77: 0 | U77: =H77/[2]MOD2014!E74-1 -> -1 | V77: =I77/[2]MOD2014!F74-1 -> -1 | W77: =J77/[2]MOD2014!G74-1 -> -1 | X77: =K77/[2]MOD2014!H74-1 -> -1 | Y77: =L77/[2]MOD2014!I74-1 -> -1 | Z77: =M77/[2]MOD2014!J74-1 -> -1 | AA77: =N77/[2]MOD2014!K74-1 -> -1 | AB77: =O77/[2]MOD2014!L74-1 -> -1 | AC77: =P77/[2]MOD2014!M74-1 -> -1
A78: 69 | C78: 0 | D78: J, L, M, N | E78: 62, 63, 68, 69, 70, 71, 73, 74, 77, 78, 81, 82 | F78: Дейности в областта на информационните технологии; Информационни услуги; ОПЕРАЦИИ С НЕДВИЖИМИ ИМОТИ; ПРОФЕСИОНАЛНИ ДЕЙНОСТИ И НАУЧНИ ИЗСЛЕДВАНИЯ; АДМИНИСТРАТИВНИ И СПОМАГАТЕЛНИ ДЕЙНОСТИ | G78: =IF(B78<>0,'[2]INSIncome1-4_2014'!E161,0) -> 0 | R78: =IF(B78<>0,([2]MOD2014!E75*'[2]INSIncome1-4_2014'!D71+'[2]INSIncome1-4_2014'!F71*[2]MOD2014!F75+[2]MOD2014!G75*'[2]INSIncome1-4_2014'!H71+'[2]INSIncome1-4_2014'!J71*[2]MOD2014!H75+[2]MOD2014!I75*'[2]INSIncome1-4_2014'!L71+'[2]INSIncome1-4_2014'!N71*[2]MOD2014!J75+[2]MOD2014!K75*'[2]INSIncome1-4_2014'!P71+'[2]INSIncome1-4_2014'!R71*[2]MOD2014!L75+[2]MOD2014!M75*'[2]INSIncome1-4_2014'!T71)/G78,0) -> 0 | S78: =IF(B78<>0,(H78*'[2]INSIncome1-4_2014'!D71+'[2]INSIncome1-4_2014'!F71*'[2]MOD2015-contrakt'!I78+'[2]MOD2015-contrakt'!J78*'[2]INSIncome1-4_2014'!H71+'[2]INSIncome1-4_2014'!J71*'[2]MOD2015-contrakt'!K78+'[2]MOD2015-contrakt'!L78*'[2]INSIncome1-4_2014'!L71+'[2]INSIncome1-4_2014'!N71*'[2]MOD2015-contrakt'!M78+'[2]MOD2015-contrakt'!N78*'[2]INSIncome1-4_2014'!P71+'[2]INSIncome1-4_2014'!R71*'[2]MOD2015-contrakt'!O78+'[2]MOD2015-contrakt'!P78*'[2]INSIncome1-4_2014'!T71)/G78,0) -> 0 | T78: 0 | U78: =H78/[2]MOD2014!E75-1 -> -1 | V78: =I78/[2]MOD2014!F75-1 -> -1 | W78: =J78/[2]MOD2014!G75-1 -> -1 | X78: =K78/[2]MOD2014!H75-1 -> -1 | Y78: =L78/[2]MOD2014!I75-1 -> -1 | Z78: =M78/[2]MOD2014!J75-1 -> -1 | AA78: =N78/[2]MOD2014!K75-1 -> -1 | AB78: =O78/[2]MOD2014!L75-1 -> -1 | AC78: =P78/[2]MOD2014!M75-1 -> -1
A79: 70 | C79: 0 | D79: N | E79: 80 | F79: Дейности по охрана и разследване | G79: =IF(B79<>0,'[2]INSIncome1-4_2014'!E162,0) -> 0 | R79: =IF(B79<>0,([2]MOD2014!E76*'[2]INSIncome1-4_2014'!D72+'[2]INSIncome1-4_2014'!F72*[2]MOD2014!F76+[2]MOD2014!G76*'[2]INSIncome1-4_2014'!H72+'[2]INSIncome1-4_2014'!J72*[2]MOD2014!H76+[2]MOD2014!I76*'[2]INSIncome1-4_2014'!L72+'[2]INSIncome1-4_2014'!N72*[2]MOD2014!J76+[2]MOD2014!K76*'[2]INSIncome1-4_2014'!P72+'[2]INSIncome1-4_2014'!R72*[2]MOD2014!L76+[2]MOD2014!M76*'[2]INSIncome1-4_2014'!T72)/G79,0) -> 0 | S79: =IF(B79<>0,(H79*'[2]INSIncome1-4_2014'!D72+'[2]INSIncome1-4_2014'!F72*'[2]MOD2015-contrakt'!I79+'[2]MOD2015-contrakt'!J79*'[2]INSIncome1-4_2014'!H72+'[2]INSIncome1-4_2014'!J72*'[2]MOD2015-contrakt'!K79+'[2]MOD2015-contrakt'!L79*'[2]INSIncome1-4_2014'!L72+'[2]INSIncome1-4_2014'!N72*'[2]MOD2015-contrakt'!M79+'[2]MOD2015-contrakt'!N79*'[2]INSIncome1-4_2014'!P72+'[2]INSIncome1-4_2014'!R72*'[2]MOD2015-contrakt'!O79+'[2]MOD2015-contrakt'!P79*'[2]INSIncome1-4_2014'!T72)/G79,0) -> 0 | T79: 0 | U79: =H79/[2]MOD2014!E76-1 -> -1 | V79: =I79/[2]MOD2014!F76-1 -> -1 | W79: =J79/[2]MOD2014!G76-1 -> -1 | X79: =K79/[2]MOD2014!H76-1 -> -1 | Y79: =L79/[2]MOD2014!I76-1 -> -1 | Z79: =M79/[2]MOD2014!J76-1 -> -1 | AA79: =N79/[2]MOD2014!K76-1 -> -1 | AB79: =O79/[2]MOD2014!L76-1 -> -1 | AC79: =P79/[2]MOD2014!M76-1 -> -1
A80: 71 | C80: 0 | D80: M | E80: 72 | F80: Научноизследователска и развойна дейност | G80: =IF(B80<>0,'[2]INSIncome1-4_2014'!E163,0) -> 0 | R80: =IF(B80<>0,([2]MOD2014!E77*'[2]INSIncome1-4_2014'!D73+'[2]INSIncome1-4_2014'!F73*[2]MOD2014!F77+[2]MOD2014!G77*'[2]INSIncome1-4_2014'!H73+'[2]INSIncome1-4_2014'!J73*[2]MOD2014!H77+[2]MOD2014!I77*'[2]INSIncome1-4_2014'!L73+'[2]INSIncome1-4_2014'!N73*[2]MOD2014!J77+[2]MOD2014!K77*'[2]INSIncome1-4_2014'!P73+'[2]INSIncome1-4_2014'!R73*[2]MOD2014!L77+[2]MOD2014!M77*'[2]INSIncome1-4_2014'!T73)/G80,0) -> 0 | S80: =IF(B80<>0,(H80*'[2]INSIncome1-4_2014'!D73+'[2]INSIncome1-4_2014'!F73*'[2]MOD2015-contrakt'!I80+'[2]MOD2015-contrakt'!J80*'[2]INSIncome1-4_2014'!H73+'[2]INSIncome1-4_2014'!J73*'[2]MOD2015-contrakt'!K80+'[2]MOD2015-contrakt'!L80*'[2]INSIncome1-4_2014'!L73+'[2]INSIncome1-4_2014'!N73*'[2]MOD2015-contrakt'!M80+'[2]MOD2015-contrakt'!N80*'[2]INSIncome1-4_2014'!P73+'[2]INSIncome1-4_2014'!R73*'[2]MOD2015-contrakt'!O80+'[2]MOD2015-contrakt'!P80*'[2]INSIncome1-4_2014'!T73)/G80,0) -> 0 | T80: 0 | U80: =H80/[2]MOD2014!E77-1 -> -1 | V80: =I80/[2]MOD2014!F77-1 -> -1 | W80: =J80/[2]MOD2014!G77-1 -> -1 | X80: =K80/[2]MOD2014!H77-1 -> -1 | Y80: =L80/[2]MOD2014!I77-1 -> -1 | Z80: =M80/[2]MOD2014!J77-1 -> -1 | AA80: =N80/[2]MOD2014!K77-1 -> -1 | AB80: =O80/[2]MOD2014!L77-1 -> -1 | AC80: =P80/[2]MOD2014!M77-1 -> -1
A81: 72 | C81: 0 | D81: O | E81: 84 | F81: ДЪРЖАВНО УПРАВЛЕНИЕ | G81: =IF(B81<>0,'[2]INSIncome1-4_2014'!E164,0) -> 0 | R81: =IF(B81<>0,([2]MOD2014!E78*'[2]INSIncome1-4_2014'!D74+'[2]INSIncome1-4_2014'!F74*[2]MOD2014!F78+[2]MOD2014!G78*'[2]INSIncome1-4_2014'!H74+'[2]INSIncome1-4_2014'!J74*[2]MOD2014!H78+[2]MOD2014!I78*'[2]INSIncome1-4_2014'!L74+'[2]INSIncome1-4_2014'!N74*[2]MOD2014!J78+[2]MOD2014!K78*'[2]INSIncome1-4_2014'!P74+'[2]INSIncome1-4_2014'!R74*[2]MOD2014!L78+[2]MOD2014!M78*'[2]INSIncome1-4_2014'!T74)/G81,0) -> 0 | S81: =IF(B81<>0,(H81*'[2]INSIncome1-4_2014'!D74+'[2]INSIncome1-4_2014'!F74*'[2]MOD2015-contrakt'!I81+'[2]MOD2015-contrakt'!J81*'[2]INSIncome1-4_2014'!H74+'[2]INSIncome1-4_2014'!J74*'[2]MOD2015-contrakt'!K81+'[2]MOD2015-contrakt'!L81*'[2]INSIncome1-4_2014'!L74+'[2]INSIncome1-4_2014'!N74*'[2]MOD2015-contrakt'!M81+'[2]MOD2015-contrakt'!N81*'[2]INSIncome1-4_2014'!P74+'[2]INSIncome1-4_2014'!R74*'[2]MOD2015-contrakt'!O81+'[2]MOD2015-contrakt'!P81*'[2]INSIncome1-4_2014'!T74)/G81,0) -> 0 | T81: 0 | U81: =H81/[2]MOD2014!E78-1 -> -1 | V81: =I81/[2]MOD2014!F78-1 -> -1 | W81: =J81/[2]MOD2014!G78-1 -> -1 | X81: =K81/[2]MOD2014!H78-1 -> -1 | Y81: =L81/[2]MOD2014!I78-1 -> -1 | Z81: =M81/[2]MOD2014!J78-1 -> -1 | AA81: =N81/[2]MOD2014!K78-1 -> -1 | AB81: =O81/[2]MOD2014!L78-1 -> -1 | AC81: =P81/[2]MOD2014!M78-1 -> -1
A82: 73 | C82: 0 | D82: P | E82: 85 | F82: ОБРАЗОВАНИЕ | G82: =IF(B82<>0,'[2]INSIncome1-4_2014'!E165,0) -> 0 | R82: =IF(B82<>0,([2]MOD2014!E79*'[2]INSIncome1-4_2014'!D75+'[2]INSIncome1-4_2014'!F75*[2]MOD2014!F79+[2]MOD2014!G79*'[2]INSIncome1-4_2014'!H75+'[2]INSIncome1-4_2014'!J75*[2]MOD2014!H79+[2]MOD2014!I79*'[2]INSIncome1-4_2014'!L75+'[2]INSIncome1-4_2014'!N75*[2]MOD2014!J79+[2]MOD2014!K79*'[2]INSIncome1-4_2014'!P75+'[2]INSIncome1-4_2014'!R75*[2]MOD2014!L79+[2]MOD2014!M79*'[2]INSIncome1-4_2014'!T75)/G82,0) -> 0 | S82: =IF(B82<>0,(H82*'[2]INSIncome1-4_2014'!D75+'[2]INSIncome1-4_2014'!F75*'[2]MOD2015-contrakt'!I82+'[2]MOD2015-contrakt'!J82*'[2]INSIncome1-4_2014'!H75+'[2]INSIncome1-4_2014'!J75*'[2]MOD2015-contrakt'!K82+'[2]MOD2015-contrakt'!L82*'[2]INSIncome1-4_2014'!L75+'[2]INSIncome1-4_2014'!N75*'[2]MOD2015-contrakt'!M82+'[2]MOD2015-contrakt'!N82*'[2]INSIncome1-4_2014'!P75+'[2]INSIncome1-4_2014'!R75*'[2]MOD2015-contrakt'!O82+'[2]MOD2015-contrakt'!P82*'[2]INSIncome1-4_2014'!T75)/G82,0) -> 0 | T82: 0 | U82: =H82/[2]MOD2014!E79-1 -> -1 | V82: =I82/[2]MOD2014!F79-1 -> -1 | W82: =J82/[2]MOD2014!G79-1 -> -1 | X82: =K82/[2]MOD2014!H79-1 -> -1 | Y82: =L82/[2]MOD2014!I79-1 -> -1 | Z82: =M82/[2]MOD2014!J79-1 -> -1 | AA82: =N82/[2]MOD2014!K79-1 -> -1 | AB82: =O82/[2]MOD2014!L79-1 -> -1 | AC82: =P82/[2]MOD2014!M79-1 -> -1
A83: 74 | C83: 0 | D83: Q | E83: 86 без 86.1, 75 | F83: ХУМАННО ЗДРАВЕОПАЗВАНЕ И СОЦИАЛНА РАБОТА /без медицинска сестра, акушерка, рехабилитатор и лаборант, включително главните и старшите/; Ветеринарномедицинска дейност | G83: =IF(B83<>0,'[2]INSIncome1-4_2014'!E166,0) -> 0 | R83: =IF(B83<>0,([2]MOD2014!E80*'[2]INSIncome1-4_2014'!D76+'[2]INSIncome1-4_2014'!F76*[2]MOD2014!F80+[2]MOD2014!G80*'[2]INSIncome1-4_2014'!H76+'[2]INSIncome1-4_2014'!J76*[2]MOD2014!H80+[2]MOD2014!I80*'[2]INSIncome1-4_2014'!L76+'[2]INSIncome1-4_2014'!N76*[2]MOD2014!J80+[2]MOD2014!K80*'[2]INSIncome1-4_2014'!P76+'[2]INSIncome1-4_2014'!R76*[2]MOD2014!L80+[2]MOD2014!M80*'[2]INSIncome1-4_2014'!T76)/G83,0) -> 0 | S83: =IF(B83<>0,(H83*'[2]INSIncome1-4_2014'!D76+'[2]INSIncome1-4_2014'!F76*'[2]MOD2015-contrakt'!I83+'[2]MOD2015-contrakt'!J83*'[2]INSIncome1-4_2014'!H76+'[2]INSIncome1-4_2014'!J76*'[2]MOD2015-contrakt'!K83+'[2]MOD2015-contrakt'!L83*'[2]INSIncome1-4_2014'!L76+'[2]INSIncome1-4_2014'!N76*'[2]MOD2015-contrakt'!M83+'[2]MOD2015-contrakt'!N83*'[2]INSIncome1-4_2014'!P76+'[2]INSIncome1-4_2014'!R76*'[2]MOD2015-contrakt'!O83+'[2]MOD2015-contrakt'!P83*'[2]INSIncome1-4_2014'!T76)/G83,0) -> 0 | T83: 0 | U83: =H83/[2]MOD2014!E80-1 -> -1 | V83: =I83/[2]MOD2014!F80-1 -> -1 | W83: =J83/[2]MOD2014!G80-1 -> -1 | X83: =K83/[2]MOD2014!H80-1 -> -1 | Y83: =L83/[2]MOD2014!I80-1 -> -1 | Z83: =M83/[2]MOD2014!J80-1 -> -1 | AA83: =N83/[2]MOD2014!K80-1 -> -1 | AB83: =O83/[2]MOD2014!L80-1 -> -1 | AC83: =P83/[2]MOD2014!M80-1 -> -1
A84: 75 | C84: 0 | D84: Q | E84: 86.1 | F84: Дейност на болници /без началник клиника/отделение, медицинска сестра, акушерка, рехабилитатор и лаборант, включително главните и старшите/ | G84: =IF(B84<>0,'[2]INSIncome1-4_2014'!E167,0) -> 0 | R84: =IF(B84<>0,([2]MOD2014!E81*'[2]INSIncome1-4_2014'!D77+'[2]INSIncome1-4_2014'!F77*[2]MOD2014!F81+[2]MOD2014!G81*'[2]INSIncome1-4_2014'!H77+'[2]INSIncome1-4_2014'!J77*[2]MOD2014!H81+[2]MOD2014!I81*'[2]INSIncome1-4_2014'!L77+'[2]INSIncome1-4_2014'!N77*[2]MOD2014!J81+[2]MOD2014!K81*'[2]INSIncome1-4_2014'!P77+'[2]INSIncome1-4_2014'!R77*[2]MOD2014!L81+[2]MOD2014!M81*'[2]INSIncome1-4_2014'!T77)/G84,0) -> 0 | S84: =IF(B84<>0,(H84*'[2]INSIncome1-4_2014'!D77+'[2]INSIncome1-4_2014'!F77*'[2]MOD2015-contrakt'!I84+'[2]MOD2015-contrakt'!J84*'[2]INSIncome1-4_2014'!H77+'[2]INSIncome1-4_2014'!J77*'[2]MOD2015-contrakt'!K84+'[2]MOD2015-contrakt'!L84*'[2]INSIncome1-4_2014'!L77+'[2]INSIncome1-4_2014'!N77*'[2]MOD2015-contrakt'!M84+'[2]MOD2015-contrakt'!N84*'[2]INSIncome1-4_2014'!P77+'[2]INSIncome1-4_2014'!R77*'[2]MOD2015-contrakt'!O84+'[2]MOD2015-contrakt'!P84*'[2]INSIncome1-4_2014'!T77)/G84,0) -> 0 | T84: 0 | U84: =H84/[2]MOD2014!E81-1 -> -1 | V84: =I84/[2]MOD2014!F81-1 -> -1 | W84: =J84/[2]MOD2014!G81-1 -> -1 | X84: =K84/[2]MOD2014!H81-1 -> -1 | Y84: =L84/[2]MOD2014!I81-1 -> -1 | Z84: =M84/[2]MOD2014!J81-1 -> -1 | AA84: =N84/[2]MOD2014!K81-1 -> -1 | AB84: =O84/[2]MOD2014!L81-1 -> -1 | AC84: =P84/[2]MOD2014!M81-1 -> -1
A85: 76 | C85: 0 | D85: Q | E85: 87, 88 | F85: Медико-социални грижи с настаняване; Социална работа без настаняване | G85: =IF(B85<>0,'[2]INSIncome1-4_2014'!E168,0) -> 0 | R85: =IF(B85<>0,([2]MOD2014!E82*'[2]INSIncome1-4_2014'!D78+'[2]INSIncome1-4_2014'!F78*[2]MOD2014!F82+[2]MOD2014!G82*'[2]INSIncome1-4_2014'!H78+'[2]INSIncome1-4_2014'!J78*[2]MOD2014!H82+[2]MOD2014!I82*'[2]INSIncome1-4_2014'!L78+'[2]INSIncome1-4_2014'!N78*[2]MOD2014!J82+[2]MOD2014!K82*'[2]INSIncome1-4_2014'!P78+'[2]INSIncome1-4_2014'!R78*[2]MOD2014!L82+[2]MOD2014!M82*'[2]INSIncome1-4_2014'!T78)/G85,0) -> 0 | S85: =IF(B85<>0,(H85*'[2]INSIncome1-4_2014'!D78+'[2]INSIncome1-4_2014'!F78*'[2]MOD2015-contrakt'!I85+'[2]MOD2015-contrakt'!J85*'[2]INSIncome1-4_2014'!H78+'[2]INSIncome1-4_2014'!J78*'[2]MOD2015-contrakt'!K85+'[2]MOD2015-contrakt'!L85*'[2]INSIncome1-4_2014'!L78+'[2]INSIncome1-4_2014'!N78*'[2]MOD2015-contrakt'!M85+'[2]MOD2015-contrakt'!N85*'[2]INSIncome1-4_2014'!P78+'[2]INSIncome1-4_2014'!R78*'[2]MOD2015-contrakt'!O85+'[2]MOD2015-contrakt'!P85*'[2]INSIncome1-4_2014'!T78)/G85,0) -> 0 | T85: 0 | U85: =H85/[2]MOD2014!E82-1 -> -1 | V85: =I85/[2]MOD2014!F82-1 -> -1 | W85: =J85/[2]MOD2014!G82-1 -> -1 | X85: =K85/[2]MOD2014!H82-1 -> -1 | Y85: =L85/[2]MOD2014!I82-1 -> -1 | Z85: =M85/[2]MOD2014!J82-1 -> -1 | AA85: =N85/[2]MOD2014!K82-1 -> -1 | AB85: =O85/[2]MOD2014!L82-1 -> -1 | AC85: =P85/[2]MOD2014!M82-1 -> -1
A86: 77 | C86: 0 | D86: R | E86: 90, 91, 92, 93 без 93.12 | F86: КУЛТУРА, СПОРТ И РАЗВЛЕЧЕНИЯ, без 93.12 | G86: =IF(B86<>0,'[2]INSIncome1-4_2014'!E169,0) -> 0 | R86: =IF(B86<>0,([2]MOD2014!E83*'[2]INSIncome1-4_2014'!D79+'[2]INSIncome1-4_2014'!F79*[2]MOD2014!F83+[2]MOD2014!G83*'[2]INSIncome1-4_2014'!H79+'[2]INSIncome1-4_2014'!J79*[2]MOD2014!H83+[2]MOD2014!I83*'[2]INSIncome1-4_2014'!L79+'[2]INSIncome1-4_2014'!N79*[2]MOD2014!J83+[2]MOD2014!K83*'[2]INSIncome1-4_2014'!P79+'[2]INSIncome1-4_2014'!R79*[2]MOD2014!L83+[2]MOD2014!M83*'[2]INSIncome1-4_2014'!T79)/G86,0) -> 0 | S86: =IF(B86<>0,(H86*'[2]INSIncome1-4_2014'!D79+'[2]INSIncome1-4_2014'!F79*'[2]MOD2015-contrakt'!I86+'[2]MOD2015-contrakt'!J86*'[2]INSIncome1-4_2014'!H79+'[2]INSIncome1-4_2014'!J79*'[2]MOD2015-contrakt'!K86+'[2]MOD2015-contrakt'!L86*'[2]INSIncome1-4_2014'!L79+'[2]INSIncome1-4_2014'!N79*'[2]MOD2015-contrakt'!M86+'[2]MOD2015-contrakt'!N86*'[2]INSIncome1-4_2014'!P79+'[2]INSIncome1-4_2014'!R79*'[2]MOD2015-contrakt'!O86+'[2]MOD2015-contrakt'!P86*'[2]INSIncome1-4_2014'!T79)/G86,0) -> 0 | T86: 0 | U86: =H86/[2]MOD2014!E83-1 -> -1 | V86: =I86/[2]MOD2014!F83-1 -> -1 | W86: =J86/[2]MOD2014!G83-1 -> -1 | X86: =K86/[2]MOD2014!H83-1 -> -1 | Y86: =L86/[2]MOD2014!I83-1 -> -1 | Z86: =M86/[2]MOD2014!J83-1 -> -1 | AA86: =N86/[2]MOD2014!K83-1 -> -1 | AB86: =O86/[2]MOD2014!L83-1 -> -1 | AC86: =P86/[2]MOD2014!M83-1 -> -1
A87: 78 | C87: 0 | D87: S, T | E87: 95, 96, 97 | F87: Ремонт на компютърна техника, на лични и домакински вещи; Други персонални услуги; ДЕЙНОСТИ НА ДОМАКИНСТВА КАТО РАБОТОДАТЕЛИ; | G87: =IF(B87<>0,'[2]INSIncome1-4_2014'!E170,0) -> 0 | R87: =IF(B87<>0,([2]MOD2014!E84*'[2]INSIncome1-4_2014'!D80+'[2]INSIncome1-4_2014'!F80*[2]MOD2014!F84+[2]MOD2014!G84*'[2]INSIncome1-4_2014'!H80+'[2]INSIncome1-4_2014'!J80*[2]MOD2014!H84+[2]MOD2014!I84*'[2]INSIncome1-4_2014'!L80+'[2]INSIncome1-4_2014'!N80*[2]MOD2014!J84+[2]MOD2014!K84*'[2]INSIncome1-4_2014'!P80+'[2]INSIncome1-4_2014'!R80*[2]MOD2014!L84+[2]MOD2014!M84*'[2]INSIncome1-4_2014'!T80)/G87,0) -> 0 | S87: =IF(B87<>0,(H87*'[2]INSIncome1-4_2014'!D80+'[2]INSIncome1-4_2014'!F80*'[2]MOD2015-contrakt'!I87+'[2]MOD2015-contrakt'!J87*'[2]INSIncome1-4_2014'!H80+'[2]INSIncome1-4_2014'!J80*'[2]MOD2015-contrakt'!K87+'[2]MOD2015-contrakt'!L87*'[2]INSIncome1-4_2014'!L80+'[2]INSIncome1-4_2014'!N80*'[2]MOD2015-contrakt'!M87+'[2]MOD2015-contrakt'!N87*'[2]INSIncome1-4_2014'!P80+'[2]INSIncome1-4_2014'!R80*'[2]MOD2015-contrakt'!O87+'[2]MOD2015-contrakt'!P87*'[2]INSIncome1-4_2014'!T80)/G87,0) -> 0 | T87: 0 | U87: =H87/[2]MOD2014!E84-1 -> -1 | V87: =I87/[2]MOD2014!F84-1 -> -1 | W87: =J87/[2]MOD2014!G84-1 -> -1 | X87: =K87/[2]MOD2014!H84-1 -> -1 | Y87: =L87/[2]MOD2014!I84-1 -> -1 | Z87: =M87/[2]MOD2014!J84-1 -> -1 | AA87: =N87/[2]MOD2014!K84-1 -> -1 | AB87: =O87/[2]MOD2014!L84-1 -> -1 | AC87: =P87/[2]MOD2014!M84-1 -> -1
A88: 79 | C88: 0 | D88: S, U | E88: 94 без 94.91, 99 | F88: Дейности на организации с нестопанска цел /без длъжностите в Българската православна църква/; Дейности на екстериториални организации и служби | G88: =IF(B88<>0,'[2]INSIncome1-4_2014'!E171,0) -> 0 | R88: =IF(B88<>0,([2]MOD2014!E85*'[2]INSIncome1-4_2014'!D81+'[2]INSIncome1-4_2014'!F81*[2]MOD2014!F85+[2]MOD2014!G85*'[2]INSIncome1-4_2014'!H81+'[2]INSIncome1-4_2014'!J81*[2]MOD2014!H85+[2]MOD2014!I85*'[2]INSIncome1-4_2014'!L81+'[2]INSIncome1-4_2014'!N81*[2]MOD2014!J85+[2]MOD2014!K85*'[2]INSIncome1-4_2014'!P81+'[2]INSIncome1-4_2014'!R81*[2]MOD2014!L85+[2]MOD2014!M85*'[2]INSIncome1-4_2014'!T81)/G88,0) -> 0 | S88: =IF(B88<>0,(H88*'[2]INSIncome1-4_2014'!D81+'[2]INSIncome1-4_2014'!F81*'[2]MOD2015-contrakt'!I88+'[2]MOD2015-contrakt'!J88*'[2]INSIncome1-4_2014'!H81+'[2]INSIncome1-4_2014'!J81*'[2]MOD2015-contrakt'!K88+'[2]MOD2015-contrakt'!L88*'[2]INSIncome1-4_2014'!L81+'[2]INSIncome1-4_2014'!N81*'[2]MOD2015-contrakt'!M88+'[2]MOD2015-contrakt'!N88*'[2]INSIncome1-4_2014'!P81+'[2]INSIncome1-4_2014'!R81*'[2]MOD2015-contrakt'!O88+'[2]MOD2015-contrakt'!P88*'[2]INSIncome1-4_2014'!T81)/G88,0) -> 0 | T88: 0 | U88: =H88/[2]MOD2014!E85-1 -> -1 | V88: =I88/[2]MOD2014!F85-1 -> -1 | W88: =J88/[2]MOD2014!G85-1 -> -1 | X88: =K88/[2]MOD2014!H85-1 -> -1 | Y88: =L88/[2]MOD2014!I85-1 -> -1 | Z88: =M88/[2]MOD2014!J85-1 -> -1 | AA88: =N88/[2]MOD2014!K85-1 -> -1 | AB88: =O88/[2]MOD2014!L85-1 -> -1 | AC88: =P88/[2]MOD2014!M85-1 -> -1
A89: 80 | C89: 0 | D89: R | E89: 93.12 | F89: Дейност на спортни клубове | G89: =IF(B89<>0,'[2]INSIncome1-4_2014'!E172,0) -> 0 | R89: =IF(B89<>0,([2]MOD2014!E86*'[2]INSIncome1-4_2014'!D82+'[2]INSIncome1-4_2014'!F82*[2]MOD2014!F86+[2]MOD2014!G86*'[2]INSIncome1-4_2014'!H82+'[2]INSIncome1-4_2014'!J82*[2]MOD2014!H86+[2]MOD2014!I86*'[2]INSIncome1-4_2014'!L82+'[2]INSIncome1-4_2014'!N82*[2]MOD2014!J86+[2]MOD2014!K86*'[2]INSIncome1-4_2014'!P82+'[2]INSIncome1-4_2014'!R82*[2]MOD2014!L86+[2]MOD2014!M86*'[2]INSIncome1-4_2014'!T82)/G89,0) -> 0 | S89: =IF(B89<>0,(H89*'[2]INSIncome1-4_2014'!D82+'[2]INSIncome1-4_2014'!F82*'[2]MOD2015-contrakt'!I89+'[2]MOD2015-contrakt'!J89*'[2]INSIncome1-4_2014'!H82+'[2]INSIncome1-4_2014'!J82*'[2]MOD2015-contrakt'!K89+'[2]MOD2015-contrakt'!L89*'[2]INSIncome1-4_2014'!L82+'[2]INSIncome1-4_2014'!N82*'[2]MOD2015-contrakt'!M89+'[2]MOD2015-contrakt'!N89*'[2]INSIncome1-4_2014'!P82+'[2]INSIncome1-4_2014'!R82*'[2]MOD2015-contrakt'!O89+'[2]MOD2015-contrakt'!P89*'[2]INSIncome1-4_2014'!T82)/G89,0) -> 0 | T89: 0 | U89: =H89/[2]MOD2014!E86-1 ->  | V89: =I89/[2]MOD2014!F86-1 -> -1 | W89: =J89/[2]MOD2014!G86-1 -> -1 | X89: =K89/[2]MOD2014!H86-1 ->  | Y89: =L89/[2]MOD2014!I86-1 ->  | Z89: =M89/[2]MOD2014!J86-1 ->  | AA89: =N89/[2]MOD2014!K86-1 ->  | AB89: =O89/[2]MOD2014!L86-1 ->  | AC89: =P89/[2]MOD2014!M86-1 -> 
A90: 81 | B90: споразумение | C90: 0 | F90: Централен кооперативен съюз | G90: =IF(B90<>0,'[2]INSIncome1-4_2014'!E173,0) -> 6423 | H90: 640 | I90: 560 | J90: 500 | K90: 400 | L90: 380 | M90: 390 | N90: 400 | O90: 415 | P90: 340 | R90: =IF(B90<>0,([2]MOD2014!E87*'[2]INSIncome1-4_2014'!D83+'[2]INSIncome1-4_2014'!F83*[2]MOD2014!F87+[2]MOD2014!G87*'[2]INSIncome1-4_2014'!H83+'[2]INSIncome1-4_2014'!J83*[2]MOD2014!H87+[2]MOD2014!I87*'[2]INSIncome1-4_2014'!L83+'[2]INSIncome1-4_2014'!N83*[2]MOD2014!J87+[2]MOD2014!K87*'[2]INSIncome1-4_2014'!P83+'[2]INSIncome1-4_2014'!R83*[2]MOD2014!L87+[2]MOD2014!M87*'[2]INSIncome1-4_2014'!T83)/G90,0) -> 430.9543827 | S90: =IF(B90<>0,(H90*'[2]INSIncome1-4_2014'!D83+'[2]INSIncome1-4_2014'!F83*'[2]MOD2015-contrakt'!I90+'[2]MOD2015-contrakt'!J90*'[2]INSIncome1-4_2014'!H83+'[2]INSIncome1-4_2014'!J83*'[2]MOD2015-contrakt'!K90+'[2]MOD2015-contrakt'!L90*'[2]INSIncome1-4_2014'!L83+'[2]INSIncome1-4_2014'!N83*'[2]MOD2015-contrakt'!M90+'[2]MOD2015-contrakt'!N90*'[2]INSIncome1-4_2014'!P83+'[2]INSIncome1-4_2014'!R83*'[2]MOD2015-contrakt'!O90+'[2]MOD2015-contrakt'!P90*'[2]INSIncome1-4_2014'!T83)/G90,0) -> 430.9543827 | T90: 0 | U90: =H90/[2]MOD2014!E87-1 -> 0 | V90: =I90/[2]MOD2014!F87-1 -> 0 | W90: =J90/[2]MOD2014!G87-1 -> 0 | X90: =K90/[2]MOD2014!H87-1 -> 0 | Y90: =L90/[2]MOD2014!I87-1 -> 0 | Z90: =M90/[2]MOD2014!J87-1 -> 0 | AA90: =N90/[2]MOD2014!K87-1 -> 0 | AB90: =O90/[2]MOD2014!L87-1 -> 0 | AC90: =P90/[2]MOD2014!M87-1 -> 0
A91: 82 | C91: 0 | D91: Q | E91: 86 без 86.1 | F91: ХУМАННО ЗДРАВЕОПАЗВАНЕ И СОЦИАЛНА РАБОТА /само за медицинска сестра, акушерка, рехабилитатор, фелдшер и лаборант/ | G91: =IF(B91<>0,'[2]INSIncome1-4_2014'!E174,0) -> 0 | R91: =IF(B91<>0,([2]MOD2014!E88*'[2]INSIncome1-4_2014'!D84+'[2]INSIncome1-4_2014'!F84*[2]MOD2014!F88+[2]MOD2014!G88*'[2]INSIncome1-4_2014'!H84+'[2]INSIncome1-4_2014'!J84*[2]MOD2014!H88+[2]MOD2014!I88*'[2]INSIncome1-4_2014'!L84+'[2]INSIncome1-4_2014'!N84*[2]MOD2014!J88+[2]MOD2014!K88*'[2]INSIncome1-4_2014'!P84+'[2]INSIncome1-4_2014'!R84*[2]MOD2014!L88+[2]MOD2014!M88*'[2]INSIncome1-4_2014'!T84)/G91,0) -> 0 | S91: =IF(B91<>0,(H91*'[2]INSIncome1-4_2014'!D84+'[2]INSIncome1-4_2014'!F84*'[2]MOD2015-contrakt'!I91+'[2]MOD2015-contrakt'!J91*'[2]INSIncome1-4_2014'!H84+'[2]INSIncome1-4_2014'!J84*'[2]MOD2015-contrakt'!K91+'[2]MOD2015-contrakt'!L91*'[2]INSIncome1-4_2014'!L84+'[2]INSIncome1-4_2014'!N84*'[2]MOD2015-contrakt'!M91+'[2]MOD2015-contrakt'!N91*'[2]INSIncome1-4_2014'!P84+'[2]INSIncome1-4_2014'!R84*'[2]MOD2015-contrakt'!O91+'[2]MOD2015-contrakt'!P91*'[2]INSIncome1-4_2014'!T84)/G91,0) -> 0 | T91: 0 | U91: =H91/[2]MOD2014!E88-1 -> -1 | V91: =I91/[2]MOD2014!F88-1 -> -1 | W91: =J91/[2]MOD2014!G88-1 -> -1 | X91: =K91/[2]MOD2014!H88-1 ->  | Y91: =L91/[2]MOD2014!I88-1 ->  | Z91: =M91/[2]MOD2014!J88-1 ->  | AA91: =N91/[2]MOD2014!K88-1 ->  | AB91: =O91/[2]MOD2014!L88-1 ->  | AC91: =P91/[2]MOD2014!M88-1 -> 
A92: 83 | C92: 0 | D92: Q | E92: 86.1 | F92: Дейност на болници /само за началник клиника/отделение / | G92: =IF(B92<>0,'[2]INSIncome1-4_2014'!E175,0) -> 0 | R92: =IF(B92<>0,([2]MOD2014!E89*'[2]INSIncome1-4_2014'!D85+'[2]INSIncome1-4_2014'!F85*[2]MOD2014!F89+[2]MOD2014!G89*'[2]INSIncome1-4_2014'!H85+'[2]INSIncome1-4_2014'!J85*[2]MOD2014!H89+[2]MOD2014!I89*'[2]INSIncome1-4_2014'!L85+'[2]INSIncome1-4_2014'!N85*[2]MOD2014!J89+[2]MOD2014!K89*'[2]INSIncome1-4_2014'!P85+'[2]INSIncome1-4_2014'!R85*[2]MOD2014!L89+[2]MOD2014!M89*'[2]INSIncome1-4_2014'!T85)/G92,0) -> 0 | S92: =IF(B92<>0,(H92*'[2]INSIncome1-4_2014'!D85+'[2]INSIncome1-4_2014'!F85*'[2]MOD2015-contrakt'!I92+'[2]MOD2015-contrakt'!J92*'[2]INSIncome1-4_2014'!H85+'[2]INSIncome1-4_2014'!J85*'[2]MOD2015-contrakt'!K92+'[2]MOD2015-contrakt'!L92*'[2]INSIncome1-4_2014'!L85+'[2]INSIncome1-4_2014'!N85*'[2]MOD2015-contrakt'!M92+'[2]MOD2015-contrakt'!N92*'[2]INSIncome1-4_2014'!P85+'[2]INSIncome1-4_2014'!R85*'[2]MOD2015-contrakt'!O92+'[2]MOD2015-contrakt'!P92*'[2]INSIncome1-4_2014'!T85)/G92,0) -> 0 | T92: 0 | U92: =H92/[2]MOD2014!E89-1 -> -1 | V92: =I92/[2]MOD2014!F89-1 ->  | W92: =J92/[2]MOD2014!G89-1 ->  | X92: =K92/[2]MOD2014!H89-1 ->  | Y92: =L92/[2]MOD2014!I89-1 ->  | Z92: =M92/[2]MOD2014!J89-1 ->  | AA92: =N92/[2]MOD2014!K89-1 ->  | AB92: =O92/[2]MOD2014!L89-1 ->  | AC92: =P92/[2]MOD2014!M89-1 -> 
A93: 84 | C93: 0 | D93: Q | E93: 86.1 | F93: Дейност на болници /само за медицинска сестра, акушерка, рехабилитатор, фелдшер и лаборант/ | G93: =IF(B93<>0,'[2]INSIncome1-4_2014'!E176,0) -> 0 | R93: =IF(B93<>0,([2]MOD2014!E90*'[2]INSIncome1-4_2014'!D86+'[2]INSIncome1-4_2014'!F86*[2]MOD2014!F90+[2]MOD2014!G90*'[2]INSIncome1-4_2014'!H86+'[2]INSIncome1-4_2014'!J86*[2]MOD2014!H90+[2]MOD2014!I90*'[2]INSIncome1-4_2014'!L86+'[2]INSIncome1-4_2014'!N86*[2]MOD2014!J90+[2]MOD2014!K90*'[2]INSIncome1-4_2014'!P86+'[2]INSIncome1-4_2014'!R86*[2]MOD2014!L90+[2]MOD2014!M90*'[2]INSIncome1-4_2014'!T86)/G93,0) -> 0 | S93: =IF(B93<>0,(H93*'[2]INSIncome1-4_2014'!D86+'[2]INSIncome1-4_2014'!F86*'[2]MOD2015-contrakt'!I93+'[2]MOD2015-contrakt'!J93*'[2]INSIncome1-4_2014'!H86+'[2]INSIncome1-4_2014'!J86*'[2]MOD2015-contrakt'!K93+'[2]MOD2015-contrakt'!L93*'[2]INSIncome1-4_2014'!L86+'[2]INSIncome1-4_2014'!N86*'[2]MOD2015-contrakt'!M93+'[2]MOD2015-contrakt'!N93*'[2]INSIncome1-4_2014'!P86+'[2]INSIncome1-4_2014'!R86*'[2]MOD2015-contrakt'!O93+'[2]MOD2015-contrakt'!P93*'[2]INSIncome1-4_2014'!T86)/G93,0) -> 0 | T93: 0 | U93: =H93/[2]MOD2014!E90-1 -> -1 | V93: =I93/[2]MOD2014!F90-1 -> -1 | W93: =J93/[2]MOD2014!G90-1 -> -1 | X93: =K93/[2]MOD2014!H90-1 ->  | Y93: =L93/[2]MOD2014!I90-1 ->  | Z93: =M93/[2]MOD2014!J90-1 ->  | AA93: =N93/[2]MOD2014!K90-1 ->  | AB93: =O93/[2]MOD2014!L90-1 ->  | AC93: =P93/[2]MOD2014!M90-1 -> 
A94: 85 | C94: 0 | D94: S | E94: 94.91 | F94: Дейност на религиозни организации /само за длъжностите в Българската православна църква/ | G94: =IF(B94<>0,'[2]INSIncome1-4_2014'!E177,0) -> 0 | R94: =IF(B94<>0,([2]MOD2014!E91*'[2]INSIncome1-4_2014'!D87+'[2]INSIncome1-4_2014'!F87*[2]MOD2014!F91+[2]MOD2014!G91*'[2]INSIncome1-4_2014'!H87+'[2]INSIncome1-4_2014'!J87*[2]MOD2014!H91+[2]MOD2014!I91*'[2]INSIncome1-4_2014'!L87+'[2]INSIncome1-4_2014'!N87*[2]MOD2014!J91+[2]MOD2014!K91*'[2]INSIncome1-4_2014'!P87+'[2]INSIncome1-4_2014'!R87*[2]MOD2014!L91+[2]MOD2014!M91*'[2]INSIncome1-4_2014'!T87)/G94,0) -> 0 | S94: =IF(B94<>0,(H94*'[2]INSIncome1-4_2014'!D87+'[2]INSIncome1-4_2014'!F87*'[2]MOD2015-contrakt'!I94+'[2]MOD2015-contrakt'!J94*'[2]INSIncome1-4_2014'!H87+'[2]INSIncome1-4_2014'!J87*'[2]MOD2015-contrakt'!K94+'[2]MOD2015-contrakt'!L94*'[2]INSIncome1-4_2014'!L87+'[2]INSIncome1-4_2014'!N87*'[2]MOD2015-contrakt'!M94+'[2]MOD2015-contrakt'!N94*'[2]INSIncome1-4_2014'!P87+'[2]INSIncome1-4_2014'!R87*'[2]MOD2015-contrakt'!O94+'[2]MOD2015-contrakt'!P94*'[2]INSIncome1-4_2014'!T87)/G94,0) -> 0 | T94: 0 | U94: =H94/[2]MOD2014!E91-1 ->  | V94: =I94/[2]MOD2014!F91-1 -> -1 | W94: =J94/[2]MOD2014!G91-1 ->  | X94: =K94/[2]MOD2014!H91-1 ->  | Y94: =L94/[2]MOD2014!I91-1 ->  | Z94: =M94/[2]MOD2014!J91-1 ->  | AA94: =N94/[2]MOD2014!K91-1 ->  | AB94: =O94/[2]MOD2014!L91-1 ->  | AC94: =P94/[2]MOD2014!M91-1 -> 
G95: =SUM(G10:G94) -> 987947 | R95: =SUMPRODUCT(R11:R94,G10:G94)/G95 ->  | S95: =SUMPRODUCT(S11:S94,G10:G94)/G95 ->  | T95: =S95/R95-1 -> 
B96: Забележка:
B97: До момента има сключени споразумения за 39 икономически дейности и 987.9 хил. осигурени лица с общо увеличение на МОД с 4.2%.

Sheet Spravka
A1: СПРАВКА ЗА УВЕЛИЧЕНИЕТО НА МИНИМАЛНИТЕ ОСИГУРИТЕЛНИ ДОХОДИ ЗА 2015 г. НА БАЗА РЕЗУЛТАТИ ОТ ПОДПИСАНИТЕ СПОРАЗУМЕНИЯ МЕЖДУ СИНДИКАТИ И РАБОТОДАТЕЛИ И 380,00 лв. МИНИМАЛНА РАБОТНА ЗАПЛАТА ЗА 2015 г.
A2: НА БАЗА РЕЗУЛТАТИ ОТ ПОДПИСАНИТЕ СПОРАЗУМЕНИЯ МЕЖДУ СИНДИКАТИ И
A3: РАБОТОДАТЕЛИ И 380,00 лв. МИНИМАЛНА РАБОТНА ЗАПЛАТА ЗА 2015 г.
A5: ОБЩ БРОЙ ОСИГУРЕНИ ЛИЦА В ИКОНОМИЧЕСКИТЕ ДЕЙНОСТИ СЪС СКЛЮЧЕНИ СПОРАЗУМЕНИЯ | B5: 987947
A6: СРЕДНО УВЕЛИЧЕНИЕ НА МОД В ДЕЙНОСТИТЕ СЪС СПОРАЗУМЕНИЯ | B6: 0.04248515093
A7: Общо средно увеличение на МОД за всички икономически дейности при :
A8: - запазване на МОД в дейностите без споразумения на нивото от 2013 г. | B8: 0.0413
A9: - налагане на административно увеличение в дейностите без споразумения, равно на средното увеличение на МОД за дейностите с подписани споразумения | B9: 0.0552
A10: - налагане на административно увеличение в дейностите без споразумения, равно на прогнозната инфлация за 2015 г. - 2,4% | B10: 0.0492
A11: Допълнителни приходи в ДОО от увеличението на МОД при: | B11: млн. лв.
A12: - запазване на МОД в дейностите без споразумения на нивото от 2013 г. | B12: 36.12146112
A13: - налагане на административно увеличение в дейностите без споразумения, равно на среното увеличение на МОД за дейностите с подписани споразумения | B13: 49.0164659
A14: - налагане на административно увеличение в дейностите без споразумения, равно на прогнозната инфлация за 2015 г. - 2,4% | B14: 43.40257713
